Body Name,Service Area,Expenses Type,Invoice Payment Date,Transaction Number,Supplier Name,Net Amount
Manchester City Council,Childrens & Education Services,Carer Support Payments ,01-Sep-23,5105888399,Thompsons Academy Ltd,"1,575.00"
Manchester City Council,Childrens & Education Services,Carer Support Payments ,01-Sep-23,5105888398,Care Solutions Recruitment,"9,885.25"
Manchester City Council,Childrens & Education Services,"Consumable items eg Toilet rolls, soap etc",01-Sep-23,1908210140,Argos Business Solutions,532.95
Manchester City Council,Manchester Leisure,"Consumable items eg Toilet rolls, soap etc",01-Sep-23,1908210138,HIGH STREET VOUCHERS,"1,008.25"
Manchester City Council,Childrens & Education Services,"Consumable items eg Toilet rolls, soap etc",01-Sep-23,1908210063,ROOMS4NOW MY-PLACES,"1,531.00"
Manchester City Council,Childrens & Education Services,"Consumable items eg Toilet rolls, soap etc",01-Sep-23,1908210111,VOUCHER EXPRESS,500.00
Manchester City Council,Childrens & Education Services,"Consumable items eg Toilet rolls, soap etc",01-Sep-23,1908210139,HAVEN HOLIDAYS,510.00
Manchester City Council,Childrens & Education Services,"Consumable items eg Toilet rolls, soap etc",01-Sep-23,1908210149,230-420-598 PAYMENT,805.00
Manchester City Council,Childrens & Education Services,"Consumable items eg Toilet rolls, soap etc",01-Sep-23,1908210204,C2E864300605S UKVI,"3,199.00"
Manchester City Council,Adult Social Care,"Consumable items eg Toilet rolls, soap etc",01-Sep-23,1908209713,SURVEYMONKEYCORE,900.00
Manchester City Council,Adult Social Care,"Consumable items eg Toilet rolls, soap etc",01-Sep-23,1908209872,C2E861501956F UKVI,"12,796.00"
Manchester City Council,Adult Social Care,"Consumable items eg Toilet rolls, soap etc",01-Sep-23,1908209936,C2E861601357K UKVI,"3,199.00"
Manchester City Council,Adult Social Care,"Consumable items eg Toilet rolls, soap etc",01-Sep-23,1908209950,C2E861600721F UKVI,"3,199.00"
Manchester City Council,Adult Social Care,"Consumable items eg Toilet rolls, soap etc",01-Sep-23,1908210164,C2E863600036S UKVI,"3,199.00"
Manchester City Council,Adult Social Care,"Consumable items eg Toilet rolls, soap etc",01-Sep-23,1908210192,C2E863800156S UKVI,"3,199.00"
Manchester City Council,Chief Executives,"Consumable items eg Toilet rolls, soap etc",01-Sep-23,1908210163,C2E863600804S UKVI,"3,199.00"
Manchester City Council,Childrens & Education Services,Contract Cleaning External,01-Sep-23,5105888461,WMB Born2reign Day Nursery,"4,590.00"
Manchester City Council,Manchester Leisure,Contract Cleaning External,01-Sep-23,5105888069,aAFD Services Ltd,"4,360.68"
Manchester City Council,Housing Revenue Account,Council Dwelling Adaptations,01-Sep-23,5105888443,Fieldway Supplies Ltd,"22,072.50"
Manchester City Council,Adult Social Care,External repairs and maintenance for buildings,01-Sep-23,5105888370,T F Jones Property Services Ltd,"-1,839.70"
Manchester City Council,Adult Social Care,External repairs and maintenance for buildings,01-Sep-23,5105888391,T F Jones Property Services Ltd,"1,839.70"
Manchester City Council,Corporate Services,External repairs and maintenance for buildings,01-Sep-23,5105888067,Rachel Hacking Ecology Limited,975.00
Manchester City Council,Chief Executives,Funeral and coroner related services,01-Sep-23,5105888409,Bate & Holland Funeral Services Ltd,"8,540.00"
Manchester City Council,Manchester Leisure,General Office expenses,01-Sep-23,1908209731,CK ARCHITECTURAL,624.00
Manchester City Council,Childrens Services,General Office expenses,01-Sep-23,1908209819,VMO,840.00
Manchester City Council,Chief Executives,General Office expenses,01-Sep-23,1908210075,VMO,840.00
Manchester City Council,Chief Executives,General Office expenses,01-Sep-23,1908210084,VMO,-840.00
Manchester City Council,Regeneration Finance,Grant and subscriptions awarded,01-Sep-23,5105888424,Rainbow Haven,"9,000.00"
Manchester City Council,Manchester Leisure,Grant and subscriptions awarded,01-Sep-23,5105888428,Step Up MCR,"2,500.00"
Manchester City Council,Chief Executives,I T Provision,01-Sep-23,5105888400,euNetworks The Loop Limited,"12,240.00"
Manchester City Council,Childrens & Education Services,Payments for services,01-Sep-23,5105888468,Reed Employment Plc,"6,600.15"
Manchester City Council,Adult Social Care,Personal needs of client,01-Sep-23,5105888438,AKW Medicare,"1,281.20"
Manchester City Council,Childrens & Education Services,Personal needs of client,01-Sep-23,1908209918,MAJESTIC MEMORIALS,695.00
Manchester City Council,Regeneration Finance,Professional fees,01-Sep-23,5105888455,Hatch Consulting Ltd,"8,908.33"
Manchester City Council,Regeneration Finance,Professional fees,01-Sep-23,5105888368,Price Waterhouse Coopers LLP,"-114,000.00"
Manchester City Council,Regeneration Finance,Professional fees,01-Sep-23,5105888374,AA Projects Ltd,"1,440.00"
Manchester City Council,Regeneration Finance,Professional fees,01-Sep-23,5105888377,AA Projects Ltd,"1,830.00"
Manchester City Council,Corporate Services,Professional fees,01-Sep-23,5105888365,Lucion Environmental Ltd,883.73
Manchester City Council,Corporate Services,Professional fees,01-Sep-23,5105888366,Lucion Environmental Ltd,"1,436.20"
Manchester City Council,Corporate Services,Professional fees,01-Sep-23,5105888378,Lucion Environmental Ltd,658.73
Manchester City Council,Corporate Services,Professional fees,01-Sep-23,5105888404,Lucion Environmental Ltd,658.73
Manchester City Council,Childrens & Education Services,Professional fees,01-Sep-23,5105888442,Forensic Testing Service Ltd,"2,374.20"
Manchester City Council,Childrens & Education Services,Third party payments to other Local Authorities,01-Sep-23,5105888405,Co-Op Academy,"1,953.50"
Manchester City Council,Housing Revenue Account,Works and associated costs for Land and Buildings,01-Sep-23,5105888421,Jacobs UK Ltd,575.00
Manchester City Council,Housing Revenue Account,Works and associated costs for Land and Buildings,01-Sep-23,5105888421,Jacobs UK Ltd,"4,690.00"
Manchester City Council,Housing Revenue Account,Works and associated costs for Land and Buildings,01-Sep-23,5105888421,Jacobs UK Ltd,"7,679.70"
Manchester City Council,Housing Revenue Account,Works and associated costs for Land and Buildings,01-Sep-23,5105888421,Jacobs UK Ltd,"9,024.20"
Manchester City Council,Chief Executives,Works and associated costs for Land and Buildings,01-Sep-23,5105888386,Buro Happold Limited,"-3,600.00"
Manchester City Council,Chief Executives,Works and associated costs for Land and Buildings,01-Sep-23,5105888387,Buro Happold Limited,"1,500.00"
Manchester City Council,Chief Executives,Works and associated costs for Land and Buildings,01-Sep-23,5105888388,Buro Happold Limited,"1,450.00"
Manchester City Council,Corporate Services,Hire of Equipment,01-Sep-23,5105888436,Flowbird Smart City Uk Ltd,"3,824.00"
Manchester City Council,Chief Executives,Legal Fees,01-Sep-23,5105888458,DWF LLP,"8,294.50"
Manchester City Council,Chief Executives,Printing,01-Sep-23,5105888407,Tharstern Limited,742.50
Manchester City Council,Chief Executives,Advertising,01-Sep-23,5105888471,Guardian News and Media Limited,575.00
Manchester City Council,Regeneration Finance,Legal Fees,01-Sep-23,5105888466,Pinsent Masons LLP,"11,663.60"
Manchester City Council,Childrens & Education Services,Childminding Fee Pay,01-Sep-23,5105888403,Building Blocks Nursery (Blackley),544.00
Manchester City Council,Adult Social Care,Counsel Costs,01-Sep-23,5105888457,Redacted Personal Information,500.00
Manchester City Council,Childrens & Education Services,Rates,01-Sep-23,5105888463,WMB Born2reign Day Nursery,548.85
Manchester City Council,Corporate Services,WPS Awards,01-Sep-23,5105888379,Furniture Resource Centre Ltd,744.17
Manchester City Council,Chief Executives,Legal Fees,01-Sep-23,5105888453,Isherwood Legal Limited,792.00
Manchester City Council,Regeneration Finance,Legal Fees,01-Sep-23,5105888452,DEANS COURT CHAMBERS,900.00
Manchester City Council,Adult Social Care,Furniture,01-Sep-23,5105888460,Rtech Group Limited,"9,675.00"
Manchester City Council,Adult Social Care,Furniture,01-Sep-23,5105888465,Rtech Group Limited,"7,720.84"
Manchester City Council,Adult Social Care,Furniture,01-Sep-23,5105888467,Rtech Group Limited,"2,020.84"
Manchester City Council,Adult Social Care,Rents,01-Sep-23,5105888419,Devon Homes,"12,261.76"
Manchester City Council,Chief Executives,Equipment,01-Sep-23,1908209798,PAYPAL,530.00
Manchester City Council,Chief Executives,Stationery,01-Sep-23,1908209845,GOOGLE*CLOUD C636WN,701.81
Manchester City Council,Childrens & Education Services,Bed & Breakfast Acc,01-Sep-23,1908209812,ROOMS4NOW MY-PLACES,"1,531.00"
Manchester City Council,Childrens & Education Services,Bed & Breakfast Acc,01-Sep-23,1908209884,VICTORIA PARK  RE,"1,050.00"
Manchester City Council,Childrens & Education Services,Bed & Breakfast Acc,01-Sep-23,1908209885,REST&RECHARGE,"4,950.00"
Manchester City Council,Childrens & Education Services,Bed & Breakfast Acc,01-Sep-23,1908209945,JENSA LTD,600.00
Manchester City Council,Childrens & Education Services,Bed & Breakfast Acc,01-Sep-23,1908209946,BKG*HOTEL AT BOOKING.C,"1,551.96"
Manchester City Council,Childrens & Education Services,Bed & Breakfast Acc,01-Sep-23,1908209952,ROOMS4NOW MY-PLACES,"1,531.00"
Manchester City Council,Childrens & Education Services,Bed & Breakfast Acc,01-Sep-23,1908209962,HAVEN HOLIDAYS,659.00
Manchester City Council,Childrens & Education Services,Bed & Breakfast Acc,01-Sep-23,1908209977,BKG*HOTEL AT BOOKING.C,"1,739.98"
Manchester City Council,Childrens & Education Services,Bed & Breakfast Acc,01-Sep-23,1908209995,VICTORIA PARK  RE,"2,100.00"
Manchester City Council,Childrens & Education Services,Bed & Breakfast Acc,01-Sep-23,1908210007,BKG*HOTEL AT BOOKING.C,618.00
Manchester City Council,Childrens & Education Services,Bed & Breakfast Acc,01-Sep-23,1908210011,REST&RECHARGE,"1,885.00"
Manchester City Council,Adult Social Care,Bed & Breakfast Acc,01-Sep-23,1908209724,BKG*HOTEL AT BOOKING.C,828.00
Manchester City Council,Adult Social Care,Bed & Breakfast Acc,01-Sep-23,1908209775,BKG*HOTEL AT BOOKING.C,817.00
Manchester City Council,Childrens & Education Services,PNOR-Other Amenities,01-Sep-23,1908210073,VOUCHER EXPRESS,500.00
Manchester City Council,Housing General Fund,Building Works,04-Sep-23,1908205497,Redacted Personal Information,"8,000.00"
Manchester City Council,Housing General Fund,Building Works,04-Sep-23,1908208276,Redacted Personal Information,"20,000.00"
Manchester City Council,Housing General Fund,Building Works,04-Sep-23,5105888444,Manchester Care & Repair Ltd,"53,310.00"
Manchester City Council,Housing General Fund,Building Works,04-Sep-23,5105888445,Manchester Care & Repair Ltd,"5,331.00"
Manchester City Council,Housing General Fund,Building Works,04-Sep-23,5105888446,Manchester Care & Repair Ltd,"14,960.00"
Manchester City Council,Childrens Services,Building Works,04-Sep-23,5105888497,Sir Robert McAlpine Limited,"73,697.65"
Manchester City Council,Housing General Fund,Building Works,04-Sep-23,5105888559,One Manchester Limited,"184,804.96"
Manchester City Council,Childrens & Education Services,Carer Support Payments ,04-Sep-23,5105888632,Reed Employment Plc,526.20
Manchester City Council,Childrens & Education Services,Carer Support Payments ,04-Sep-23,5105888637,Amore Complex Care,"31,482.34"
Manchester City Council,Childrens & Education Services,Carer Support Payments ,04-Sep-23,5105888638,Amore Complex Care,"7,556.95"
Manchester City Council,Environment and Operations,Construction Works,04-Sep-23,5105888490,Dowhigh Ltd,"-48,550.00"
Manchester City Council,Environment and Operations,Construction Works,04-Sep-23,5105888503,Dowhigh Ltd,"48,550.00"
Manchester City Council,Childrens & Education Services,"Consumable items eg Toilet rolls, soap etc",04-Sep-23,5105888479,Alpha Biolaboratories Limited,"1,655.00"
Manchester City Council,Childrens & Education Services,Contract Cleaning External,04-Sep-23,5105888612,Tiddlywinks Day Nursery Ltd,"5,310.00"
Manchester City Council,Regeneration Finance,External repairs and maintenance for buildings,04-Sep-23,5105888571,Besa Publications Ltd,"14,934.00"
Manchester City Council,Adult Social Care,Grant and subscriptions awarded,04-Sep-23,5105888447,Sanctuary Housing Association,"22,304.01"
Manchester City Council,Adult Social Care,Grant and subscriptions awarded,04-Sep-23,5105888448,Sanctuary Housing Association,"22,304.01"
Manchester City Council,Manchester Leisure,Grant and subscriptions awarded,04-Sep-23,5105888556,Tin Pan Alley Gardens,860.00
Manchester City Council,Manchester Leisure,Grant and subscriptions awarded,04-Sep-23,5105888520,Bee Sanctuary Movement,796.69
Manchester City Council,Adult Social Care,Grant and subscriptions awarded,04-Sep-23,5105888560,Divrse Ltd,"14,850.00"
Manchester City Council,Adult Social Care,Grant and subscriptions awarded,04-Sep-23,5105888581,Divrse Ltd,"55,350.00"
Manchester City Council,Manchester Leisure,Grant and subscriptions awarded,04-Sep-23,5105888491,Theatre Trippers,500.00
Manchester City Council,Manchester Leisure,I T Provision,04-Sep-23,5105888486,BT PLC,"1,467.03"
Manchester City Council,Childrens & Education Services,Payments for services,04-Sep-23,5105888513,Redacted Personal Information,"3,600.00"
Manchester City Council,Childrens & Education Services,Payments for services,04-Sep-23,5105888514,Redacted Personal Information,"6,000.00"
Manchester City Council,Childrens & Education Services,Payments for services,04-Sep-23,5105888523,Carers Trust 4All,901.07
Manchester City Council,Childrens & Education Services,Payments for services,04-Sep-23,5105888525,Carers Trust 4All,951.69
Manchester City Council,Childrens & Education Services,Payments for services,04-Sep-23,5105888526,Carers Trust 4All,938.21
Manchester City Council,Childrens & Education Services,Payments for services,04-Sep-23,5105888528,Carers Trust 4All,925.74
Manchester City Council,Childrens & Education Services,Payments for services,04-Sep-23,5105888531,Carers Trust 4All,921.58
Manchester City Council,Childrens & Education Services,Payments for services,04-Sep-23,5105888511,Seashell trust,893.76
Manchester City Council,Childrens & Education Services,Payments for services,04-Sep-23,5105888519,Care Solutions Recruitment,"1,947.00"
Manchester City Council,Regeneration Finance,Payments to Sub-Contractors,04-Sep-23,5105888480,Video Receiving Centre Ltd,"1,440.00"
Manchester City Council,Chief Executives,Payments to Sub-Contractors,04-Sep-23,5105888575,Redacted Personal Information,708.00
Manchester City Council,Chief Executives,Payments to Sub-Contractors,04-Sep-23,5105888576,Redacted Personal Information,735.30
Manchester City Council,Adult Social Care,Professional fees,04-Sep-23,5105888549,Homestart Manchester,"50,000.00"
Manchester City Council,Childrens & Education Services,Professional fees,04-Sep-23,5105888563,Alpha Biolaboratories Limited,"1,048.00"
Manchester City Council,Manchester Leisure,Subsistence and Conference Expenses,04-Sep-23,5105888613,Suzy Lamplugh Trust,817.90
Manchester City Council,Adult Social Care,Supported Accommodation,04-Sep-23,5105888651,Independent Living Alliance,"10,025.40"
Manchester City Council,Adult Social Care,Third party payments relating to Voluntary Organisations,04-Sep-23,5105888557,Alzheimers Society (Mcr Branch),"34,500.00"
Manchester City Council,Adult Social Care,Third party payments relating to Voluntary Organisations,04-Sep-23,5105888521,Great Places Housing Association,"2,290.00"
Manchester City Council,Regeneration Finance,Third party payments relating to Voluntary Organisations,04-Sep-23,5105888495,Proper Job Theatre company,"25,104.00"
Manchester City Council,Adult Social Care,Training and Development,04-Sep-23,5105888507,Newlyn Plc,645.00
Manchester City Council,Regeneration Finance,Training and Development,04-Sep-23,5105888508,Open Awards,"1,669.50"
Manchester City Council,Chief Executives,Training and Development,04-Sep-23,5105888633,UK Learning Network Limited,"3,000.00"
Manchester City Council,Childrens & Education Services,Transport Coach Hire,04-Sep-23,5105888540,Staffordshire County Council,"2,886.10"
Manchester City Council,Childrens & Education Services,Transport Coach Hire,04-Sep-23,5105888553,S Barnwell,608.40
Manchester City Council,Childrens & Education Services,Transport Coach Hire,04-Sep-23,5105888554,S Barnwell,676.00
Manchester City Council,Childrens & Education Services,Transport Coach Hire,04-Sep-23,5105888555,S Barnwell,507.00
Manchester City Council,Childrens & Education Services,Transport Coach Hire,04-Sep-23,5105888541,Club Radio Cars Manchester Ltd,"6,869.00"
Manchester City Council,Hospitality + Trading Services,Vehicle Repairs,04-Sep-23,5105888762,Manchester Van Hire Ltd,"4,817.05"
Manchester City Council,Hospitality + Trading Services,Vehicle Repairs,04-Sep-23,5105888767,Manchester Van Hire Ltd,"3,280.02"
Manchester City Council,Hospitality + Trading Services,Vehicle Repairs,04-Sep-23,5105888768,Manchester Van Hire Ltd,"2,580.62"
Manchester City Council,Corporate Services,Works and associated costs for Land and Buildings,04-Sep-23,5105888594,Hilti (Gt.Britain) Ltd,"1,620.00"
Manchester City Council,Chief Executives,Works and associated costs for Land and Buildings,04-Sep-23,1908210237,Peel NRE Water Services Limited,600.00
Manchester City Council,Regeneration Finance,Furniture,04-Sep-23,5105888626,BCL,"2,898.41"
Manchester City Council,Highways Services,Grounds Maintenance,04-Sep-23,5105888615,Utilities Design & Planning Ltd,"1,097.50"
Manchester City Council,Manchester Leisure,Storage Costs,04-Sep-23,5105888561,Master Moves Ltd,-699.89
Manchester City Council,Manchester Leisure,Storage Costs,04-Sep-23,5105888562,Master Moves Ltd,699.89
Manchester City Council,Regeneration Finance,Grounds Maintenance,04-Sep-23,5105888538,Arboricultural Services Treework,"1,800.00"
Manchester City Council,Manchester Leisure,Hire of Machinery,04-Sep-23,5105888510,Bradshaw Lawnmover Engineers,975.62
Manchester City Council,Hospitality + Trading Services,Vehicle Hire Costs,04-Sep-23,5105888761,Manchester Van Hire Ltd,"34,707.60"
Manchester City Council,Hospitality + Trading Services,Vehicle Hire Costs,04-Sep-23,5105888769,Manchester Van Hire Ltd,"34,001.20"
Manchester City Council,Corporate Services,Stationery,04-Sep-23,5105888579,Bennett Workplace Solutions Ltd,"1,199.59"
Manchester City Council,Adult Social Care,Rents,04-Sep-23,5105888550,Ashley Property services,"1,000.00"
Manchester City Council,Adult Social Care,Equipment,04-Sep-23,5105888524,Aidapt Bathrooms Ltd,"3,150.00"
Manchester City Council,Chief Executives,Storage Costs,04-Sep-23,5105888509,Oasis UK formerly Box-It (NW),731.26
Manchester City Council,Hospitality + Trading Services,Equipment,04-Sep-23,5105888595,Landscape Supply Company,-674.49
Manchester City Council,Manchester Leisure,Testing Fees,04-Sep-23,5105888534,County Scientific Services,"3,120.00"
Manchester City Council,Childrens & Education Services,Storage Costs,04-Sep-23,5105888644,Restore PLC,"1,039.23"
Manchester City Council,Childrens & Education Services,Storage Costs,04-Sep-23,5105888645,Restore PLC,"3,611.53"
Manchester City Council,Adult Social Care,Rents,04-Sep-23,5105888498,AJD Property Limited,"15,514.29"
Manchester City Council,Chief Executives,Printing,04-Sep-23,5105888622,Impression (Bolton) Ltd,594.00
Manchester City Council,Hospitality + Trading Services,Vehicle Fuel Costs,04-Sep-23,5105888505,Standard Fuels Oils,"18,478.94"
Manchester City Council,Hospitality + Trading Services,Vehicle Fuel Costs,04-Sep-23,5105888506,Standard Fuels Oils,"20,867.20"
Manchester City Council,Chief Executives,Counsel Costs,04-Sep-23,5105888476,Redacted Personal Information,650.00
Manchester City Council,Manchester Leisure,Hire of Equipment,04-Sep-23,5105888478,Park NOW Limited,"3,915.48"
Manchester City Council,Adult Social Care,Furniture,04-Sep-23,5105888499,Rtech Group Limited,"10,954.17"
Manchester City Council,Adult Social Care,Rents,04-Sep-23,1908210235,Newswift Management Ltd,"5,981.00"
Manchester City Council,Adult Social Care,Rents,04-Sep-23,1908210235,Newswift Management Ltd,"8,492.00"
Manchester City Council,Adult Social Care,Rents,04-Sep-23,1908210236,Newswift Management Ltd,"10,797.00"
Manchester City Council,Adult Social Care,Rents,04-Sep-23,1908210238,Newswift Management Ltd,"20,767.00"
Manchester City Council,Adult Social Care,Rents,04-Sep-23,1908210239,MJ RENTAL LTD,"23,778.60"
Manchester City Council,Corporate Services,Agency staff provision,05-Sep-23,5105888749,Michael Page International,672.00
Manchester City Council,Housing Revenue Account,Agency staff provision,05-Sep-23,5105888752,Step Enterprise Ltd,"12,158.00"
Manchester City Council,Manchester Leisure,Compensation Payments,05-Sep-23,1908211103,SATCHELL MORAN CLIENT ACCOUNT,"1,741.63"
Manchester City Council,Hospitality + Trading Services,Compensation Payments,05-Sep-23,1908202158,Shoosmiths LLP Client Account,"11,076.88"
Manchester City Council,Corporate Services,Compensation Payments,05-Sep-23,1908210964,Emerald Law Solicitors Limited,"1,483.33"
Manchester City Council,Corporate Services,Compensation Payments,05-Sep-23,1908210967,Gowing Law Solicitors,833.33
Manchester City Council,Corporate Services,Compensation Payments,05-Sep-23,1908210968,Canter Levin & Berg Limited,"1,433.78"
Manchester City Council,Highways Services,Compensation Payments,05-Sep-23,1908210962,New Law Solicitors,"5,163.67"
Manchester City Council,Environment and Operations,Construction Works,05-Sep-23,5105888678,J.Hopkins (Contractors) Ltd.,"5,001.65"
Manchester City Council,Environment and Operations,Construction Works,05-Sep-23,5105888861,J.Hopkins (Contractors) Ltd.,"20,550.00"
Manchester City Council,Environment and Operations,Construction Works,05-Sep-23,5105888862,J.Hopkins (Contractors) Ltd.,"10,676.54"
Manchester City Council,Environment and Operations,Construction Works,05-Sep-23,5105888865,J.Hopkins (Contractors) Ltd.,"9,400.00"
Manchester City Council,Environment and Operations,Construction Works,05-Sep-23,5105888866,J.Hopkins (Contractors) Ltd.,"5,661.80"
Manchester City Council,Environment and Operations,Construction Works,05-Sep-23,5105888869,J.Hopkins (Contractors) Ltd.,"5,850.00"
Manchester City Council,Environment and Operations,Construction Works,05-Sep-23,5105888893,J.Hopkins (Contractors) Ltd.,"11,850.00"
Manchester City Council,Environment and Operations,Construction Works,05-Sep-23,5105888894,J.Hopkins (Contractors) Ltd.,"15,600.00"
Manchester City Council,Environment and Operations,Construction Works,05-Sep-23,5105888895,J.Hopkins (Contractors) Ltd.,"2,498.28"
Manchester City Council,Environment and Operations,Construction Works,05-Sep-23,5105888896,J.Hopkins (Contractors) Ltd.,"3,545.42"
Manchester City Council,Environment and Operations,Construction Works,05-Sep-23,5105888897,J.Hopkins (Contractors) Ltd.,"11,950.24"
Manchester City Council,Manchester Leisure,"Consumable items eg Toilet rolls, soap etc",05-Sep-23,1908208538,Input SCIO,696.90
Manchester City Council,Manchester Leisure,"Consumable items eg Toilet rolls, soap etc",05-Sep-23,1908210988,BIGDUG LIMITED,"1,171.60"
Manchester City Council,Manchester Leisure,"Consumable items eg Toilet rolls, soap etc",05-Sep-23,1908210989,ABSOLUTEPRODUCT.CO,926.58
Manchester City Council,Manchester Leisure,"Consumable items eg Toilet rolls, soap etc",05-Sep-23,1908210992,MUSEUMS ASCTN,525.00
Manchester City Council,Manchester Leisure,"Consumable items eg Toilet rolls, soap etc",05-Sep-23,1908211006,SHOPIFY* 191718894,830.64
Manchester City Council,Housing Revenue Account,Council Dwelling Adaptations,05-Sep-23,5105888837,PPG Architectural Coatings UK Ltd,772.92
Manchester City Council,Housing Revenue Account,Council Dwelling Adaptations,05-Sep-23,5105888929,Rexel UK Ltd,"3,663.04"
Manchester City Council,Housing Revenue Account,Council Dwelling Adaptations,05-Sep-23,5105888941,Rexel UK Ltd,"8,421.40"
Manchester City Council,Housing Revenue Account,Council Dwelling Adaptations,05-Sep-23,5105888942,Rexel UK Ltd,"9,091.44"
Manchester City Council,Housing Revenue Account,Council Dwelling Adaptations,05-Sep-23,5105888840,Rothwell Plumbing Services Ltd,"2,587.16"
Manchester City Council,Housing Revenue Account,Council Dwelling Adaptations,05-Sep-23,5105888881,Rothwell Plumbing Services Ltd,"11,413.85"
Manchester City Council,Housing Revenue Account,Council Dwelling Adaptations,05-Sep-23,5105888599,Nibe Energy Systems Ltd,"-4,363.32"
Manchester City Council,Regeneration Finance,CRB Fees,05-Sep-23,5105888879,Complete Background Screening Ltd,"1,091.00"
Manchester City Council,Chief Executives,Equipment Operating Lease,05-Sep-23,5105888650,Xerox Finance Ltd,"4,621.51"
Manchester City Council,Manchester Leisure,External repairs and maintenance for buildings,05-Sep-23,5105888677,Laing O'Rourke Construction Ltd,"15,870.49"
Manchester City Council,Manchester Leisure,External repairs and maintenance for buildings,05-Sep-23,5105888745,Groundwork Landscapes Ltd,"4,875.00"
Manchester City Council,Manchester Leisure,External repairs and maintenance for buildings,05-Sep-23,5105888775,Groundwork Landscapes Ltd,"1,725.00"
Manchester City Council,Adult Social Care,Grant and subscriptions awarded,05-Sep-23,5105888558,Caritas Diocese of Salford,"63,123.50"
Manchester City Council,Manchester Leisure,Grant and subscriptions awarded,05-Sep-23,5105888836,Hideaway Youth Project,"26,838.00"
Manchester City Council,Manchester Leisure,Grant and subscriptions awarded,05-Sep-23,5105888911,Tim Parry Jonathan Ball Foundation,"5,000.00"
Manchester City Council,Manchester Leisure,Grant and subscriptions awarded,05-Sep-23,5105888750,Grounded MCR Ltd,650.00
Manchester City Council,Manchester Leisure,Grant and subscriptions awarded,05-Sep-23,5105888750,Grounded MCR Ltd,650.00
Manchester City Council,Chief Executives,I T Provision,05-Sep-23,5105888877,The Networking People (TNP) Ltd,"-1,817.81"
Manchester City Council,Corporate Services,Infrastructure Fees,05-Sep-23,5105888806,Environment Agency,"3,488.95"
Manchester City Council,Insurance Fund,Insurance,05-Sep-23,1908211086,Zurich Insurance,"10,237.46"
Manchester City Council,Manchester Leisure,Library Materials Acquisition,05-Sep-23,1908211194,Martin-Lavell Limited,"1,201.24"
Manchester City Council,Childrens & Education Services,Payments for services,05-Sep-23,5105888787,The Together Trust,"1,135.00"
Manchester City Council,Childrens & Education Services,Payments for services,05-Sep-23,5105888751,Belmont School Ltd,"135,949.07"
Manchester City Council,Adult Social Care,Payments for services,05-Sep-23,5105888685,Holgate House,"1,188.59"
Manchester City Council,Adult Social Care,Payments for services,05-Sep-23,5105888657,Creative Support Ltd,"21,608.59"
Manchester City Council,Childrens & Education Services,Payments for services,05-Sep-23,5105888717,Pure Innovations Ltd,892.80
Manchester City Council,Childrens & Education Services,Payments for services,05-Sep-23,5105888715,Cumberland & Westmorland,"24,435.64"
Manchester City Council,Childrens & Education Services,Payments for services,05-Sep-23,5105888714,Teenage Works,"29,000.00"
Manchester City Council,Highways Services,Payments to Sub-Contractors,05-Sep-23,5105888834,Utilities Design & Planning Ltd,"2,000.00"
Manchester City Council,Manchester Leisure,Payments to Sub-Contractors,05-Sep-23,5105888746,Groundwork Landscapes Ltd,"2,450.00"
Manchester City Council,Chief Executives,Payments to Sub-Contractors,05-Sep-23,5105888917,Redacted Personal Information,"3,293.08"
Manchester City Council,Adult Social Care,Personal needs of client,05-Sep-23,5105888744,Direct Healthcare Group Ltd,824.66
Manchester City Council,Manchester Leisure,Professional fees,05-Sep-23,5105888709,Ramora Ltd,895.00
Manchester City Council,Childrens & Education Services,Professional fees,05-Sep-23,5105888804,NT&AS,"2,031.00"
Manchester City Council,Adult Social Care,Professional fees,05-Sep-23,5105888655,Emerge 3RS,"21,608.59"
Manchester City Council,Adult Social Care,Professional fees,05-Sep-23,5105888656,Emerge 3RS,"-21,608.59"
Manchester City Council,Manchester Leisure,Professional fees,05-Sep-23,5105888659,Eville & Jones Commercial Services,"7,510.52"
Manchester City Council,Manchester Leisure,Professional fees,05-Sep-23,5105888794,Eville & Jones Commercial Services,"6,438.16"
Manchester City Council,Childrens & Education Services,Professional fees,05-Sep-23,5105888770,Prospero Teaching,500.00
Manchester City Council,Childrens & Education Services,Professional fees,05-Sep-23,5105888773,Prospero Teaching,500.00
Manchester City Council,Childrens & Education Services,Professional fees,05-Sep-23,5105888797,Prospero Teaching,500.00
Manchester City Council,Childrens & Education Services,Professional fees,05-Sep-23,5105888799,Prospero Teaching,650.00
Manchester City Council,Childrens & Education Services,Professional fees,05-Sep-23,5105888800,Prospero Teaching,500.00
Manchester City Council,Childrens & Education Services,Professional fees,05-Sep-23,5105888802,Prospero Teaching,500.00
Manchester City Council,Corporate Services,Professional fees,05-Sep-23,5105888473,Pick Everard,"4,229.40"
Manchester City Council,Corporate Services,Professional fees,05-Sep-23,5105888475,NE1 Procurement Services Limited,"6,030.77"
Manchester City Council,Corporate Services,Professional fees,05-Sep-23,5105888477,NE1 Procurement Services Limited,"5,641.03"
Manchester City Council,Corporate Services,Professional fees,05-Sep-23,5105888627,NE1 Procurement Services Limited,"12,000.00"
Manchester City Council,Manchester Leisure,Professional fees,05-Sep-23,5105888888,Xtreme,515.00
Manchester City Council,Manchester Leisure,Professional fees,05-Sep-23,5105888889,Xtreme,515.00
Manchester City Council,Manchester Leisure,Professional fees,05-Sep-23,5105888884,Go Bounce Play,657.50
Manchester City Council,Manchester Leisure,Professional fees,05-Sep-23,5105888886,Go Bounce Play,657.50
Manchester City Council,Hospitality + Trading Services,Refuse Collection,05-Sep-23,5105888585,Biffa Municipal Limited,"16,099.80"
Manchester City Council,Regeneration Finance,Removal and Storage of Furniture,05-Sep-23,5105888843,Master Moves Ltd,994.47
Manchester City Council,Regeneration Finance,Removal and Storage of Furniture,05-Sep-23,5105888907,Master Moves Ltd,"1,027.40"
Manchester City Council,Adult Social Care,Security,05-Sep-23,5105888777,UNIQUE SPECIALIST SERVICES,"1,404.00"
Manchester City Council,Manchester Leisure,Subsistence and Conference Expenses,05-Sep-23,5105888788,Halle Concerts Society,"1,775.00"
Manchester City Council,Adult Social Care,Supported Accommodation,05-Sep-23,5105888820,Independent Living Alliance,"10,025.40"
Manchester City Council,Manchester Leisure,Supporting People Payments,05-Sep-23,5105888872,4CT Limited,"2,000.00"
Manchester City Council,Regeneration Finance,Third party payments relating to Voluntary Organisations,05-Sep-23,5105888856,Manchester Young Lives,"5,352.80"
Manchester City Council,Adult Social Care,Third party payments relating to Voluntary Organisations,05-Sep-23,5105888839,Greater Manchester Immigration Aid,"8,158.00"
Manchester City Council,Adult Social Care,Third party payments relating to Voluntary Organisations,05-Sep-23,5105888680,Independent Choices Gtr Manchester,"4,390.00"
Manchester City Council,Regeneration Finance,Third party payments relating to Voluntary Organisations,05-Sep-23,5105888760,Proper Job Theatre company,"2,310.00"
Manchester City Council,Adult Social Care,Third party payments relating to Voluntary Organisations,05-Sep-23,5105888782,Afruca,"16,149.00"
Manchester City Council,Regeneration Finance,Third party payments relating to Voluntary Organisations,05-Sep-23,5105888809,Sow the City,"1,284.00"
Manchester City Council,Housing Revenue Account,Vehicle Plant Furniture and Equipment,05-Sep-23,5105888697,Insight Direct (Uk) Ltd,"2,503.01"
Manchester City Council,Chief Executives,Vehicle Plant Furniture and Equipment,05-Sep-23,5105888825,euNetworks The Loop Limited,748.38
Manchester City Council,Libraries and Theatres,Vehicle Plant Furniture and Equipment,05-Sep-23,5105888846,FusionLX LTD.,899.65
Manchester City Council,Hospitality + Trading Services,Vehicle Repairs,05-Sep-23,5105888781,Winners Contract Hire Ltd,"5,680.71"
Manchester City Council,Chief Executives,Works and associated costs for Land and Buildings,05-Sep-23,5105888813,Manchester International Festival,"-247,084.00"
Manchester City Council,Chief Executives,Works and associated costs for Land and Buildings,05-Sep-23,5105888814,Manchester International Festival,"247,084.00"
Manchester City Council,Housing General Fund,Works and associated costs for Land and Buildings,05-Sep-23,5105888863,Faithful & Gould Ltd,"4,500.00"
Manchester City Council,Childrens Services,Works and associated costs for Land and Buildings,05-Sep-23,5105888898,R Development Ltd,"31,537.96"
Manchester City Council,Chief Executives,Counsel Costs,05-Sep-23,1908210224,Redacted Personal Information,950.00
Manchester City Council,Childrens & Education Services,Storage Costs,05-Sep-23,5105888618,Iron Mountain,"3,401.95"
Manchester City Council,Chief Executives,Postage,05-Sep-23,5105888899,Royal Mail Group Plc,"7,168.50"
Manchester City Council,Hospitality + Trading Services,Hire of Machinery,05-Sep-23,5105888908,R & M Developments Ltd,"1,073.50"
Manchester City Council,Hospitality + Trading Services,Hire of Machinery,05-Sep-23,5105888909,R & M Developments Ltd,"1,073.50"
Manchester City Council,Hospitality + Trading Services,Hire of Machinery,05-Sep-23,5105888910,R & M Developments Ltd,"1,073.50"
Manchester City Council,Chief Executives,Paper & Envelopes,05-Sep-23,5105888674,Premier Paper Group Ltd,"-1,558.86"
Manchester City Council,Chief Executives,Paper & Envelopes,05-Sep-23,5105888675,Premier Paper Group Ltd,"1,558.86"
Manchester City Council,Chief Executives,Paper & Envelopes,05-Sep-23,5105888906,Premier Paper Group Ltd,563.66
Manchester City Council,Manchester Leisure,Equipment,05-Sep-23,5105888726,Earth Anchors Ltd,"1,370.00"
Manchester City Council,Childrens & Education Services,Signers/Interpreters,05-Sep-23,5105888565,Language Line Ltd,521.81
Manchester City Council,Childrens & Education Services,Signers/Interpreters,05-Sep-23,5105888566,Language Line Ltd,635.20
Manchester City Council,Childrens & Education Services,Equipment,05-Sep-23,5105888601,Bennett Workplace Solutions Ltd,"1,277.00"
Manchester City Council,Corporate Services,Stationery,05-Sep-23,5105888647,Bennett Workplace Solutions Ltd,695.00
Manchester City Council,Corporate Services,Travel Season TLS,05-Sep-23,5105888684,Stagecoach Manchester,670.00
Manchester City Council,Corporate Services,Travel Season TLS,05-Sep-23,5105888686,Stagecoach Manchester,670.00
Manchester City Council,Corporate Services,Travel Season TLS,05-Sep-23,5105888687,Stagecoach Manchester,670.00
Manchester City Council,Corporate Services,Travel Season TLS,05-Sep-23,5105888688,Stagecoach Manchester,670.00
Manchester City Council,Adult Social Care,Bed & Breakfast Acc,05-Sep-23,5105888931,Redacted Personal Information,"11,636.00"
Manchester City Council,Chief Executives,Legal Fees,05-Sep-23,5105888729,Weightmans LLP Solicitors,"4,207.05"
Manchester City Council,Chief Executives,Legal Fees,05-Sep-23,5105888741,Weightmans LLP Solicitors,"3,351.60"
Manchester City Council,Corporate Services,Elec Car Lease,05-Sep-23,1908210963,Northumbria Healthcare NHS FT,"2,479.68"
Manchester City Council,Highways Services,Vehicle Fuel Costs,05-Sep-23,5105888875,Standard Fuels Oils,990.32
Manchester City Council,Corporate Services,WPS Awards,05-Sep-23,5105888692,Furniture Resource Centre Ltd,807.82
Manchester City Council,Corporate Services,WPS Awards,05-Sep-23,5105888848,Furniture Resource Centre Ltd,612.53
Manchester City Council,Corporate Services,WPS Awards,05-Sep-23,5105888850,Furniture Resource Centre Ltd,509.39
Manchester City Council,Corporate Services,WPS Awards,05-Sep-23,5105888851,Furniture Resource Centre Ltd,"1,223.07"
Manchester City Council,Corporate Services,WPS Awards,05-Sep-23,5105888854,Furniture Resource Centre Ltd,699.99
Manchester City Council,Corporate Services,WPS Awards,05-Sep-23,5105888855,Furniture Resource Centre Ltd,969.70
Manchester City Council,Corporate Services,WPS Awards,05-Sep-23,5105888923,Furniture Resource Centre Ltd,562.49
Manchester City Council,Corporate Services,WPS Awards,05-Sep-23,5105888924,Furniture Resource Centre Ltd,"1,140.65"
Manchester City Council,Childrens & Education Services,Ind Budget Payment,05-Sep-23,5105888681,Thompsons Academy Ltd,750.00
Manchester City Council,Childrens & Education Services,Ind Budget Payment,05-Sep-23,5105888727,Thompsons Academy Ltd,750.00
Manchester City Council,Adult Social Care,Bed & Breakfast Acc,05-Sep-23,5105888819,Medlock House Ltd,"7,644.00"
Manchester City Council,Childrens & Education Services,Hire of Premises,05-Sep-23,5105888793,Manchester Vineyard,"1,306.67"
Manchester City Council,Regeneration Finance,Legal Fees,05-Sep-23,5105888785,Francis Taylor Building,525.00
Manchester City Council,Manchester Leisure,Equipment,05-Sep-23,5105888604,Honey Brother Ltd,518.46
Manchester City Council,Adult Social Care,Rents,05-Sep-23,1908211090,LET ME MANCHESTER LTD,"1,895.00"
Manchester City Council,Adult Social Care,Rents,05-Sep-23,1908211098,THE PROPERTY PEOPLE MCR LTD,950.00
Manchester City Council,Adult Social Care,Rents,05-Sep-23,1908211926,THE PROPERTY PEOPLE MCR LTD,"1,240.00"
Manchester City Council,Adult Social Care,Rents,05-Sep-23,1908211927,THE PROPERTY PEOPLE MCR LTD,800.00
Manchester City Council,Adult Social Care,Rents,05-Sep-23,1908211928,THE PROPERTY PEOPLE MCR LTD,650.00
Manchester City Council,Adult Social Care,Rents,05-Sep-23,1908211949,THE PROPERTY PEOPLE MCR LTD,600.00
Manchester City Council,Adult Social Care,Rents,05-Sep-23,1908211950,THE PROPERTY PEOPLE MCR LTD,"1,800.00"
Manchester City Council,Adult Social Care,Rents,05-Sep-23,1908211952,THE PROPERTY PEOPLE MCR LTD,"1,800.00"
Manchester City Council,Childrens & Education Services,Printing,05-Sep-23,1908211088,Oxford University Press,"3,119.00"
Manchester City Council,Highways Services,Legal Fees,05-Sep-23,1908210962,New Law Solicitors,"3,013.64"
Manchester City Council,Manchester Leisure,Compensation Payments,06-Sep-23,1908202177,Clyde & Co,"2,634.50"
Manchester City Council,Corporate Services,Compensation Payments,06-Sep-23,1908210966,Coupland Cavendish t/a,"3,350.00"
Manchester City Council,Environment and Operations,Construction Works,06-Sep-23,5105888996,J.Hopkins (Contractors) Ltd.,"11,900.00"
Manchester City Council,Environment and Operations,Construction Works,06-Sep-23,5105888998,J.Hopkins (Contractors) Ltd.,"1,863.25"
Manchester City Council,Environment and Operations,Construction Works,06-Sep-23,5105889002,J.Hopkins (Contractors) Ltd.,"10,300.00"
Manchester City Council,Environment and Operations,Construction Works,06-Sep-23,5105889003,J.Hopkins (Contractors) Ltd.,"1,269.35"
Manchester City Council,Environment and Operations,Construction Works,06-Sep-23,5105889005,J.Hopkins (Contractors) Ltd.,"9,800.00"
Manchester City Council,Environment and Operations,Construction Works,06-Sep-23,5105889006,J.Hopkins (Contractors) Ltd.,757.64
Manchester City Council,Environment and Operations,Construction Works,06-Sep-23,5105889007,J.Hopkins (Contractors) Ltd.,"9,600.00"
Manchester City Council,Environment and Operations,Construction Works,06-Sep-23,5105889008,J.Hopkins (Contractors) Ltd.,"1,458.41"
Manchester City Council,Environment and Operations,Construction Works,06-Sep-23,5105888999,J.Hopkins (Contractors) Ltd.,"12,354.34"
Manchester City Council,Environment and Operations,Construction Works,06-Sep-23,5105889001,J.Hopkins (Contractors) Ltd.,"11,756.29"
Manchester City Council,Environment and Operations,Construction Works,06-Sep-23,5105888790,Transport for Greater Manchester,902.24
Manchester City Council,Childrens & Education Services,Contract Cleaning External,06-Sep-23,5105889122,Freshwave Cleaning Services Ltd,714.00
Manchester City Council,Housing Revenue Account,Council Dwelling Adaptations,06-Sep-23,5105888989,Pts Plumbing Trade Supplies,"-6,448.44"
Manchester City Council,Manchester Leisure,External repairs and maintenance for buildings,06-Sep-23,5105888747,Groundwork Landscapes Ltd,965.00
Manchester City Council,Manchester Leisure,External repairs and maintenance for buildings,06-Sep-23,5105888786,Ashlea Ltd,656.40
Manchester City Council,Manchester Leisure,Grant and subscriptions awarded,06-Sep-23,5105889011,Moss Side Millennium Powerhouse Ltd,"110,000.00"
Manchester City Council,Manchester Leisure,Grant and subscriptions awarded,06-Sep-23,5105889108,Greater Manchester Police,"25,940.17"
Manchester City Council,Manchester Leisure,Grant and subscriptions awarded,06-Sep-23,5105888956,Ceebee Gold Foundation Intl,500.00
Manchester City Council,Manchester Leisure,Grant and subscriptions awarded,06-Sep-23,5105888939,Skate Manchester CIC,"2,000.00"
Manchester City Council,Childrens & Education Services,Grant and subscriptions awarded,06-Sep-23,5105889060,The Movez Movement,"1,019.00"
Manchester City Council,Childrens & Education Services,Grant and subscriptions awarded,06-Sep-23,5105889063,The Movez Movement,"2,697.50"
Manchester City Council,Manchester Leisure,Grant and subscriptions awarded,06-Sep-23,5105889119,St Michaels and All Angels Church,500.00
Manchester City Council,Manchester Leisure,Grant and subscriptions awarded,06-Sep-23,1700157835,WPHI CIC,"-1,000.00"
Manchester City Council,Manchester Leisure,Grant and subscriptions awarded,06-Sep-23,1908208171,WPHI CIC,"1,000.00"
Manchester City Council,Manchester Leisure,Grant and subscriptions awarded,06-Sep-23,1908214534,WPHI CIC,"1,000.00"
Manchester City Council,Housing Revenue Account,Grant Payments,06-Sep-23,5105889010,The Housing Ombudsman,"88,670.75"
Manchester City Council,Adult Social Care,Home Care ,06-Sep-23,5105888957,Standwalk Ltd,"1,216.70"
Manchester City Council,Adult Social Care,Home Care ,06-Sep-23,5105888994,Standwalk Ltd,"1,317.21"
Manchester City Council,Adult Social Care,Home Care ,06-Sep-23,5105888995,Standwalk Ltd,"2,848.85"
Manchester City Council,Adult Social Care,Home Care ,06-Sep-23,5105889091,Standwalk Ltd,"3,080.81"
Manchester City Council,Adult Social Care,Home Care ,06-Sep-23,5105889093,Standwalk Ltd,529.00
Manchester City Council,Adult Social Care,Home Care ,06-Sep-23,5105889099,Standwalk Ltd,529.00
Manchester City Council,Adult Social Care,Home Care ,06-Sep-23,5105889111,Standwalk Ltd,529.00
Manchester City Council,Chief Executives,I T Provision,06-Sep-23,5105888878,The Networking People (TNP) Ltd,"14,744.44"
Manchester City Council,Regeneration Finance,Licences Purchase,06-Sep-23,5105888829,The Copyright Licensing Agency Ltd,"4,402.00"
Manchester City Council,Chief Executives,Licences Purchase,06-Sep-23,5105888951,ITS Software Systems Ltd,"3,750.00"
Manchester City Council,Childrens & Education Services,Payments for services,06-Sep-23,5105888962,Music Stuff,"471,033.50"
Manchester City Council,Adult Social Care,Payments for services,06-Sep-23,5105888964,Brook,"44,851.65"
Manchester City Council,Chief Executives,Payments to Sub-Contractors,06-Sep-23,5105889024,Redacted Personal Information,534.10
Manchester City Council,Chief Executives,Payments to Sub-Contractors,06-Sep-23,5105889028,Redacted Personal Information,684.00
Manchester City Council,Chief Executives,Payments to Sub-Contractors,06-Sep-23,5105889021,Redacted Personal Information,730.58
Manchester City Council,Chief Executives,Payments to Sub-Contractors,06-Sep-23,5105889016,Redacted Personal Information,"2,984.05"
Manchester City Council,Chief Executives,Payments to Sub-Contractors,06-Sep-23,5105889032,Redacted Personal Information,"1,242.23"
Manchester City Council,Chief Executives,Payments to Sub-Contractors,06-Sep-23,5105889015,Redacted Personal Information,705.00
Manchester City Council,Adult Social Care,Personal needs of client,06-Sep-23,5105889054,Briggs Equipment UK Limited,923.32
Manchester City Council,Housing Revenue Account,Professional fees,06-Sep-23,5105888974,Switch2 Energey Limited,"2,413.46"
Manchester City Council,Housing Revenue Account,Professional fees,06-Sep-23,5105888978,Switch2 Energey Limited,"2,413.46"
Manchester City Council,Adult Social Care,Professional fees,06-Sep-23,5105889026,Tameside Metropolitan Bouough,"2,807.00"
Manchester City Council,Regeneration Finance,Professional fees,06-Sep-23,5105888673,Tep-The Environment Partnership,"1,087.50"
Manchester City Council,Childrens & Education Services,Professional fees,06-Sep-23,5105888938,One Education Ltd,"-25,395.00"
Manchester City Council,Childrens & Education Services,Professional fees,06-Sep-23,5105888940,One Education Ltd,"25,395.00"
Manchester City Council,Regeneration Finance,Professional fees,06-Sep-23,5105888991,Bennetts Associates Architects,"10,358.40"
Manchester City Council,Regeneration Finance,Professional fees,06-Sep-23,5105888992,Bennetts Associates Architects,"4,805.00"
Manchester City Council,Highways Services,Professional fees,06-Sep-23,5105888753,Pell Frischmann Consultants Ltd,"19,320.00"
Manchester City Council,Highways Services,Professional fees,06-Sep-23,5105888868,Pell Frischmann Consultants Ltd,"-2,805.00"
Manchester City Council,Highways Services,Professional fees,06-Sep-23,5105888870,Pell Frischmann Consultants Ltd,"5,610.00"
Manchester City Council,Highways Services,Professional fees,06-Sep-23,5105888891,Pell Frischmann Consultants Ltd,"13,005.00"
Manchester City Council,Manchester Leisure,Professional fees,06-Sep-23,5105889067,Topscan (UK) Limited,"3,375.00"
Manchester City Council,Highways Services,Professional fees,06-Sep-23,5105888385,Hydrock,"9,750.00"
Manchester City Council,Highways Services,Professional fees,06-Sep-23,5105888385,Hydrock,"13,200.00"
Manchester City Council,Manchester Leisure,Refuse Collection,06-Sep-23,5105888710,Ramora Ltd,"2,390.00"
Manchester City Council,Manchester Leisure,Refuse Collection,06-Sep-23,5105888731,Ramora Ltd,"1,461.73"
Manchester City Council,Manchester Leisure,Refuse Collection,06-Sep-23,5105888732,Ramora Ltd,"5,343.54"
Manchester City Council,Childrens & Education Services,Subsistence and Conference Expenses,06-Sep-23,5105889012,Hala Guest House,"2,240.00"
Manchester City Council,Regeneration Finance,Third party payments relating to Voluntary Organisations,06-Sep-23,5105888953,Manchester Young Lives,"21,411.20"
Manchester City Council,Adult Social Care,Third party payments relating to Voluntary Organisations,06-Sep-23,5105888864,Citizens Advice Manchester,"80,000.00"
Manchester City Council,Childrens & Education Services,Third party payments relating to Voluntary Organisations,06-Sep-23,5105889048,The Big Life Company,"10,202.00"
Manchester City Council,Regeneration Finance,Third party payments relating to Voluntary Organisations,06-Sep-23,5105888867,Back On Track,"33,400.00"
Manchester City Council,Childrens & Education Services,Transport Coach Hire,06-Sep-23,5105889074,T/A Schools Direct,"4,657.50"
Manchester City Council,Corporate Services,Works and associated costs for Land and Buildings,06-Sep-23,5105889034,Morgan Sindall C & I Ltd,"1,618,424.59"
Manchester City Council,Corporate Services,Works and associated costs for Land and Buildings,06-Sep-23,5105889022,Rider Levett Bucknall UK Ltd,"12,320.00"
Manchester City Council,Manchester Leisure,Works and associated costs for Land and Buildings,06-Sep-23,5105888858,Cornthwaite Tree Care,750.00
Manchester City Council,Chief Executives,Works and associated costs for Land and Buildings,06-Sep-23,5105889116,Buro Happold Limited,610.00
Manchester City Council,Chief Executives,ClothsUniformLaundry,06-Sep-23,5105889136,Slater Menswear,500.00
Manchester City Council,Chief Executives,Postage,06-Sep-23,5105888963,Royal Mail Group Plc,"33,817.38"
Manchester City Council,Corporate Services,Hire of Equipment,06-Sep-23,5105889139,Flowbird Smart City Uk Ltd,"12,544.10"
Manchester City Council,Adult Social Care,Equipment,06-Sep-23,5105889086,NRS Healthcare,"1,841.80"
Manchester City Council,Adult Social Care,Equipment,06-Sep-23,5105889088,NRS Healthcare,"1,841.80"
Manchester City Council,Adult Social Care,Equipment,06-Sep-23,5105889089,NRS Healthcare,"1,841.80"
Manchester City Council,Adult Social Care,Hire of Premises,06-Sep-23,5105889112,Quaker Trading Ltd,"1,267.52"
Manchester City Council,Corporate Services,Travel Season TLS,06-Sep-23,5105888689,Stagecoach Manchester,670.00
Manchester City Council,Corporate Services,Travel Season TLS,06-Sep-23,5105888690,Stagecoach Manchester,670.00
Manchester City Council,Adult Social Care,Rents,06-Sep-23,5105889092,Ashley Property services,900.00
Manchester City Council,Manchester Leisure,Equipment,06-Sep-23,5105889104,Signs 2 School,750.95
Manchester City Council,Hospitality + Trading Services,Equipment,06-Sep-23,5105889049,Landscape Supply Company,"-1,987.58"
Manchester City Council,Chief Executives,Printing,06-Sep-23,5105888880,t/a R.C.D.,"1,568.31"
Manchester City Council,Adult Social Care,Bed & Breakfast Acc,06-Sep-23,5105888988,Redacted Personal Information,"6,535.00"
Manchester City Council,Manchester Leisure,Special Event,06-Sep-23,5105889009,Street Style Surgery,660.00
Manchester City Council,Manchester Leisure,Hire of Equipment,06-Sep-23,5105888587,Biffa Municipal Limited,"2,611.56"
Manchester City Council,Manchester Leisure,Special Event,06-Sep-23,5105888586,Biffa Municipal Limited,"1,041.60"
Manchester City Council,Corporate Services,Elec Car Lease,06-Sep-23,1700157837,Northumbria Healthcare NHS FT,"-2,479.68"
Manchester City Council,Corporate Services,Elec Car Lease,06-Sep-23,1908214564,Northumbria Healthcare NHS FT,"2,479.68"
Manchester City Council,Adult Social Care,Rents,06-Sep-23,5105889123,Housing Social Ltd,"4,720.00"
Manchester City Council,Adult Social Care,Rents,06-Sep-23,5105889124,Housing Social Ltd,"4,720.00"
Manchester City Council,Manchester Leisure,GRIR,06-Sep-23,5105889142,Manchester Art Gallery,"4,048.00"
Manchester City Council,Childrens & Education Services,Publications,06-Sep-23,5105889120,Hachette UK Distribution,559.20
Manchester City Council,Corporate Services,WPS Awards,06-Sep-23,5105888947,Furniture Resource Centre Ltd,691.75
Manchester City Council,Adult Social Care,Rents,06-Sep-23,5105888934,Houses4Homes 4U Ltd,"9,026.00"
Manchester City Council,Adult Social Care,Bed & Breakfast Acc,06-Sep-23,5105889075,247Hotel.Com,857.50
Manchester City Council,Adult Social Care,Bed & Breakfast Acc,06-Sep-23,5105889080,247Hotel.Com,857.50
Manchester City Council,Adult Social Care,Furniture,06-Sep-23,5105889113,Rtech Group Limited,"7,500.00"
Manchester City Council,Manchester Leisure,Special Event,06-Sep-23,5105888823,Redacted Personal Information,"2,000.00"
Manchester City Council,Adult Social Care,Rents,06-Sep-23,5105888952,Redacted Personal Information,"2,140.00"
Manchester City Council,Manchester Leisure,Agency staff provision,07-Sep-23,5105889354,Manchester Art Gallery,859.74
Manchester City Council,Adult Social Care,Building Materials for direct delivery,07-Sep-23,5105888533,CPD Property Services,"1,625.00"
Manchester City Council,Housing General Fund,Building Works,07-Sep-23,1908215189,Stannah Lift Services Ltd,"2,882.00"
Manchester City Council,Housing General Fund,Building Works,07-Sep-23,1908215190,Stannah Lift Services Ltd,"6,396.00"
Manchester City Council,Housing General Fund,Building Works,07-Sep-23,1908215193,Stannah Lift Services Ltd,"3,153.00"
Manchester City Council,Housing General Fund,Building Works,07-Sep-23,1908215196,Stannah Lift Services Ltd,"6,506.00"
Manchester City Council,Housing General Fund,Building Works,07-Sep-23,1908215197,Stannah Lift Services Ltd,"7,005.00"
Manchester City Council,Housing General Fund,Building Works,07-Sep-23,1908215191,Stannah Lift Services Ltd,"6,857.00"
Manchester City Council,Housing General Fund,Building Works,07-Sep-23,1908215192,Stannah Lift Services Ltd,"1,578.00"
Manchester City Council,Housing General Fund,Building Works,07-Sep-23,1908215195,Stannah Lift Services Ltd,"6,853.00"
Manchester City Council,Housing General Fund,Building Works,07-Sep-23,1908215194,Hoist & Shower Chair Company,"3,105.50"
Manchester City Council,Housing General Fund,Building Works,07-Sep-23,1908215198,Hoist & Shower Chair Company,"2,763.00"
Manchester City Council,Housing General Fund,Building Works,07-Sep-23,1908215199,UPS Building & Maintenance Ltd,"23,823.48"
Manchester City Council,Adult Social Care,Cleaning Equipment and Materials,07-Sep-23,5105889276,Concept Care,"1,376.00"
Manchester City Council,Environment and Operations,Construction Works,07-Sep-23,5105889085,Eric Wright Civil Engineering Limit,"98,363.66"
Manchester City Council,Manchester Leisure,Construction Works,07-Sep-23,5105889082,WSP UK Limited,"9,145.00"
Manchester City Council,Childrens & Education Services,"Consumable items eg Toilet rolls, soap etc",07-Sep-23,1700157838,BRITISH DYSLEXIA ASSOC,-540.00
Manchester City Council,Childrens & Education Services,"Consumable items eg Toilet rolls, soap etc",07-Sep-23,1908210154,BRITISH DYSLEXIA ASSOC,540.00
Manchester City Council,Housing Revenue Account,Council Dwelling Adaptations,07-Sep-23,5105889297,Moores Furniture Group Limited,820.12
Manchester City Council,Housing Revenue Account,Council Dwelling Adaptations,07-Sep-23,5105889298,Moores Furniture Group Limited,"4,100.60"
Manchester City Council,Housing Revenue Account,Council Dwelling Adaptations,07-Sep-23,5105889312,Rexel UK Ltd,"7,858.94"
Manchester City Council,Housing Revenue Account,Council Dwelling Adaptations,07-Sep-23,5105889331,Pts Plumbing Trade Supplies,"3,268.65"
Manchester City Council,Manchester Leisure,External repairs and maintenance for buildings,07-Sep-23,5105888932,Willfab Ltd,"3,500.00"
Manchester City Council,Chief Executives,Funeral and coroner related services,07-Sep-23,5105889241,Redacted Personal Information,600.00
Manchester City Council,Hospitality + Trading Services,Goods purchased for resale in Council outlets,07-Sep-23,5105889260,Obitus,"10,320.00"
Manchester City Council,Hospitality + Trading Services,Goods purchased for resale in Council outlets,07-Sep-23,5105889264,Obitus,"2,077.00"
Manchester City Council,Corporate Services,Grant and subscriptions awarded,07-Sep-23,5105889255,Manchester Settlement,"1,850.00"
Manchester City Council,Manchester Leisure,Grant and subscriptions awarded,07-Sep-23,5105889240,Anson Community Shop,"1,820.00"
Manchester City Council,Manchester Leisure,Grant and subscriptions awarded,07-Sep-23,5105889286,Windrush Defenders Legal CIC,"1,000.00"
Manchester City Council,Adult Social Care,I T Provision,07-Sep-23,5105889224,The Booth Centre,"2,820.00"
Manchester City Council,Adult Social Care,Payments for services,07-Sep-23,5105889294,Somewhere House Ltd,"3,542.68"
Manchester City Council,Childrens & Education Services,Payments for services,07-Sep-23,5105889157,National Offender Mgt Services,"5,576.00"
Manchester City Council,Childrens & Education Services,Payments for services,07-Sep-23,5105889158,National Offender Mgt Services,"1,312.00"
Manchester City Council,Childrens & Education Services,Payments for services,07-Sep-23,5105889285,Beechkeys Limited,"13,569.50"
Manchester City Council,Manchester Leisure,Payments for services,07-Sep-23,5105889291,The Really Wild Ones,"1,250.00"
Manchester City Council,Childrens & Education Services,Payments for services,07-Sep-23,5105889223,The 0161 Project Ltd,"1,560.00"
Manchester City Council,Adult Social Care,Personal needs of client,07-Sep-23,5105889256,James Leckey Design Ltd,"2,887.50"
Manchester City Council,Adult Social Care,Personal needs of client,07-Sep-23,5105889362,AKW Medicare,608.08
Manchester City Council,Adult Social Care,Professional fees,07-Sep-23,1908209703,Redacted Personal Information,"2,000.00"
Manchester City Council,Adult Social Care,Professional fees,07-Sep-23,5105889145,Action First iPeople Ltd,500.00
Manchester City Council,Adult Social Care,Professional fees,07-Sep-23,5105889168,Action First iPeople Ltd,-500.00
Manchester City Council,Chief Executives,Professional fees,07-Sep-23,5105889231,The Manchester Light & Stage,788.00
Manchester City Council,Highways Services,Professional fees,07-Sep-23,5105889254,Wilde Consultants Ltd,"5,801.00"
Manchester City Council,Highways Services,Professional fees,07-Sep-23,5105889254,Wilde Consultants Ltd,"4,432.00"
Manchester City Council,Regeneration Finance,Professional fees,07-Sep-23,5105889230,Colliers International,"1,500.00"
Manchester City Council,Environment and Operations,Professional fees,07-Sep-23,5105889287,Smile Mediation,"2,475.00"
Manchester City Council,Corporate Services,Professional fees,07-Sep-23,5105889319,Glantus UK Ltd,"2,386.88"
Manchester City Council,Manchester Leisure,Professional fees,07-Sep-23,5105889206,Eville & Jones Commercial Services,"8,298.06"
Manchester City Council,Regeneration Finance,Professional fees,07-Sep-23,5105889367,Alan Franklin Builders Limited,634.60
Manchester City Council,Corporate Services,Professional fees,07-Sep-23,5105889199,Pick Everard,"5,915.00"
Manchester City Council,Corporate Services,Professional fees,07-Sep-23,5105889200,Pick Everard,"19,800.00"
Manchester City Council,Chief Executives,Professional fees,07-Sep-23,1908210214,Youth Support,"1,620.00"
Manchester City Council,Regeneration Finance,Professional fees,07-Sep-23,1908208226,Bruntwood Management Services Ltd,"914,636.72"
Manchester City Council,Childrens & Education Services,Supported Accommodation,07-Sep-23,5105889252,Mosscare Housing Ltd,887.36
Manchester City Council,Adult Social Care,Supporting People Payments,07-Sep-23,5105889266,People First Housing Association,"13,833.26"
Manchester City Council,Adult Social Care,Third party payments relating to Voluntary Organisations,07-Sep-23,5105889239,The Shaw Centre,"16,967.36"
Manchester City Council,Adult Social Care,Third party payments relating to Voluntary Organisations,07-Sep-23,5105889288,Great Places Housing Association,"20,096.98"
Manchester City Council,Adult Social Care,Third party payments relating to Voluntary Organisations,07-Sep-23,5105889323,Great Places Housing Association,"20,096.98"
Manchester City Council,Adult Social Care,Third party payments relating to Voluntary Organisations,07-Sep-23,5105889246,Manchester Action On Street Health,"16,686.08"
Manchester City Council,Adult Social Care,Third party payments relating to Voluntary Organisations,07-Sep-23,5105889155,The Depaul Trust,"100,000.00"
Manchester City Council,Adult Social Care,Third party payments relating to Voluntary Organisations,07-Sep-23,5105889262,Change Grow Live,"1,863.21"
Manchester City Council,Adult Social Care,Third party payments relating to Voluntary Organisations,07-Sep-23,5105889296,Quays Housing,"2,974.57"
Manchester City Council,Adult Social Care,Third party payments to Health Authority,07-Sep-23,5105889177,Greater Manchester Mental Health,"11,763.00"
Manchester City Council,Adult Social Care,Third party payments to Health Authority,07-Sep-23,5105889187,Central Mcr Uni Hospital t/a,"-75,261.00"
Manchester City Council,Adult Social Care,Third party payments to Health Authority,07-Sep-23,5105889188,Central Mcr Uni Hospital t/a,"75,261.00"
Manchester City Council,Adult Social Care,Third party payments to Health Authority,07-Sep-23,1908214567,University Hosp Birmingham NHS FT,529.00
Manchester City Council,Adult Social Care,Training and Development,07-Sep-23,5105889277,North West Employers Ltd,"1,500.00"
Manchester City Council,Regeneration Finance,Training and Development,07-Sep-23,5105889318,Pearson Education Ltd,554.40
Manchester City Council,Chief Executives,Transport and Driver Hire,07-Sep-23,5105889193,CD Chauffeur Hire,816.00
Manchester City Council,Regeneration Finance,Travel,07-Sep-23,5105889324,Purcell Architecture Limited,"2,298.77"
Manchester City Council,Manchester Leisure,Vehicle Plant Furniture and Equipment,07-Sep-23,5105889269,thedesignconcept,"27,017.35"
Manchester City Council,Housing Revenue Account,Vehicle Plant Furniture and Equipment,07-Sep-23,5105889000,Aareon UK Ltd,"5,250.00"
Manchester City Council,Housing Revenue Account,Works and associated costs for Land and Buildings,07-Sep-23,5105889077,Faithful & Gould Ltd,"16,046.80"
Manchester City Council,Housing Revenue Account,Works and associated costs for Land and Buildings,07-Sep-23,5105889078,Faithful & Gould Ltd,"6,573.60"
Manchester City Council,Housing Revenue Account,Works and associated costs for Land and Buildings,07-Sep-23,5105889079,Faithful & Gould Ltd,"2,396.00"
Manchester City Council,Childrens Services,Works and associated costs for Land and Buildings,07-Sep-23,5105889090,t/a R.C.D.,887.95
Manchester City Council,Chief Executives,Works and associated costs for Land and Buildings,07-Sep-23,5105889344,Buro Happold Limited,650.00
Manchester City Council,Manchester Leisure,Works and associated costs for Land and Buildings,07-Sep-23,5105889233,Greenwich Leisure Limited,"157,954.04"
Manchester City Council,Corporate Services,Works and associated costs for Land and Buildings,07-Sep-23,5105889324,Purcell Architecture Limited,"35,000.00"
Manchester City Council,Corporate Services,Works and associated costs for Land and Buildings,07-Sep-23,5105889326,Purcell Architecture Limited,"7,000.00"
Manchester City Council,Chief Executives,Counsel Costs,07-Sep-23,1908210206,Redacted Personal Information,500.00
Manchester City Council,Regeneration Finance,Taxi Vehicle Materia,07-Sep-23,5105889232,VIP-System Ltd,662.00
Manchester City Council,Corporate Services,Postage,07-Sep-23,5105888493,Royal Mail Group Plc,"12,015.17"
Manchester City Council,Adult Social Care,Equipment,07-Sep-23,5105889292,Drive Devilbiss Sidhil Ltd,"3,452.00"
Manchester City Council,Chief Executives,ICT Sup & Maintnance,07-Sep-23,5105889278,"Oracle Corporation U.K.Ltd.,",615.06
Manchester City Council,Manchester Leisure,Hire of Equipment,07-Sep-23,5105889189,William G.Search Ltd,925.00
Manchester City Council,Hospitality + Trading Services,Hire of Machinery,07-Sep-23,5105889212,R & M Developments Ltd,"1,073.50"
Manchester City Council,Hospitality + Trading Services,Hire of Machinery,07-Sep-23,5105889213,R & M Developments Ltd,"1,073.50"
Manchester City Council,Manchester Leisure,Publications,07-Sep-23,5105889267,Askews and Holts,882.61
Manchester City Council,Manchester Leisure,Publications,07-Sep-23,5105889268,Askews and Holts,739.81
Manchester City Council,Regeneration Finance,Grounds Maintenance,07-Sep-23,5105889361,Arboricultural Services Treework,500.00
Manchester City Council,Adult Social Care,Equipment,07-Sep-23,5105889203,Morris & Alexander Ltd,"1,732.50"
Manchester City Council,Adult Social Care,Equipment,07-Sep-23,5105889355,Morris & Alexander Ltd,742.20
Manchester City Council,Adult Social Care,Hire of Premises,07-Sep-23,5105889176,Quaker Trading Ltd,558.58
Manchester City Council,Chief Executives,Advertising,07-Sep-23,5105889216,Transport for Greater Manchester,"3,000.00"
Manchester City Council,Manchester Leisure,Gas,07-Sep-23,1700157841,Corona Energy Ltd,"-5,802.00"
Manchester City Council,Manchester Leisure,Gas,07-Sep-23,1700157842,Corona Energy Ltd,"-2,113.30"
Manchester City Council,Manchester Leisure,Gas,07-Sep-23,1700157843,Corona Energy Ltd,"-4,110.09"
Manchester City Council,Manchester Leisure,Gas,07-Sep-23,1700157844,Corona Energy Ltd,"-1,341.85"
Manchester City Council,Manchester Leisure,Gas,07-Sep-23,1700157861,Corona Energy Ltd,"-7,976.91"
Manchester City Council,Manchester Leisure,Gas,07-Sep-23,1700157862,Corona Energy Ltd,"-9,309.80"
Manchester City Council,Manchester Leisure,Gas,07-Sep-23,1700157863,Corona Energy Ltd,"-6,803.10"
Manchester City Council,Manchester Leisure,Gas,07-Sep-23,1700157864,Corona Energy Ltd,"-4,785.51"
Manchester City Council,Manchester Leisure,Gas,07-Sep-23,1700157865,Corona Energy Ltd,"-4,187.86"
Manchester City Council,Manchester Leisure,Gas,07-Sep-23,1700157866,Corona Energy Ltd,"-7,093.32"
Manchester City Council,Manchester Leisure,Gas,07-Sep-23,1700157867,Corona Energy Ltd,"-14,811.19"
Manchester City Council,Manchester Leisure,Gas,07-Sep-23,1700157868,Corona Energy Ltd,"-7,097.02"
Manchester City Council,Manchester Leisure,Gas,07-Sep-23,1700157869,Corona Energy Ltd,"-6,691.65"
Manchester City Council,Manchester Leisure,Gas,07-Sep-23,1700157870,Corona Energy Ltd,"-17,338.78"
Manchester City Council,Manchester Leisure,Gas,07-Sep-23,1700157871,Corona Energy Ltd,"-22,316.56"
Manchester City Council,Manchester Leisure,Gas,07-Sep-23,1700157872,Corona Energy Ltd,"-22,615.32"
Manchester City Council,Manchester Leisure,Gas,07-Sep-23,1700157873,Corona Energy Ltd,"-6,662.07"
Manchester City Council,Manchester Leisure,Gas,07-Sep-23,1700157874,Corona Energy Ltd,"-15,532.61"
Manchester City Council,Manchester Leisure,Gas,07-Sep-23,1700157875,Corona Energy Ltd,"-22,309.64"
Manchester City Council,Manchester Leisure,Gas,07-Sep-23,1908215260,Corona Energy Ltd,"7,588.79"
Manchester City Council,Manchester Leisure,Gas,07-Sep-23,1908215269,Corona Energy Ltd,"1,434.90"
Manchester City Council,Manchester Leisure,Gas,07-Sep-23,1908215271,Corona Energy Ltd,603.24
Manchester City Council,Manchester Leisure,Gas,07-Sep-23,1908215279,Corona Energy Ltd,"2,860.72"
Manchester City Council,Manchester Leisure,Gas,07-Sep-23,1908215347,Corona Energy Ltd,"5,801.96"
Manchester City Council,Manchester Leisure,Gas,07-Sep-23,1908215348,Corona Energy Ltd,"2,205.89"
Manchester City Council,Manchester Leisure,Gas,07-Sep-23,1908215349,Corona Energy Ltd,"6,235.66"
Manchester City Council,Manchester Leisure,Gas,07-Sep-23,1908215350,Corona Energy Ltd,994.80
Manchester City Council,Manchester Leisure,Gas,07-Sep-23,1908215359,Corona Energy Ltd,"6,545.57"
Manchester City Council,Manchester Leisure,Gas,07-Sep-23,1908215363,Corona Energy Ltd,"1,620.70"
Manchester City Council,Manchester Leisure,Gas,07-Sep-23,1908215365,Corona Energy Ltd,"1,319.59"
Manchester City Council,Manchester Leisure,Gas,07-Sep-23,1908215372,Corona Energy Ltd,"4,109.89"
Manchester City Council,Manchester Leisure,Gas,07-Sep-23,1908215373,Corona Energy Ltd,"1,611.08"
Manchester City Council,Manchester Leisure,Gas,07-Sep-23,1908215374,Corona Energy Ltd,"3,751.13"
Manchester City Council,Manchester Leisure,Gas,07-Sep-23,1908215375,Corona Energy Ltd,662.20
Manchester City Council,Manchester Leisure,Gas,07-Sep-23,1908215379,Corona Energy Ltd,575.75
Manchester City Council,Manchester Leisure,Gas,07-Sep-23,1908215383,Corona Energy Ltd,559.12
Manchester City Council,Manchester Leisure,Gas,07-Sep-23,1908215385,Corona Energy Ltd,"1,301.73"
Manchester City Council,Manchester Leisure,Gas,07-Sep-23,1908215389,Corona Energy Ltd,"4,095.28"
Manchester City Council,Manchester Leisure,Gas,07-Sep-23,1908215446,Corona Energy Ltd,625.47
Manchester City Council,Manchester Leisure,Gas,07-Sep-23,1908215522,Corona Energy Ltd,"9,949.32"
Manchester City Council,Manchester Leisure,Gas,07-Sep-23,1908215537,Corona Energy Ltd,"1,539.84"
Manchester City Council,Manchester Leisure,Gas,07-Sep-23,1908215539,Corona Energy Ltd,682.27
Manchester City Council,Manchester Leisure,Gas,07-Sep-23,1908215547,Corona Energy Ltd,"2,401.37"
Manchester City Council,Manchester Leisure,Gas,07-Sep-23,1908215569,Corona Energy Ltd,"6,524.63"
Manchester City Council,Manchester Leisure,Gas,07-Sep-23,1908215570,Corona Energy Ltd,"8,841.48"
Manchester City Council,Manchester Leisure,Gas,07-Sep-23,1908215571,Corona Energy Ltd,"6,095.57"
Manchester City Council,Manchester Leisure,Gas,07-Sep-23,1908215572,Corona Energy Ltd,"5,570.72"
Manchester City Council,Manchester Leisure,Gas,07-Sep-23,1908215573,Corona Energy Ltd,"5,558.68"
Manchester City Council,Manchester Leisure,Gas,07-Sep-23,1908215574,Corona Energy Ltd,"8,303.17"
Manchester City Council,Manchester Leisure,Gas,07-Sep-23,1908215575,Corona Energy Ltd,"7,018.95"
Manchester City Council,Manchester Leisure,Gas,07-Sep-23,1908215576,Corona Energy Ltd,"2,108.03"
Manchester City Council,Manchester Leisure,Gas,07-Sep-23,1908215577,Corona Energy Ltd,896.22
Manchester City Council,Manchester Leisure,Gas,07-Sep-23,1908215578,Corona Energy Ltd,"2,083.09"
Manchester City Council,Manchester Leisure,Gas,07-Sep-23,1908215579,Corona Energy Ltd,"26,604.64"
Manchester City Council,Manchester Leisure,Gas,07-Sep-23,1908215581,Corona Energy Ltd,"7,948.95"
Manchester City Council,Manchester Leisure,Gas,07-Sep-23,1908215582,Corona Energy Ltd,"18,436.30"
Manchester City Council,Manchester Leisure,Gas,07-Sep-23,1908215584,Corona Energy Ltd,"28,003.84"
Manchester City Council,Manchester Leisure,Gas,07-Sep-23,1908215586,Corona Energy Ltd,"19,575.95"
Manchester City Council,Manchester Leisure,Gas,07-Sep-23,1908215588,Corona Energy Ltd,"12,854.50"
Manchester City Council,Manchester Leisure,Gas,07-Sep-23,1908215589,Corona Energy Ltd,"6,675.92"
Manchester City Council,Manchester Leisure,Gas,07-Sep-23,1908215591,Corona Energy Ltd,"4,191.11"
Manchester City Council,Manchester Leisure,Gas,07-Sep-23,1908215593,Corona Energy Ltd,"26,187.44"
Manchester City Council,Manchester Leisure,Gas,07-Sep-23,1908215705,Corona Energy Ltd,"5,039.37"
Manchester City Council,Manchester Leisure,Gas,07-Sep-23,1908215706,Corona Energy Ltd,"4,042.69"
Manchester City Council,Manchester Leisure,Gas,07-Sep-23,1908215710,Corona Energy Ltd,"1,709.41"
Manchester City Council,Manchester Leisure,Gas,07-Sep-23,1908215712,Corona Energy Ltd,"1,645.64"
Manchester City Council,Manchester Leisure,Gas,07-Sep-23,1908215719,Corona Energy Ltd,"1,182.41"
Manchester City Council,Manchester Leisure,Gas,07-Sep-23,1908215720,Corona Energy Ltd,"1,739.95"
Manchester City Council,Manchester Leisure,Gas,07-Sep-23,1908215721,Corona Energy Ltd,680.37
Manchester City Council,Manchester Leisure,Gas,07-Sep-23,1908215729,Corona Energy Ltd,624.99
Manchester City Council,Manchester Leisure,Gas,07-Sep-23,1908215735,Corona Energy Ltd,794.45
Manchester City Council,Manchester Leisure,Gas,07-Sep-23,1908215739,Corona Energy Ltd,"4,469.68"
Manchester City Council,Manchester Leisure,Gas,07-Sep-23,1908215794,Corona Energy Ltd,566.12
Manchester City Council,Manchester Leisure,Gas,07-Sep-23,1908215805,Corona Energy Ltd,680.42
Manchester City Council,Hospitality + Trading Services,Gas,07-Sep-23,1908215263,Corona Energy Ltd,"1,163.79"
Manchester City Council,Hospitality + Trading Services,Gas,07-Sep-23,1908215274,Corona Energy Ltd,"6,414.12"
Manchester City Council,Hospitality + Trading Services,Gas,07-Sep-23,1908215316,Corona Energy Ltd,833.28
Manchester City Council,Hospitality + Trading Services,Gas,07-Sep-23,1908215525,Corona Energy Ltd,"1,228.28"
Manchester City Council,Hospitality + Trading Services,Gas,07-Sep-23,1908215542,Corona Energy Ltd,"5,687.36"
Manchester City Council,Hospitality + Trading Services,Gas,07-Sep-23,1908215632,Corona Energy Ltd,839.95
Manchester City Council,Childrens & Education Services,Gas,07-Sep-23,1700157882,Corona Energy Ltd,-601.06
Manchester City Council,Childrens & Education Services,Gas,07-Sep-23,1700157883,Corona Energy Ltd,"-1,202.46"
Manchester City Council,Childrens & Education Services,Gas,07-Sep-23,1700157888,Corona Energy Ltd,-905.44
Manchester City Council,Childrens & Education Services,Gas,07-Sep-23,1700157889,Corona Energy Ltd,-741.47
Manchester City Council,Childrens & Education Services,Gas,07-Sep-23,1700157890,Corona Energy Ltd,-555.90
Manchester City Council,Childrens & Education Services,Gas,07-Sep-23,1700157893,Corona Energy Ltd,-596.94
Manchester City Council,Childrens & Education Services,Gas,07-Sep-23,1700157894,Corona Energy Ltd,"-1,132.47"
Manchester City Council,Childrens & Education Services,Gas,07-Sep-23,1700157895,Corona Energy Ltd,"-1,746.25"
Manchester City Council,Childrens & Education Services,Gas,07-Sep-23,1700157896,Corona Energy Ltd,"-2,427.80"
Manchester City Council,Childrens & Education Services,Gas,07-Sep-23,1700157897,Corona Energy Ltd,-710.57
Manchester City Council,Childrens & Education Services,Gas,07-Sep-23,1700157898,Corona Energy Ltd,"-1,650.10"
Manchester City Council,Childrens & Education Services,Gas,07-Sep-23,1700157899,Corona Energy Ltd,"-2,406.42"
Manchester City Council,Childrens & Education Services,Gas,07-Sep-23,1700157900,Corona Energy Ltd,-711.68
Manchester City Council,Childrens & Education Services,Gas,07-Sep-23,1700157901,Corona Energy Ltd,-601.84
Manchester City Council,Childrens & Education Services,Gas,07-Sep-23,1700157902,Corona Energy Ltd,"-2,363.29"
Manchester City Council,Childrens & Education Services,Gas,07-Sep-23,1908215728,Corona Energy Ltd,524.71
Manchester City Council,Childrens & Education Services,Gas,07-Sep-23,1908215772,Corona Energy Ltd,540.20
Manchester City Council,Childrens & Education Services,Gas,07-Sep-23,1908215775,Corona Energy Ltd,549.47
Manchester City Council,Childrens & Education Services,Gas,07-Sep-23,1908215781,Corona Energy Ltd,586.57
Manchester City Council,Adult Social Care,Gas,07-Sep-23,1700157856,Corona Energy Ltd,"-5,288.25"
Manchester City Council,Adult Social Care,Gas,07-Sep-23,1908215306,Corona Energy Ltd,"1,733.31"
Manchester City Council,Adult Social Care,Gas,07-Sep-23,1908215355,Corona Energy Ltd,"1,005.85"
Manchester City Council,Adult Social Care,Gas,07-Sep-23,1908215399,Corona Energy Ltd,767.97
Manchester City Council,Adult Social Care,Gas,07-Sep-23,1908215451,Corona Energy Ltd,570.43
Manchester City Council,Adult Social Care,Gas,07-Sep-23,1908215531,Corona Energy Ltd,"5,288.18"
Manchester City Council,Adult Social Care,Gas,07-Sep-23,1908215533,Corona Energy Ltd,605.36
Manchester City Council,Adult Social Care,Gas,07-Sep-23,1908215535,Corona Energy Ltd,510.17
Manchester City Council,Adult Social Care,Gas,07-Sep-23,1908215603,Corona Energy Ltd,"1,667.69"
Manchester City Council,Adult Social Care,Gas,07-Sep-23,1908215698,Corona Energy Ltd,"1,046.25"
Manchester City Council,Adult Social Care,Gas,07-Sep-23,1908215747,Corona Energy Ltd,722.51
Manchester City Council,Adult Social Care,Gas,07-Sep-23,1908215808,Corona Energy Ltd,612.29
Manchester City Council,Housing Revenue Account,Gas,07-Sep-23,1908215258,Corona Energy Ltd,"1,618.95"
Manchester City Council,Housing Revenue Account,Gas,07-Sep-23,1908215259,Corona Energy Ltd,"1,035.24"
Manchester City Council,Housing Revenue Account,Gas,07-Sep-23,1908215276,Corona Energy Ltd,"1,511.68"
Manchester City Council,Housing Revenue Account,Gas,07-Sep-23,1908215295,Corona Energy Ltd,"10,266.75"
Manchester City Council,Housing Revenue Account,Gas,07-Sep-23,1908215302,Corona Energy Ltd,950.32
Manchester City Council,Housing Revenue Account,Gas,07-Sep-23,1908215314,Corona Energy Ltd,500.14
Manchester City Council,Housing Revenue Account,Gas,07-Sep-23,1908215332,Corona Energy Ltd,"1,623.25"
Manchester City Council,Housing Revenue Account,Gas,07-Sep-23,1908215333,Corona Energy Ltd,"1,709.37"
Manchester City Council,Housing Revenue Account,Gas,07-Sep-23,1908215351,Corona Energy Ltd,"1,247.71"
Manchester City Council,Housing Revenue Account,Gas,07-Sep-23,1908215406,Corona Energy Ltd,"1,250.47"
Manchester City Council,Housing Revenue Account,Gas,07-Sep-23,1908215408,Corona Energy Ltd,772.99
Manchester City Council,Housing Revenue Account,Gas,07-Sep-23,1908215412,Corona Energy Ltd,"1,171.42"
Manchester City Council,Housing Revenue Account,Gas,07-Sep-23,1908215415,Corona Energy Ltd,"1,161.84"
Manchester City Council,Housing Revenue Account,Gas,07-Sep-23,1908215432,Corona Energy Ltd,"10,710.39"
Manchester City Council,Housing Revenue Account,Gas,07-Sep-23,1908215434,Corona Energy Ltd,"8,127.68"
Manchester City Council,Housing Revenue Account,Gas,07-Sep-23,1908215520,Corona Energy Ltd,"1,644.12"
Manchester City Council,Housing Revenue Account,Gas,07-Sep-23,1908215521,Corona Energy Ltd,"1,275.86"
Manchester City Council,Housing Revenue Account,Gas,07-Sep-23,1908215544,Corona Energy Ltd,"1,599.45"
Manchester City Council,Housing Revenue Account,Gas,07-Sep-23,1908215563,Corona Energy Ltd,"10,608.58"
Manchester City Council,Housing Revenue Account,Gas,07-Sep-23,1908215595,Corona Energy Ltd,"1,080.43"
Manchester City Council,Housing Revenue Account,Gas,07-Sep-23,1908215628,Corona Energy Ltd,553.25
Manchester City Council,Housing Revenue Account,Gas,07-Sep-23,1908215662,Corona Energy Ltd,"1,741.95"
Manchester City Council,Housing Revenue Account,Gas,07-Sep-23,1908215663,Corona Energy Ltd,"1,864.70"
Manchester City Council,Housing Revenue Account,Gas,07-Sep-23,1908215691,Corona Energy Ltd,"1,366.09"
Manchester City Council,Housing Revenue Account,Gas,07-Sep-23,1908215751,Corona Energy Ltd,556.54
Manchester City Council,Housing Revenue Account,Gas,07-Sep-23,1908215754,Corona Energy Ltd,"1,304.97"
Manchester City Council,Housing Revenue Account,Gas,07-Sep-23,1908215756,Corona Energy Ltd,663.34
Manchester City Council,Housing Revenue Account,Gas,07-Sep-23,1908215760,Corona Energy Ltd,"1,160.52"
Manchester City Council,Housing Revenue Account,Gas,07-Sep-23,1908215763,Corona Energy Ltd,"1,366.23"
Manchester City Council,Housing Revenue Account,Gas,07-Sep-23,1908215798,Corona Energy Ltd,"11,662.06"
Manchester City Council,Housing Revenue Account,Gas,07-Sep-23,1908215799,Corona Energy Ltd,"9,696.43"
Manchester City Council,Regeneration Finance,Gas,07-Sep-23,1700157839,Corona Energy Ltd,"-1,196.98"
Manchester City Council,Regeneration Finance,Gas,07-Sep-23,1700157845,Corona Energy Ltd,-658.60
Manchester City Council,Regeneration Finance,Gas,07-Sep-23,1700157850,Corona Energy Ltd,"-1,627.36"
Manchester City Council,Regeneration Finance,Gas,07-Sep-23,1700157851,Corona Energy Ltd,"-10,667.21"
Manchester City Council,Regeneration Finance,Gas,07-Sep-23,1700157854,Corona Energy Ltd,-790.47
Manchester City Council,Regeneration Finance,Gas,07-Sep-23,1700157855,Corona Energy Ltd,-961.19
Manchester City Council,Regeneration Finance,Gas,07-Sep-23,1908215245,Corona Energy Ltd,"2,243.26"
Manchester City Council,Regeneration Finance,Gas,07-Sep-23,1908215248,Corona Energy Ltd,790.47
Manchester City Council,Regeneration Finance,Gas,07-Sep-23,1908215249,Corona Energy Ltd,961.19
Manchester City Council,Regeneration Finance,Gas,07-Sep-23,1908215253,Corona Energy Ltd,753.30
Manchester City Council,Regeneration Finance,Gas,07-Sep-23,1908215285,Corona Energy Ltd,591.54
Manchester City Council,Regeneration Finance,Gas,07-Sep-23,1908215313,Corona Energy Ltd,528.94
Manchester City Council,Regeneration Finance,Gas,07-Sep-23,1908215318,Corona Energy Ltd,622.82
Manchester City Council,Regeneration Finance,Gas,07-Sep-23,1908215319,Corona Energy Ltd,"1,318.69"
Manchester City Council,Regeneration Finance,Gas,07-Sep-23,1908215323,Corona Energy Ltd,679.85
Manchester City Council,Regeneration Finance,Gas,07-Sep-23,1908215325,Corona Energy Ltd,686.30
Manchester City Council,Regeneration Finance,Gas,07-Sep-23,1908215327,Corona Energy Ltd,"1,190.71"
Manchester City Council,Regeneration Finance,Gas,07-Sep-23,1908215328,Corona Energy Ltd,529.47
Manchester City Council,Regeneration Finance,Gas,07-Sep-23,1908215331,Corona Energy Ltd,828.44
Manchester City Council,Regeneration Finance,Gas,07-Sep-23,1908215336,Corona Energy Ltd,721.07
Manchester City Council,Regeneration Finance,Gas,07-Sep-23,1908215342,Corona Energy Ltd,884.41
Manchester City Council,Regeneration Finance,Gas,07-Sep-23,1908215344,Corona Energy Ltd,"1,060.66"
Manchester City Council,Regeneration Finance,Gas,07-Sep-23,1908215346,Corona Energy Ltd,539.75
Manchester City Council,Regeneration Finance,Gas,07-Sep-23,1908215392,Corona Energy Ltd,650.88
Manchester City Council,Regeneration Finance,Gas,07-Sep-23,1908215405,Corona Energy Ltd,973.51
Manchester City Council,Regeneration Finance,Gas,07-Sep-23,1908215429,Corona Energy Ltd,595.10
Manchester City Council,Regeneration Finance,Gas,07-Sep-23,1908215431,Corona Energy Ltd,"22,302.59"
Manchester City Council,Regeneration Finance,Gas,07-Sep-23,1908215474,Corona Energy Ltd,"1,627.68"
Manchester City Council,Regeneration Finance,Gas,07-Sep-23,1908215476,Corona Energy Ltd,"6,530.23"
Manchester City Council,Regeneration Finance,Gas,07-Sep-23,1908215478,Corona Energy Ltd,"2,140.28"
Manchester City Council,Regeneration Finance,Gas,07-Sep-23,1908215480,Corona Energy Ltd,"1,561.63"
Manchester City Council,Regeneration Finance,Gas,07-Sep-23,1908215482,Corona Energy Ltd,729.48
Manchester City Council,Regeneration Finance,Gas,07-Sep-23,1908215505,Corona Energy Ltd,"2,408.04"
Manchester City Council,Regeneration Finance,Gas,07-Sep-23,1908215507,Corona Energy Ltd,874.18
Manchester City Council,Regeneration Finance,Gas,07-Sep-23,1908215509,Corona Energy Ltd,865.16
Manchester City Council,Regeneration Finance,Gas,07-Sep-23,1908215510,Corona Energy Ltd,790.47
Manchester City Council,Regeneration Finance,Gas,07-Sep-23,1908215515,Corona Energy Ltd,879.11
Manchester City Council,Regeneration Finance,Gas,07-Sep-23,1908215553,Corona Energy Ltd,771.73
Manchester City Council,Regeneration Finance,Gas,07-Sep-23,1908215616,Corona Energy Ltd,504.99
Manchester City Council,Regeneration Finance,Gas,07-Sep-23,1908215626,Corona Energy Ltd,"1,154.09"
Manchester City Council,Regeneration Finance,Gas,07-Sep-23,1908215634,Corona Energy Ltd,616.42
Manchester City Council,Regeneration Finance,Gas,07-Sep-23,1908215636,Corona Energy Ltd,668.18
Manchester City Council,Regeneration Finance,Gas,07-Sep-23,1908215637,Corona Energy Ltd,"1,320.74"
Manchester City Council,Regeneration Finance,Gas,07-Sep-23,1908215645,Corona Energy Ltd,679.52
Manchester City Council,Regeneration Finance,Gas,07-Sep-23,1908215649,Corona Energy Ltd,706.66
Manchester City Council,Regeneration Finance,Gas,07-Sep-23,1908215652,Corona Energy Ltd,"1,436.03"
Manchester City Council,Regeneration Finance,Gas,07-Sep-23,1908215660,Corona Energy Ltd,508.76
Manchester City Council,Regeneration Finance,Gas,07-Sep-23,1908215669,Corona Energy Ltd,939.74
Manchester City Council,Regeneration Finance,Gas,07-Sep-23,1908215679,Corona Energy Ltd,721.76
Manchester City Council,Regeneration Finance,Gas,07-Sep-23,1908215685,Corona Energy Ltd,"1,247.05"
Manchester City Council,Regeneration Finance,Gas,07-Sep-23,1908215689,Corona Energy Ltd,830.39
Manchester City Council,Regeneration Finance,Gas,07-Sep-23,1908215753,Corona Energy Ltd,957.70
Manchester City Council,Regeneration Finance,Gas,07-Sep-23,1908215795,Corona Energy Ltd,845.28
Manchester City Council,Regeneration Finance,Gas,07-Sep-23,1908215797,Corona Energy Ltd,"30,593.81"
Manchester City Council,Manchester Leisure,Electricity,07-Sep-23,1908215817,Corona Energy Ltd,"6,146.01"
Manchester City Council,Manchester Leisure,Special Event,07-Sep-23,5105889084,Manchester Cathedral,"1,500.00"
Manchester City Council,Adult Social Care,Equipment,07-Sep-23,5105889307,Invacare Limited,"11,894.40"
Manchester City Council,Adult Social Care,Equipment,07-Sep-23,5105889208,Drive Devilbiss Healthcare Ltd,"1,615.14"
Manchester City Council,Chief Executives,Counsel Costs,07-Sep-23,1908211089,18 St John Street Chambers,890.00
Manchester City Council,Childrens & Education Services,Rates,07-Sep-23,5105889192,Brighter Beginnings Day Nursery,737.66
Manchester City Council,Manchester Leisure,Special Event,07-Sep-23,5105889140,Greenwich Leisure Limited,840.00
Manchester City Council,Manchester Leisure,Special Event,07-Sep-23,5105889141,Greenwich Leisure Limited,"2,977.00"
Manchester City Council,Manchester Leisure,Special Event,07-Sep-23,5105889377,Redacted Personal Information,500.00
Manchester City Council,Manchester Leisure,Special Event,07-Sep-23,5105889376,Zoolab Limited,"1,890.00"
Manchester City Council,Childrens & Education Services,Publications,07-Sep-23,5105889280,Hachette UK Distribution,"19,582.20"
Manchester City Council,Adult Social Care,Furniture,07-Sep-23,5105889127,Furniture Resource Centre Ltd,"1,475.00"
Manchester City Council,Manchester Leisure,Special Event,07-Sep-23,5105889366,Robin Charles Simpson,576.00
Manchester City Council,Adult Social Care,Equipment,07-Sep-23,5105889274,Herida Healthcare Plc,"2,100.40"
Manchester City Council,Adult Social Care,Rents,07-Sep-23,5105889279,M&D Residential Ltd,"14,684.00"
Manchester City Council,Childrens & Education Services,Day Care Payments,07-Sep-23,5105889248,LITTLE SPROUTS DAY NURSERY,946.00
Manchester City Council,Childrens & Education Services,Day Care Payments,07-Sep-23,5105889249,LITTLE SPROUTS DAY NURSERY,740.00
Manchester City Council,Childrens & Education Services,Day Care Payments,07-Sep-23,5105889250,LITTLE SPROUTS DAY NURSERY,762.40
Manchester City Council,Manchester Leisure,Hire of Equipment,07-Sep-23,5105889087,Arena Group,"10,518.00"
Manchester City Council,Adult Social Care,Rents,07-Sep-23,5105889201,NWA Housing Ltd,"1,245.09"
Manchester City Council,Adult Social Care,Rents,07-Sep-23,1908215943,Latchkey & vault limited,"1,700.00"
Manchester City Council,Adult Social Care,Rents,07-Sep-23,1908215944,New swift management ltd,600.00
Manchester City Council,Adult Social Care,Rents,07-Sep-23,1908215946,Bridgfords Estate and Letting Agent,"2,907.00"
Manchester City Council,Adult Social Care,Rents,07-Sep-23,1908215946,Bridgfords Estate and Letting Agent,"3,850.00"
Manchester City Council,Chief Executives,Agency staff provision,08-Sep-23,5105889592,Eden Brown Synergy,"22,959.47"
Manchester City Council,Adult Social Care,Cleaning Equipment and Materials,08-Sep-23,5105888590,Biffa Waste Services Ltd,"1,700.90"
Manchester City Council,Manchester Leisure,Compensation Payments,08-Sep-23,1908216215,Peasegoods,"1,190.80"
Manchester City Council,Environment and Operations,Construction Works,08-Sep-23,5105889405,Wilde Consultants Ltd,"4,786.50"
Manchester City Council,Adult Social Care,"Consumable items eg Toilet rolls, soap etc",08-Sep-23,5105889395,Redacted Personal Information,"2,257.00"
Manchester City Council,Manchester Leisure,Contract Cleaning External,08-Sep-23,5105889314,Clearview Event Services Limited,"3,386.83"
Manchester City Council,Manchester Leisure,Contract Cleaning External,08-Sep-23,5105889314,Clearview Event Services Limited,"14,050.26"
Manchester City Council,Adult Social Care,Contract Cleaning External,08-Sep-23,5105889502,YD Healthcare Ltd,"1,012.00"
Manchester City Council,Corporate Services,External repairs and maintenance for buildings,08-Sep-23,5105889154,Seddon Construction Ltd,"2,645.03"
Manchester City Council,Regeneration Finance,External repairs and maintenance for buildings,08-Sep-23,5105889381,SMS Solar Maintenance Services,"10,220.35"
Manchester City Council,Regeneration Finance,General Office expenses,08-Sep-23,5105889468,Ove Arup & Partners Ltd,"1,176.47"
Manchester City Council,Hospitality + Trading Services,Goods purchased for resale in Council outlets,08-Sep-23,5105889404,Teleshore (Uk) Ltd,"3,507.50"
Manchester City Council,Adult Social Care,Grant and subscriptions awarded,08-Sep-23,5105889226,Manchester Action On Street Health,"11,098.34"
Manchester City Council,Childrens & Education Services,Grant Payments,08-Sep-23,1908216212,Paypoint,"11,936.95"
Manchester City Council,Chief Executives,I T Provision,08-Sep-23,5105889306,Unifii,"11,715.00"
Manchester City Council,Childrens & Education Services,Internal Repairs and Maintenance for buildings,08-Sep-23,5105889466,NU3PS,"7,535.41"
Manchester City Council,Manchester Leisure,Licences Purchase,08-Sep-23,5105888780,Insight Direct (Uk) Ltd,501.04
Manchester City Council,Adult Social Care,Licences Purchase,08-Sep-23,5105889526,Insight Direct (Uk) Ltd,501.04
Manchester City Council,Adult Social Care,Licences Purchase,08-Sep-23,5105889528,Insight Direct (Uk) Ltd,501.04
Manchester City Council,Chief Executives,Licences Purchase,08-Sep-23,5105889543,Insight Direct (Uk) Ltd,501.04
Manchester City Council,Chief Executives,Machinery and equipment repairs,08-Sep-23,5105889438,Alphatec 2000 Ltd,695.00
Manchester City Council,Childrens & Education Services,Payments for services,08-Sep-23,5105889510,NISAI Virtual Academy,"2,591.66"
Manchester City Council,Adult Social Care,Payments for services,08-Sep-23,5105889497,Kaleidoscope Project,"9,520.00"
Manchester City Council,Manchester Leisure,Payments to Sub-Contractors,08-Sep-23,5105889454,Groundwork Landscapes Ltd,"1,750.00"
Manchester City Council,Childrens & Education Services,Private Finance and Public Private partnership initiatives,08-Sep-23,5105889020,Manchester School Services Limited,"457,087.67"
Manchester City Council,Housing Revenue Account,Professional fees,08-Sep-23,5105889378,Jacobs UK Ltd,"2,970.00"
Manchester City Council,Housing Revenue Account,Professional fees,08-Sep-23,5105889378,Jacobs UK Ltd,"3,630.00"
Manchester City Council,Childrens & Education Services,Professional fees,08-Sep-23,5105889462,One Education Ltd,"509,335.00"
Manchester City Council,Adult Social Care,Professional fees,08-Sep-23,5105889461,JLA Total Care Ltd,"1,622.40"
Manchester City Council,Adult Social Care,Professional fees,08-Sep-23,5105889393,Prepaid Financial Services Limited,"1,523.85"
Manchester City Council,Manchester Leisure,Professional fees,08-Sep-23,5105889534,Redacted Personal Information,700.00
Manchester City Council,Manchester Leisure,Professional fees,08-Sep-23,5105889394,Xtreme,515.00
Manchester City Council,Manchester Leisure,Professional fees,08-Sep-23,5105889397,Xtreme,515.00
Manchester City Council,Regeneration Finance,Professional fees,08-Sep-23,1908208250,Bruntwood Management Services Ltd,"870,274.38"
Manchester City Council,Manchester Leisure,Refuse Collection,08-Sep-23,5105889527,GTS Steam Cleaners,"2,170.68"
Manchester City Council,Adult Social Care,Supported Accommodation,08-Sep-23,5105889509,Places for People Living +,"2,196.70"
Manchester City Council,Adult Social Care,Third party payments relating to Voluntary Organisations,08-Sep-23,5105889444,Great Places Housing Association,"20,096.98"
Manchester City Council,Adult Social Care,Third party payments relating to Voluntary Organisations,08-Sep-23,5105889445,Great Places Housing Association,"20,096.98"
Manchester City Council,Adult Social Care,Third party payments relating to Voluntary Organisations,08-Sep-23,5105889446,Great Places Housing Association,"20,096.98"
Manchester City Council,Adult Social Care,Third party payments relating to Voluntary Organisations,08-Sep-23,5105889465,Places for People Living +,"2,001.09"
Manchester City Council,Adult Social Care,Third party payments relating to Voluntary Organisations,08-Sep-23,5105889487,Places for People Living +,"-2,001.09"
Manchester City Council,Adult Social Care,Third party payments relating to Voluntary Organisations,08-Sep-23,5105889227,Manchester Action On Street Health,"3,924.08"
Manchester City Council,Adult Social Care,Third party payments relating to Voluntary Organisations,08-Sep-23,5105889282,The Depaul Trust,"10,603.50"
Manchester City Council,Childrens & Education Services,Third party payments to other Local Authorities,08-Sep-23,5105889399,Oldham Hulme Grammar School,"6,548.92"
Manchester City Council,Corporate Services,Works and associated costs for Land and Buildings,08-Sep-23,5105889467,Ove Arup & Partners Ltd,"15,129.60"
Manchester City Council,Corporate Services,Works and associated costs for Land and Buildings,08-Sep-23,5105889469,Ove Arup & Partners Ltd,"1,712.88"
Manchester City Council,Corporate Services,Works and associated costs for Land and Buildings,08-Sep-23,5105889470,Ove Arup & Partners Ltd,"8,152.50"
Manchester City Council,Corporate Services,Works and associated costs for Land and Buildings,08-Sep-23,5105889481,Ove Arup & Partners Ltd,"46,762.50"
Manchester City Council,Corporate Services,Works and associated costs for Land and Buildings,08-Sep-23,5105889482,Faithful & Gould Ltd,"37,000.00"
Manchester City Council,Corporate Services,Works and associated costs for Land and Buildings,08-Sep-23,5105889464,R Development Ltd,"82,724.55"
Manchester City Council,Chief Executives,Paper & Envelopes,08-Sep-23,5105889384,Antalis Ltd,759.90
Manchester City Council,Chief Executives,Paper & Envelopes,08-Sep-23,5105889385,Antalis Ltd,-759.90
Manchester City Council,Adult Social Care,Gas,08-Sep-23,5105889210,British Gas Plc,892.96
Manchester City Council,Manchester Leisure,Special Event,08-Sep-23,5105889179,Utilities Design & Planning Ltd,"2,644.24"
Manchester City Council,Regeneration Finance,Rents,08-Sep-23,1908208272,Eric Wright Group Ltd,"96,500.00"
Manchester City Council,Manchester Leisure,Special Event,08-Sep-23,5105889453,Walk The Plank Ltd,"23,588.80"
Manchester City Council,Manchester Leisure,Special Event,08-Sep-23,5105889257,Event Technical Support,864.00
Manchester City Council,Chief Executives,Printing,08-Sep-23,5105889263,Browns CTP Ltd,"2,085.00"
Manchester City Council,Chief Executives,Advertising,08-Sep-23,5105889418,Chartered Institute Legal Exec's,800.00
Manchester City Council,Regeneration Finance,Equipment,08-Sep-23,5105889211,Bennett Workplace Solutions Ltd,505.94
Manchester City Council,Corporate Services,Travel Season TLS,08-Sep-23,5105889320,Stagecoach Manchester,670.00
Manchester City Council,Corporate Services,Travel Season TLS,08-Sep-23,5105889332,Stagecoach Manchester,670.00
Manchester City Council,Adult Social Care,Bed & Breakfast Acc,08-Sep-23,5105889383,Redacted Personal Information,"2,758.00"
Manchester City Council,Adult Social Care,Equipment,08-Sep-23,5105889440,Drive Devilbiss Healthcare Ltd,559.20
Manchester City Council,Chief Executives,Legal Fees,08-Sep-23,5105889315,Russell & Russell Solicitors LLP,"3,019.75"
Manchester City Council,Chief Executives,Legal Fees,08-Sep-23,5105889401,Russell & Russell Solicitors LLP,768.75
Manchester City Council,Chief Executives,Legal Fees,08-Sep-23,5105889406,Russell & Russell Solicitors LLP,"4,466.67"
Manchester City Council,Chief Executives,Legal Fees,08-Sep-23,5105889408,Russell & Russell Solicitors LLP,"5,775.36"
Manchester City Council,Chief Executives,Legal Fees,08-Sep-23,5105889409,Russell & Russell Solicitors LLP,"1,907.20"
Manchester City Council,Chief Executives,Legal Fees,08-Sep-23,5105889412,Russell & Russell Solicitors LLP,"4,768.49"
Manchester City Council,Chief Executives,Legal Fees,08-Sep-23,5105889421,Russell & Russell Solicitors LLP,"7,041.28"
Manchester City Council,Chief Executives,Legal Fees,08-Sep-23,5105889423,Russell & Russell Solicitors LLP,"4,957.00"
Manchester City Council,Chief Executives,Legal Fees,08-Sep-23,5105889428,Russell & Russell Solicitors LLP,"6,384.90"
Manchester City Council,Chief Executives,Legal Fees,08-Sep-23,5105889429,Russell & Russell Solicitors LLP,"3,987.50"
Manchester City Council,Chief Executives,Legal Fees,08-Sep-23,5105889430,Russell & Russell Solicitors LLP,"5,219.78"
Manchester City Council,Chief Executives,Legal Fees,08-Sep-23,5105889431,Russell & Russell Solicitors LLP,"4,241.92"
Manchester City Council,Chief Executives,Legal Fees,08-Sep-23,5105889432,Russell & Russell Solicitors LLP,"5,235.75"
Manchester City Council,Chief Executives,Legal Fees,08-Sep-23,5105889433,Russell & Russell Solicitors LLP,"3,827.75"
Manchester City Council,Chief Executives,Legal Fees,08-Sep-23,5105889434,Russell & Russell Solicitors LLP,"1,837.15"
Manchester City Council,Chief Executives,Legal Fees,08-Sep-23,5105889435,Russell & Russell Solicitors LLP,"4,239.58"
Manchester City Council,Regeneration Finance,Postage,08-Sep-23,5105889417,Locata (Housing Services) Ltd,"1,250.00"
Manchester City Council,Chief Executives,Legal Fees,08-Sep-23,5105889480,11KBW,"3,000.00"
Manchester City Council,Adult Social Care,Bed & Breakfast Acc,08-Sep-23,5105889436,Redacted Personal Information,"4,970.00"
Manchester City Council,Chief Executives,Counsel Costs,08-Sep-23,1908214563,Kenworthy's Chambers,600.00
Manchester City Council,Manchester Leisure,Rents,08-Sep-23,5105889265,Greenwich Leisure Limited,"19,867.80"
Manchester City Council,Hospitality + Trading Services,Vehicle Fuel Costs,08-Sep-23,5105889507,Standard Fuels Oils,"24,756.39"
Manchester City Council,Corporate Services,WPS Awards,08-Sep-23,5105889396,Furniture Resource Centre Ltd,559.60
Manchester City Council,Corporate Services,WPS Awards,08-Sep-23,5105889400,Furniture Resource Centre Ltd,793.92
Manchester City Council,Adult Social Care,Bed & Breakfast Acc,08-Sep-23,5105889382,Medlock House Ltd,"6,370.00"
Manchester City Council,Highways Services,Grounds Maintenance,08-Sep-23,5105889490,Crowdguard Limited,562.00
Manchester City Council,Manchester Leisure,Special Event,08-Sep-23,5105889547,Evolution Education Ltd,"1,250.00"
Manchester City Council,Manchester Leisure,Special Event,08-Sep-23,5105889346,t/a Consulting Limited,"6,750.00"
Manchester City Council,Manchester Leisure,Hire of Equipment,08-Sep-23,1908214542,Outdoor Activities Service,725.00
Manchester City Council,Manchester Leisure,Special Event,08-Sep-23,1908214857,HOPE N J VO5,"3,840.00"
Manchester City Council,Chief Executives,Agency staff provision,11-Sep-23,5105889596,Ashberry Recruitment Ltd,"1,968.30"
Manchester City Council,Childrens Services,Building Works,11-Sep-23,5105889512,Pioneer House High School,"583,288.53"
Manchester City Council,Childrens Services,Building Works,11-Sep-23,5105889329,GJS (Education) Investments Limited,"412,948.56"
Manchester City Council,Manchester Leisure,Compensation Payments,11-Sep-23,1908216214,Driscoll Kingston & Co Ltd � Client,"2,000.00"
Manchester City Council,Manchester Leisure,Compensation Payments,11-Sep-23,1908216229,Driscoll Kingston & Co Ltd � Client,650.00
Manchester City Council,Manchester Leisure,Compensation Payments,11-Sep-23,1908216253,Cheshire Estate And Legal Limited,"7,508.50"
Manchester City Council,Housing Revenue Account,Council Dwelling Adaptations,11-Sep-23,5105889519,Knowsley Lift Services Limited,"37,987.84"
Manchester City Council,Manchester Leisure,External repairs and maintenance for buildings,11-Sep-23,5105889345,Massey & Harris (Engrg) Ltd,"2,350.00"
Manchester City Council,Adult Social Care,Funeral and coroner related services,11-Sep-23,5105889640,Greater Manchester Funeral Service,"1,455.00"
Manchester City Council,Chief Executives,General Office expenses,11-Sep-23,1908214852,Millennium Translations Ltd,"3,439.10"
Manchester City Council,Manchester Leisure,Goods purchased for resale in Council outlets,11-Sep-23,1908216230,Stone Marketing Limited,"1,518.47"
Manchester City Council,Manchester Leisure,Goods purchased for resale in Council outlets,11-Sep-23,1908216987,SARL Macon & Lesquoy,588.93
Manchester City Council,Manchester Leisure,Grant and subscriptions awarded,11-Sep-23,5105889584,St John Ambulance Supplies,"2,200.00"
Manchester City Council,Manchester Leisure,Grant and subscriptions awarded,11-Sep-23,5105889202,Greater Manchester Police,"5,500.00"
Manchester City Council,Adult Social Care,Grant and subscriptions awarded,11-Sep-23,5105888441,Revolving Doors Housing Trust,"49,824.77"
Manchester City Council,Manchester Leisure,Grant and subscriptions awarded,11-Sep-23,5105889552,Beacon Centre,500.00
Manchester City Council,Chief Executives,Grant and subscriptions awarded,11-Sep-23,1908216986,Music Cities Network,"6,730.77"
Manchester City Council,Manchester Leisure,I T Provision,11-Sep-23,5105889609,Siemens Financial Services Ltd,"2,311.91"
Manchester City Council,Regeneration Finance,Internal Repairs and Maintenance for buildings,11-Sep-23,5105888733,EQUANS Services Limited,"184,314.59"
Manchester City Council,Regeneration Finance,Internal Repairs and Maintenance for buildings,11-Sep-23,5105888738,EQUANS Services Limited,"91,972.45"
Manchester City Council,Chief Executives,Licences Purchase,11-Sep-23,5105889504,Trustmarque Solutions Ltd,"1,000.00"
Manchester City Council,Chief Executives,Licences Purchase,11-Sep-23,5105889549,Trustmarque Solutions Ltd,"1,000.00"
Manchester City Council,Childrens & Education Services,Payments for services,11-Sep-23,5105889586,Fairfield Care Ltd,"1,407.84"
Manchester City Council,Childrens & Education Services,Payments for services,11-Sep-23,5105889587,Fairfield Care Ltd,"2,011.88"
Manchester City Council,Childrens & Education Services,Payments for services,11-Sep-23,5105889588,Fairfield Care Ltd,"4,855.68"
Manchester City Council,Childrens & Education Services,Payments for services,11-Sep-23,5105889159,National Offender Mgt Services,"10,168.00"
Manchester City Council,Childrens & Education Services,Payments for services,11-Sep-23,5105889160,National Offender Mgt Services,"7,872.00"
Manchester City Council,Childrens & Education Services,Payments for services,11-Sep-23,5105889181,National Offender Mgt Services,"10,168.00"
Manchester City Council,Childrens & Education Services,Payments for services,11-Sep-23,5105889182,National Offender Mgt Services,"19,274.00"
Manchester City Council,Childrens & Education Services,Payments for services,11-Sep-23,5105889183,National Offender Mgt Services,"25,854.00"
Manchester City Council,Childrens & Education Services,Payments for services,11-Sep-23,5105889184,National Offender Mgt Services,"8,200.00"
Manchester City Council,Childrens & Education Services,Payments for services,11-Sep-23,5105889185,National Offender Mgt Services,"10,168.00"
Manchester City Council,Childrens & Education Services,Payments for services,11-Sep-23,5105889186,National Offender Mgt Services,"25,854.00"
Manchester City Council,Childrens & Education Services,Payments for services,11-Sep-23,5105889593,Meadows Care Ltd,"4,406.43"
Manchester City Council,Childrens & Education Services,Payments for services,11-Sep-23,5105889594,Meadows Care Ltd,"3,963.57"
Manchester City Council,Childrens & Education Services,Payments for services,11-Sep-23,5105889595,Meadows Care Ltd,"4,264.29"
Manchester City Council,Manchester Leisure,Payments to Contractors,11-Sep-23,5105889651,NSL Ltd,"16,663.31"
Manchester City Council,Highways Services,Payments to Sub-Contractors,11-Sep-23,5105889653,Clearway Drainage Systems Ltd,"2,550.00"
Manchester City Council,Manchester Leisure,Payments to Sub-Contractors,11-Sep-23,5105889578,Groundwork & Leisure Services Ltd,"-1,100.00"
Manchester City Council,Manchester Leisure,Payments to Sub-Contractors,11-Sep-23,5105889580,Groundwork & Leisure Services Ltd,"1,100.00"
Manchester City Council,Chief Executives,Payments to Sub-Contractors,11-Sep-23,5105888574,Redacted Personal Information,"1,014.38"
Manchester City Council,Chief Executives,Payments to Sub-Contractors,11-Sep-23,5105889627,Redacted Personal Information,532.77
Manchester City Council,Chief Executives,Payments to Sub-Contractors,11-Sep-23,5105888573,Redacted Personal Information,735.45
Manchester City Council,Chief Executives,Payments to Sub-Contractors,11-Sep-23,5105889623,Redacted Personal Information,697.50
Manchester City Council,Adult Social Care,Personal needs of client,11-Sep-23,5105889513,Tunstall Healthcare (UK) Ltd,"-3,900.00"
Manchester City Council,Adult Social Care,Personal needs of client,11-Sep-23,5105889514,Tunstall Healthcare (UK) Ltd,"3,750.00"
Manchester City Council,Adult Social Care,Personal needs of client,11-Sep-23,5105889515,Tunstall Healthcare (UK) Ltd,"-1,900.00"
Manchester City Council,Adult Social Care,Personal needs of client,11-Sep-23,5105889517,Tunstall Healthcare (UK) Ltd,"1,900.00"
Manchester City Council,Adult Social Care,Personal needs of client,11-Sep-23,5105889518,Tunstall Healthcare (UK) Ltd,"1,900.00"
Manchester City Council,Adult Social Care,Personal needs of client,11-Sep-23,5105889520,Tunstall Healthcare (UK) Ltd,"-1,900.00"
Manchester City Council,Adult Social Care,Personal needs of client,11-Sep-23,5105889562,Tunstall Healthcare (UK) Ltd,"-3,750.00"
Manchester City Council,Adult Social Care,Personal needs of client,11-Sep-23,5105889563,Tunstall Healthcare (UK) Ltd,"3,750.00"
Manchester City Council,Adult Social Care,Personal needs of client,11-Sep-23,5105889591,Doro Care Ltd,"2,304.00"
Manchester City Council,Housing Revenue Account,Private Finance and Public Private partnership initiatives,11-Sep-23,5105889579,Grove Village Ltd,"534,565.01"
Manchester City Council,Manchester Leisure,Professional fees,11-Sep-23,1908216254,Redacted Personal Information,552.45
Manchester City Council,Regeneration Finance,Professional fees,11-Sep-23,5105889605,Ekos Consulting (Uk) Ltd,"-1,717.00"
Manchester City Council,Corporate Services,Professional fees,11-Sep-23,5105888449,Mace Ltd,"4,264.00"
Manchester City Council,Corporate Services,Professional fees,11-Sep-23,5105888492,Mace Ltd,"7,197.30"
Manchester City Council,Highways Services,Professional fees,11-Sep-23,5105889102,Mace Ltd,"4,724.85"
Manchester City Council,Highways Services,Professional fees,11-Sep-23,5105889103,Mace Ltd,"6,941.90"
Manchester City Council,Highways Services,Professional fees,11-Sep-23,5105889106,Mace Ltd,"5,007.00"
Manchester City Council,Highways Services,Professional fees,11-Sep-23,5105889107,Mace Ltd,"8,956.80"
Manchester City Council,Chief Executives,Professional fees,11-Sep-23,5105889602,Manchester Cathedral,950.00
Manchester City Council,Manchester Leisure,Professional fees,11-Sep-23,5105889628,Trafford Signs Ltd,-885.00
Manchester City Council,Regeneration Finance,Professional fees,11-Sep-23,5105889589,P Mcguinness & Co Ltd,"1,551.00"
Manchester City Council,Highways Services,Professional fees,11-Sep-23,5105889195,Wilde Consultants Ltd,"11,815.17"
Manchester City Council,Highways Services,Professional fees,11-Sep-23,5105889196,Wilde Consultants Ltd,"5,462.16"
Manchester City Council,Highways Services,Professional fees,11-Sep-23,5105889197,Wilde Consultants Ltd,"9,913.36"
Manchester City Council,Highways Services,Professional fees,11-Sep-23,5105889198,Wilde Consultants Ltd,"9,162.04"
Manchester City Council,Childrens & Education Services,Professional fees,11-Sep-23,5105889648,Lucy Faithfull Foundation,"4,607.50"
Manchester City Council,Chief Executives,Professional fees,11-Sep-23,1908216179,Forensic Testing Service Ltd,"1,592.80"
Manchester City Council,Chief Executives,Professional fees,11-Sep-23,1908214853,Target Psychology Ltd,"1,210.40"
Manchester City Council,Corporate Services,Professional fees,11-Sep-23,5105889101,Pick Everard,"6,916.00"
Manchester City Council,Corporate Services,Professional fees,11-Sep-23,5105889204,NE1 Procurement Services Limited,"7,692.31"
Manchester City Council,Chief Executives,Professional fees,11-Sep-23,1908214847,Expert Psychology Consultancy Ltd,748.80
Manchester City Council,Chief Executives,Professional fees,11-Sep-23,1908214919,Expert Psychology Consultancy Ltd,"1,252.46"
Manchester City Council,Manchester Leisure,Refuse Collection,11-Sep-23,5105888662,Biffa Municipal Limited,"1,352,583.14"
Manchester City Council,Hospitality + Trading Services,Refuse Collection,11-Sep-23,5105888663,Biffa Municipal Limited,"118,087.86"
Manchester City Council,Regeneration Finance,Removal and Storage of Furniture,11-Sep-23,5105889238,Restore PLC,657.34
Manchester City Council,Adult Social Care,Security,11-Sep-23,5105889556,UNIQUE SPECIALIST SERVICES,"1,404.00"
Manchester City Council,Adult Social Care,Subsistence and Conference Expenses,11-Sep-23,5105889539,EFA London Ltd,823.05
Manchester City Council,Adult Social Care,Subsistence and Conference Expenses,11-Sep-23,1908206708,Innside Manchester TA Lamondo Limit,"4,755.77"
Manchester City Council,Adult Social Care,Subsistence and Conference Expenses,11-Sep-23,1908216153,Innside Manchester,"4,755.76"
Manchester City Council,Adult Social Care,Subsistence and Conference Expenses,11-Sep-23,1908216172,Challenge to Care Ltd,"1,900.00"
Manchester City Council,Manchester Leisure,Supporting People Payments,11-Sep-23,5105888450,4CT Limited,"1,500.00"
Manchester City Council,Manchester Leisure,Supporting People Payments,11-Sep-23,5105889129,Landscape Supply Company,"1,943.82"
Manchester City Council,Manchester Leisure,Supporting People Payments,11-Sep-23,5105889171,Landscape Supply Company,"1,792.36"
Manchester City Council,Manchester Leisure,Supporting People Payments,11-Sep-23,5105889553,Landscape Supply Company,"-1,943.82"
Manchester City Council,Manchester Leisure,Supporting People Payments,11-Sep-23,5105889555,Landscape Supply Company,"-1,792.36"
Manchester City Council,Housing General Fund,Surplus property Acquisitions,11-Sep-23,1908216282,MANDY PETERS SOLICITOR,"12,567.87"
Manchester City Council,Housing General Fund,Surplus property Fees,11-Sep-23,1908216282,MANDY PETERS SOLICITOR,"2,342.00"
Manchester City Council,Adult Social Care,Third party payments relating to Voluntary Organisations,11-Sep-23,1908216255,Redacted Personal Information,"1,000.00"
Manchester City Council,Adult Social Care,Third party payments relating to Voluntary Organisations,11-Sep-23,5105889614,The Big Life Company,"11,596.40"
Manchester City Council,Adult Social Care,Third party payments relating to Voluntary Organisations,11-Sep-23,5105889616,The Big Life Company,"11,596.40"
Manchester City Council,Adult Social Care,Third party payments relating to Voluntary Organisations,11-Sep-23,5105889451,Manchester Womens Aid,"14,284.83"
Manchester City Council,Adult Social Care,Third party payments relating to Voluntary Organisations,11-Sep-23,5105889452,Manchester Womens Aid,"25,421.41"
Manchester City Council,Corporate Services,Works and associated costs for Land and Buildings,11-Sep-23,5105889516,Mace Ltd,"33,298.00"
Manchester City Council,Corporate Services,Works and associated costs for Land and Buildings,11-Sep-23,5105889516,Mace Ltd,680.00
Manchester City Council,Corporate Services,Works and associated costs for Land and Buildings,11-Sep-23,5105889516,Mace Ltd,"7,962.75"
Manchester City Council,Corporate Services,Works and associated costs for Land and Buildings,11-Sep-23,5105889516,Mace Ltd,"7,500.00"
Manchester City Council,Manchester Leisure,Works and associated costs for Land and Buildings,11-Sep-23,5105889576,Groundwork & Leisure Services Ltd,"-3,300.00"
Manchester City Council,Manchester Leisure,Works and associated costs for Land and Buildings,11-Sep-23,5105889577,Groundwork & Leisure Services Ltd,"3,300.00"
Manchester City Council,Corporate Services,Works and associated costs for Land and Buildings,11-Sep-23,5105889569,Groundwork & Leisure Services Ltd,"-7,070.00"
Manchester City Council,Corporate Services,Works and associated costs for Land and Buildings,11-Sep-23,5105889570,Groundwork & Leisure Services Ltd,"7,070.00"
Manchester City Council,Corporate Services,Works and associated costs for Land and Buildings,11-Sep-23,5105889571,Groundwork & Leisure Services Ltd,"-2,800.00"
Manchester City Council,Corporate Services,Works and associated costs for Land and Buildings,11-Sep-23,5105889572,Groundwork & Leisure Services Ltd,"2,800.00"
Manchester City Council,Corporate Services,Works and associated costs for Land and Buildings,11-Sep-23,5105889573,Groundwork & Leisure Services Ltd,"-7,000.00"
Manchester City Council,Corporate Services,Works and associated costs for Land and Buildings,11-Sep-23,5105889575,Groundwork & Leisure Services Ltd,"7,000.00"
Manchester City Council,Corporate Services,Works and associated costs for Land and Buildings,11-Sep-23,5105889485,Mather & Co Limited,"1,250.00"
Manchester City Council,Corporate Services,Works and associated costs for Land and Buildings,11-Sep-23,5105889486,Planit,"3,360.00"
Manchester City Council,Corporate Services,Works and associated costs for Land and Buildings,11-Sep-23,5105889615,R Development Ltd,"-82,724.55"
Manchester City Council,Corporate Services,Works and associated costs for Land and Buildings,11-Sep-23,5105889617,R Development Ltd,"82,724.55"
Manchester City Council,Corporate Services,Works and associated costs for Land and Buildings,11-Sep-23,5105889511,Bam Nuttall Ltd,"402,633.83"
Manchester City Council,Housing Revenue Account,Works and associated costs for Land and Buildings,11-Sep-23,1908216077,Levi Solicitors LLP,"137,000.00"
Manchester City Council,Chief Executives,Counsel Costs,11-Sep-23,1908214855,Redacted Personal Information,"1,012.50"
Manchester City Council,Adult Social Care,Rents,11-Sep-23,1908216286,Redacted Personal Information,"1,250.00"
Manchester City Council,Chief Executives,Counsel Costs,11-Sep-23,1908214913,Redacted Personal Information,900.00
Manchester City Council,Manchester Leisure,ICT Sup & Maintnance,11-Sep-23,5105889603,Equisys Timemaster Ltd,"2,674.31"
Manchester City Council,Manchester Leisure,Hire of Equipment,11-Sep-23,5105889457,Sts Touring Productions Ltd,"2,492.00"
Manchester City Council,Chief Executives,Legal Fees,11-Sep-23,1908216078,Warwickshire County Council,"20,304.61"
Manchester City Council,Corporate Services,Travel Season TLS,11-Sep-23,5105889333,Stagecoach Manchester,670.00
Manchester City Council,Corporate Services,Travel Season TLS,11-Sep-23,5105889336,Stagecoach Manchester,670.00
Manchester City Council,Corporate Services,Travel Season TLS,11-Sep-23,5105889337,Stagecoach Manchester,670.00
Manchester City Council,Adult Social Care,Bed & Breakfast Acc,11-Sep-23,5105889639,Redacted Personal Information,"11,750.00"
Manchester City Council,Chief Executives,Legal Fees,11-Sep-23,5105889620,Russell & Russell Solicitors LLP,"6,297.18"
Manchester City Council,Chief Executives,Legal Fees,11-Sep-23,5105889632,Russell & Russell Solicitors LLP,"6,981.05"
Manchester City Council,Chief Executives,Legal Fees,11-Sep-23,5105889634,Russell & Russell Solicitors LLP,"3,538.50"
Manchester City Council,Chief Executives,Legal Fees,11-Sep-23,5105889635,Russell & Russell Solicitors LLP,"12,894.23"
Manchester City Council,Chief Executives,Legal Fees,11-Sep-23,5105889638,Russell & Russell Solicitors LLP,"1,125.00"
Manchester City Council,Chief Executives,Legal Fees,11-Sep-23,5105889641,Russell & Russell Solicitors LLP,"4,042.00"
Manchester City Council,Chief Executives,Legal Fees,11-Sep-23,5105889642,Russell & Russell Solicitors LLP,"9,589.92"
Manchester City Council,Chief Executives,Legal Fees,11-Sep-23,5105889644,Russell & Russell Solicitors LLP,"4,700.75"
Manchester City Council,Regeneration Finance,Rents,11-Sep-23,1908214548,Savills Commercial Ltd,"1,629.38"
Manchester City Council,Chief Executives,Counsel Costs,11-Sep-23,1908215889,Redacted Personal Information,750.00
Manchester City Council,Regeneration Finance,Storage Costs,11-Sep-23,5105889540,Oasis UK formerly Box-It (NW),"1,057.66"
Manchester City Council,Regeneration Finance,Storage Costs,11-Sep-23,5105889581,Oasis UK formerly Box-It (NW),848.39
Manchester City Council,Regeneration Finance,Subvention Payments,11-Sep-23,5105888070,Manchester Creative Digital Assets,"53,406.00"
Manchester City Council,Regeneration Finance,Subvention Payments,11-Sep-23,5105888381,Manchester Creative Digital Assets,"60,569.00"
Manchester City Council,Regeneration Finance,Subvention Payments,11-Sep-23,5105888382,Manchester Creative Digital Assets,"252,746.00"
Manchester City Council,Regeneration Finance,Subvention Payments,11-Sep-23,5105888383,Manchester Creative Digital Assets,"241,952.00"
Manchester City Council,Regeneration Finance,Subvention Payments,11-Sep-23,5105888384,Manchester Creative Digital Assets,"231,815.00"
Manchester City Council,Adult Social Care,Rents,11-Sep-23,5105889604,Eeven Homes Ltd.,"18,053.71"
Manchester City Council,Chief Executives,Counsel Costs,11-Sep-23,1908214854,Central Chambers,750.00
Manchester City Council,Chief Executives,Counsel Costs,11-Sep-23,1908215884,Central Chambers,650.00
Manchester City Council,Adult Social Care,Rents,11-Sep-23,5105889630,Houses4Homes 4U Ltd,"9,026.00"
Manchester City Council,Chief Executives,Legal Fees,11-Sep-23,5105889611,Isherwood Legal Limited,"1,056.00"
Manchester City Council,Childrens & Education Services,Hire of Premises,11-Sep-23,5105889537,Manchester Vineyard,"2,556.67"
Manchester City Council,Childrens & Education Services,Hire of Premises,11-Sep-23,5105889538,Manchester Vineyard,"1,032.50"
Manchester City Council,Adult Social Care,Rents,11-Sep-23,5105889633,NWA Housing Ltd,"1,363.67"
Manchester City Council,Adult Social Care,Furniture,11-Sep-23,5105889548,Rtech Group Limited,"7,500.00"
Manchester City Council,Adult Social Care,Furniture,11-Sep-23,5105889585,Rtech Group Limited,"8,441.67"
Manchester City Council,Housing General Fund,Income Tax Payable,11-Sep-23,1908216282,MANDY PETERS SOLICITOR,-552.95
Manchester City Council,Adult Social Care,Rents,11-Sep-23,1908216283,THE PROPERTY PEOPLE MCR LTD,"1,800.00"
Manchester City Council,Adult Social Care,Rents,11-Sep-23,1908216284,THE PROPERTY PEOPLE MCR LTD,995.00
Manchester City Council,Adult Social Care,Rents,11-Sep-23,1908216985,Let Me Manchester Limited,"1,200.00"
Manchester City Council,Adult Social Care,Furniture,11-Sep-23,1908216106,The Whiteluck Group Ltd,"1,500.00"
Manchester City Council,Adult Social Care,Furniture,11-Sep-23,1908216151,The Whiteluck Group Ltd,"1,200.00"
Manchester City Council,Adult Social Care,Furniture,11-Sep-23,1908216251,The Whiteluck Group Ltd,"2,250.00"
Manchester City Council,Adult Social Care,Furniture,11-Sep-23,1908216252,The Whiteluck Group Ltd,"1,800.00"
Manchester City Council,Manchester Leisure,Hire of Equipment,11-Sep-23,1908214928,Arc Stage Hire Ltd,"2,250.00"
Manchester City Council,Chief Executives,Counsel Costs,11-Sep-23,1908214923,Field Court Chambers,500.00
Manchester City Council,Manchester Leisure,Special Event,11-Sep-23,1908216176,Manchester Young Lives Ltd,600.00
Manchester City Council,Manchester Leisure,Special Event,11-Sep-23,1908216989,International Doping Tests &,"21,564.70"
Manchester City Council,Chief Executives,Agency staff provision,12-Sep-23,5105889679,Adecco Uk Ltd,"1,600.00"
Manchester City Council,Chief Executives,Agency staff provision,12-Sep-23,5105889698,Adecco Uk Ltd,"1,685.40"
Manchester City Council,Chief Executives,Agency staff provision,12-Sep-23,5105889700,Adecco Uk Ltd,"2,000.00"
Manchester City Council,Chief Executives,Agency staff provision,12-Sep-23,5105889677,Tripod Partners,"6,837.90"
Manchester City Council,Manchester Leisure,Compensation Payments,12-Sep-23,1908216962,Bond Turner Solicitors,"5,500.00"
Manchester City Council,Manchester Leisure,"Consumable items eg Toilet rolls, soap etc",12-Sep-23,5105888708,Biffa Municipal Limited,"3,750.00"
Manchester City Council,Manchester Leisure,Contract Cleaning External,12-Sep-23,5105888705,Biffa Municipal Limited,"8,666.66"
Manchester City Council,Housing Revenue Account,Council Dwelling Adaptations,12-Sep-23,5105889684,EQUANS Regeneration Limited,"202,805.24"
Manchester City Council,Housing Revenue Account,Council Dwelling Adaptations,12-Sep-23,5105889685,EQUANS Regeneration Limited,"-202,805.24"
Manchester City Council,Manchester Leisure,Grant and subscriptions awarded,12-Sep-23,5105889738,Greater Manchester Youth,"7,500.00"
Manchester City Council,Manchester Leisure,Grant and subscriptions awarded,12-Sep-23,5105889739,Greater Manchester Youth,"7,500.00"
Manchester City Council,Manchester Leisure,Grant and subscriptions awarded,12-Sep-23,5105889769,Malawi Heritage UK limited,500.00
Manchester City Council,Manchester Leisure,Grant and subscriptions awarded,12-Sep-23,5105889770,Malawi Heritage UK limited,-500.00
Manchester City Council,Manchester Leisure,Grant and subscriptions awarded,12-Sep-23,5105889691,Redacted Personal Information,645.00
Manchester City Council,Manchester Leisure,Grant and subscriptions awarded,12-Sep-23,5105889691,Redacted Personal Information,645.00
Manchester City Council,Chief Executives,Grant Payments,12-Sep-23,5105889753,Oldham Borough Council,"7,245.00"
Manchester City Council,Manchester Leisure,I T Provision,12-Sep-23,5105889657,Artifax Software Ltd,"4,048.00"
Manchester City Council,Manchester Leisure,Library Materials Acquisition,12-Sep-23,1908217059,Askews and Holts,958.66
Manchester City Council,Manchester Leisure,Library Materials Acquisition,12-Sep-23,1908217079,Askews and Holts,723.79
Manchester City Council,Manchester Leisure,Library Materials Acquisition,12-Sep-23,1908217082,Askews and Holts,700.38
Manchester City Council,Adult Social Care,Payments for services,12-Sep-23,5105889757,Kaleidoscope Project,"2,800.00"
Manchester City Council,Manchester Leisure,Payments to Contractors,12-Sep-23,5105888661,Biffa Municipal Limited,"214,658.77"
Manchester City Council,Manchester Leisure,Payments to Sub-Contractors,12-Sep-23,5105888670,Biffa Municipal Limited,"29,032.83"
Manchester City Council,Highways Services,Payments to Sub-Contractors,12-Sep-23,5105889498,Rhodes and Sons Construction Ltd,"2,034.45"
Manchester City Council,Adult Social Care,Personal needs of client,12-Sep-23,5105889649,Telecare Services Association,"2,200.00"
Manchester City Council,Adult Social Care,Personal needs of client,12-Sep-23,5105889787,Care & Independence Ltd,"1,968.00"
Manchester City Council,Chief Executives,Professional fees,12-Sep-23,5105889773,Capita Business Services Ltd,700.00
Manchester City Council,Childrens & Education Services,Professional fees,12-Sep-23,5105889783,One Education Ltd,"2,400.00"
Manchester City Council,Childrens & Education Services,Professional fees,12-Sep-23,5105889789,One Education Ltd,"75,000.00"
Manchester City Council,Childrens & Education Services,Professional fees,12-Sep-23,5105889810,One Education Ltd,790.00
Manchester City Council,Manchester Leisure,Professional fees,12-Sep-23,1908214911,Chiltern Costs Consultants,546.00
Manchester City Council,Manchester Leisure,Refuse Collection,12-Sep-23,5105889661,GTS Steam Cleaners,605.50
Manchester City Council,Manchester Leisure,Refuse Collection,12-Sep-23,5105888664,Biffa Municipal Limited,"54,780.54"
Manchester City Council,Manchester Leisure,Refuse Collection,12-Sep-23,5105888669,Biffa Municipal Limited,"7,942.28"
Manchester City Council,Manchester Leisure,Refuse Collection,12-Sep-23,5105888706,Biffa Municipal Limited,"10,591.15"
Manchester City Council,Manchester Leisure,Refuse Collection,12-Sep-23,5105888707,Biffa Municipal Limited,"30,206.50"
Manchester City Council,Manchester Leisure,Responsive Repairs Work,12-Sep-23,5105889686,EQUANS Regeneration Limited,"22,559.97"
Manchester City Council,Manchester Leisure,Responsive Repairs Work,12-Sep-23,5105889687,EQUANS Regeneration Limited,"104,127.98"
Manchester City Council,Manchester Leisure,Responsive Repairs Work,12-Sep-23,5105889688,EQUANS Regeneration Limited,"100,461.16"
Manchester City Council,Manchester Leisure,Responsive Repairs Work,12-Sep-23,5105889689,EQUANS Regeneration Limited,"217,296.66"
Manchester City Council,Manchester Leisure,Responsive Repairs Work,12-Sep-23,5105889690,EQUANS Regeneration Limited,"42,903.42"
Manchester City Council,Manchester Leisure,Responsive Repairs Work,12-Sep-23,5105889721,EQUANS Regeneration Limited,"38,064.19"
Manchester City Council,Manchester Leisure,Responsive Repairs Work,12-Sep-23,5105889722,EQUANS Regeneration Limited,"91,677.06"
Manchester City Council,Manchester Leisure,Responsive Repairs Work,12-Sep-23,5105889723,EQUANS Regeneration Limited,"57,096.90"
Manchester City Council,Manchester Leisure,Responsive Repairs Work,12-Sep-23,5105889724,EQUANS Regeneration Limited,"552,170.14"
Manchester City Council,Manchester Leisure,Responsive Repairs Work,12-Sep-23,5105889725,EQUANS Regeneration Limited,"35,187.37"
Manchester City Council,Childrens & Education Services,Supported Accommodation,12-Sep-23,5105888728,Mosscare Housing Ltd,887.36
Manchester City Council,Childrens & Education Services,Third party payments relating to Voluntary Organisations,12-Sep-23,5105889808,One Education Ltd,"13,035.00"
Manchester City Council,Regeneration Finance,Training and Development,12-Sep-23,5105889782,Ncfe,"1,070.00"
Manchester City Council,Regeneration Finance,Training and Development,12-Sep-23,5105889732,Pearson Education Ltd,"1,415.70"
Manchester City Council,Regeneration Finance,Training and Development,12-Sep-23,5105889788,Pearson Education Ltd,"1,188.00"
Manchester City Council,Corporate Services,Training and Development,12-Sep-23,1908217225,CHARTERED INSTITUTE OF LE,"2,210.00"
Manchester City Council,Corporate Services,Training and Development,12-Sep-23,1908217302,BPP PROFESSIONAL EDUCATIO,627.60
Manchester City Council,Childrens & Education Services,Transport Coach Hire,12-Sep-23,5105889813,APTSL,"125,919.36"
Manchester City Council,Childrens & Education Services,Transport Coach Hire,12-Sep-23,5105889798,New City Cars Ltd,"-13,538.32"
Manchester City Council,Childrens & Education Services,Transport Coach Hire,12-Sep-23,5105889821,New City Cars Ltd,"13,538.32"
Manchester City Council,Childrens & Education Services,Transport Taxis,12-Sep-23,5105889703,High Bee Ltd,"2,700.00"
Manchester City Council,Corporate Services,Vehicle Costs,12-Sep-23,1700157907,Cyclescheme Ltd,-633.33
Manchester City Council,Corporate Services,Vehicle Costs,12-Sep-23,1700157918,Cyclescheme Ltd,-833.33
Manchester City Council,Corporate Services,Vehicle Costs,12-Sep-23,1908216963,Cyclescheme Ltd,"2,666.67"
Manchester City Council,Corporate Services,Vehicle Costs,12-Sep-23,1908216964,Cyclescheme Ltd,"6,357.49"
Manchester City Council,Corporate Services,Vehicle Costs,12-Sep-23,1908217180,Cyclescheme Ltd,833.33
Manchester City Council,Manchester Leisure,Vehicle Plant Furniture and Equipment,12-Sep-23,5105889896,H Jenkinson & Co Ltd.,"27,455.34"
Manchester City Council,Manchester Leisure,Works and associated costs for Land and Buildings,12-Sep-23,5105889662,Kompan Ltd,"13,267.17"
Manchester City Council,Corporate Services,Works and associated costs for Land and Buildings,12-Sep-23,5105889895,H Jenkinson & Co Ltd.,"4,075.00"
Manchester City Council,Chief Executives,Works and associated costs for Land and Buildings,12-Sep-23,5105889795,Keelagher Okey Associates Ltd t/a,760.00
Manchester City Council,Corporate Services,Works and associated costs for Land and Buildings,12-Sep-23,5105889741,EQUANS Regeneration Limited,"91,496.38"
Manchester City Council,Corporate Services,Works and associated costs for Land and Buildings,12-Sep-23,5105889742,EQUANS Regeneration Limited,"238,759.41"
Manchester City Council,Corporate Services,Works and associated costs for Land and Buildings,12-Sep-23,5105889743,EQUANS Regeneration Limited,"104,509.78"
Manchester City Council,Corporate Services,Works and associated costs for Land and Buildings,12-Sep-23,5105889744,EQUANS Regeneration Limited,"103,207.07"
Manchester City Council,Corporate Services,Works and associated costs for Land and Buildings,12-Sep-23,5105889745,EQUANS Regeneration Limited,"158,277.35"
Manchester City Council,Corporate Services,Works and associated costs for Land and Buildings,12-Sep-23,5105889746,EQUANS Regeneration Limited,"662,617.42"
Manchester City Council,Chief Executives,Works and associated costs for Land and Buildings,12-Sep-23,5105889711,Charcoalblue LLP,"16,000.00"
Manchester City Council,Chief Executives,Works and associated costs for Land and Buildings,12-Sep-23,5105889776,CMS Cameron McKenna,744.00
Manchester City Council,Chief Executives,Works and associated costs for Land and Buildings,12-Sep-23,5105889777,CMS Cameron McKenna,"1,609.56"
Manchester City Council,Chief Executives,Works and associated costs for Land and Buildings,12-Sep-23,5105889792,CMS Cameron McKenna,739.02
Manchester City Council,Housing Revenue Account,Works and associated costs for Land and Buildings,12-Sep-23,1908217368,Northern Gateway (FEC) No.10 Limite,"9,084.68"
Manchester City Council,Housing Revenue Account,Works and associated costs for Land and Buildings,12-Sep-23,1908217368,Northern Gateway (FEC) No.10 Limite,"454,234.00"
Manchester City Council,Chief Executives,Works and associated costs for Land and Buildings,12-Sep-23,5105889561,Bowmer & Kirkland Ltd,"330,083.29"
Manchester City Council,Adult Social Care,Rents,12-Sep-23,1908217364,Redacted Personal Information,"6,142.20"
Manchester City Council,Adult Social Care,Rents,12-Sep-23,1908217364,Redacted Personal Information,"7,728.60"
Manchester City Council,Corporate Services,Postage,12-Sep-23,5105889681,Royal Mail Group Plc,"7,911.89"
Manchester City Council,Corporate Services,Postage,12-Sep-23,5105889682,Royal Mail Group Plc,"5,634.56"
Manchester City Council,Corporate Services,Postage,12-Sep-23,5105889683,Royal Mail Group Plc,870.00
Manchester City Council,Insurance Fund,Misc Insrnce Premium,12-Sep-23,5105889714,Zurich Insurance,"11,615.77"
Manchester City Council,Manchester Leisure,Hire of Equipment,12-Sep-23,5105889701,Flowbird Smart City Uk Ltd,"1,085.00"
Manchester City Council,Regeneration Finance,Equipment,12-Sep-23,5105889893,H Jenkinson & Co Ltd.,"2,110.00"
Manchester City Council,Hospitality + Trading Services,Hire of Equipment,12-Sep-23,5105889774,William G.Search Ltd,-530.00
Manchester City Council,Hospitality + Trading Services,Rents,12-Sep-23,1908214550,CBRE Ltd (Glasgow),"38,006.00"
Manchester City Council,Hospitality + Trading Services,Rents,12-Sep-23,1908214552,CBRE Ltd (Glasgow),"46,921.50"
Manchester City Council,Chief Executives,Printing,12-Sep-23,5105889261,Browns CTP Ltd,"18,465.00"
Manchester City Council,Highways Services,Legal Fees,12-Sep-23,1908214555,Department For Work & Pensions,766.00
Manchester City Council,Highways Services,Legal Fees,12-Sep-23,1908214912,Department For Work & Pensions,744.00
Manchester City Council,Corporate Services,Travel Season TLS,12-Sep-23,5105888548,Stagecoach Manchester,670.00
Manchester City Council,Corporate Services,Travel Season TLS,12-Sep-23,5105888721,Stagecoach Manchester,670.00
Manchester City Council,Corporate Services,Travel Season TLS,12-Sep-23,5105888722,Stagecoach Manchester,670.00
Manchester City Council,Corporate Services,Travel Season TLS,12-Sep-23,5105889334,Stagecoach Manchester,670.00
Manchester City Council,Corporate Services,Travel Season TLS,12-Sep-23,5105889339,Stagecoach Manchester,670.00
Manchester City Council,Chief Executives,Mobilephone Charges,12-Sep-23,5105889800,O2 (UK) Ltd,"2,173.32"
Manchester City Council,Chief Executives,PCard Recovery,12-Sep-23,1908218880,Healthwork Ltd,"1,560.00"
Manchester City Council,Chief Executives,PCard Recovery,12-Sep-23,1908218920,Healthwork Ltd,"1,020.00"
Manchester City Council,Chief Executives,PCard Recovery,12-Sep-23,1908219001,Healthwork Ltd,"1,560.00"
Manchester City Council,Chief Executives,PCard Recovery,12-Sep-23,1908219009,Healthwork Ltd,600.00
Manchester City Council,Adult Social Care,Rents,12-Sep-23,5105889747,MJ Rental Ltd,"93,834.90"
Manchester City Council,Chief Executives,Hire of Equipment,12-Sep-23,5105888807,Universal Live,"1,000.00"
Manchester City Council,Manchester Leisure,Reuse credits,12-Sep-23,5105888702,Biffa Municipal Limited,"7,950.00"
Manchester City Council,Manchester Leisure,Reuse credits,12-Sep-23,5105888703,Biffa Municipal Limited,"4,550.00"
Manchester City Council,Manchester Leisure,Reuse credits,12-Sep-23,5105888704,Biffa Municipal Limited,"10,333.34"
Manchester City Council,Manchester Leisure,Equipment,12-Sep-23,5105889766,One Green World,650.00
Manchester City Council,Chief Executives,Printing,12-Sep-23,5105889707,NB Colour Print Limited,640.00
Manchester City Council,Manchester Leisure,Equipment,12-Sep-23,5105889674,Cromwell Polythene Limited,"10,883.60"
Manchester City Council,Adult Social Care,Rents,12-Sep-23,5105889809,K L Properties,"17,383.00"
Manchester City Council,Adult Social Care,Rents,12-Sep-23,5105889730,Housing Social Ltd,"4,720.00"
Manchester City Council,Childrens & Education Services,Foster Payments,12-Sep-23,5105889740,Foster Talk,"8,083.30"
Manchester City Council,Adult Social Care,Rents,12-Sep-23,5105889734,Eeven Homes Ltd.,"16,824.86"
Manchester City Council,Manchester Leisure,Special Event,12-Sep-23,5105889772,Redacted Personal Information,"1,330.00"
Manchester City Council,Chief Executives,Printing,12-Sep-23,5105889860,Ricoh UK Ltd.,"25,554.63"
Manchester City Council,Highways Services,Vehicle Fuel Costs,12-Sep-23,5105889676,Standard Fuels Oils,793.54
Manchester City Council,Corporate Services,WPS Awards,12-Sep-23,5105889443,Furniture Resource Centre Ltd,645.92
Manchester City Council,Corporate Services,WPS Awards,12-Sep-23,5105889672,Furniture Resource Centre Ltd,807.83
Manchester City Council,Corporate Services,WPS Awards,12-Sep-23,5105889673,Furniture Resource Centre Ltd,576.35
Manchester City Council,Corporate Services,WPS Awards,12-Sep-23,5105889709,Furniture Resource Centre Ltd,807.81
Manchester City Council,Highways Services,Grounds Maintenance,12-Sep-23,5105889823,Conservation Building Services Ltd,"1,160.00"
Manchester City Council,Adult Social Care,Rents,12-Sep-23,5105889650,M&D Residential Ltd,"14,684.00"
Manchester City Council,Adult Social Care,Bed & Breakfast Acc,12-Sep-23,5105889796,VSP BEAUCLIFFE LTD,"104,460.00"
Manchester City Council,Chief Executives,Printing,12-Sep-23,5105889607,The Purple Company (UK) Ltd,525.00
Manchester City Council,Adult Social Care,Rents,12-Sep-23,5105889715,NWA Housing Ltd,"1,067.22"
Manchester City Council,Adult Social Care,Furniture,12-Sep-23,5105889712,Rtech Group Limited,"9,504.17"
Manchester City Council,Adult Social Care,Furniture,12-Sep-23,5105889713,Rtech Group Limited,"4,450.00"
Manchester City Council,Adult Social Care,Rents,12-Sep-23,5105889797,VSPG Housing Ltd,"31,799.00"
Manchester City Council,Childrens & Education Services,Legal Fees,12-Sep-23,1908217335,HAVEN HOLIDAYS,"1,136.00"
Manchester City Council,Childrens & Education Services,Bed & Breakfast Acc,12-Sep-23,1908217306,REST&RECHARGE,"6,750.00"
Manchester City Council,Childrens & Education Services,Bed & Breakfast Acc,12-Sep-23,1908217313,REST&RECHARGE,"1,687.50"
Manchester City Council,Childrens & Education Services,Bed & Breakfast Acc,12-Sep-23,1908217314,ROOMS4NOW MY-PLACES,"1,531.00"
Manchester City Council,Childrens & Education Services,Bed & Breakfast Acc,12-Sep-23,1908217332,VICTORIA PARK  RE,"2,100.00"
Manchester City Council,Manchester Leisure,Special Event,12-Sep-23,1908217366,International Doping Tests & Manage,"12,913.65"
Manchester City Council,Childrens & Education Services,First Home Grant,12-Sep-23,1908217347,GRADED DOMESTIC APPLIANCE,594.00
Manchester City Council,Chief Executives,Agency staff provision,13-Sep-23,5105890015,Sellick Partnership (Legal) Ltd,"21,392.64"
Manchester City Council,Chief Executives,Agency staff provision,13-Sep-23,5105889912,Pertemps Professional Recruitment L,"16,317.95"
Manchester City Council,Chief Executives,Agency staff provision,13-Sep-23,5105889913,Pertemps Professional Recruitment L,"15,522.56"
Manchester City Council,Manchester Leisure,Building Materials for direct delivery,13-Sep-23,5105889887,Cromwell Polythene Limited,"1,036.80"
Manchester City Council,Manchester Leisure,Building Materials for direct delivery,13-Sep-23,5105889888,Cromwell Polythene Limited,"1,999.20"
Manchester City Council,Highways Services,Building Materials for direct delivery,13-Sep-23,5105889941,STANDARD SIGNS & TRAFFIC SYSTEMS,564.00
Manchester City Council,Regeneration Finance,Cleaning Equipment and Materials,13-Sep-23,5105889359,Arrow County Supplies,602.08
Manchester City Council,Manchester Leisure,Compensation Payments,13-Sep-23,1908217359,Peasegoods,"4,000.00"
Manchester City Council,Manchester Leisure,Compensation Payments,13-Sep-23,1908217363,Bond Turner Solicitors,"6,750.00"
Manchester City Council,Manchester Leisure,Compensation Payments,13-Sep-23,1908217185,Nicholson Jones Sutton Solicitors,"9,187.00"
Manchester City Council,Manchester Leisure,Compensation Payments,13-Sep-23,1908217356,Driscoll Kingston & Co Ltd,750.00
Manchester City Council,Manchester Leisure,Compensation Payments,13-Sep-23,1908217365,Driscoll Kingston & Co Ltd,"11,000.00"
Manchester City Council,Environment and Operations,Construction Works,13-Sep-23,5105889985,Bethell Construction Ltd,"50,734.20"
Manchester City Council,Adult Social Care,"Consumable items eg Toilet rolls, soap etc",13-Sep-23,5105889938,All 4 Pets Limited,992.00
Manchester City Council,Regeneration Finance,"Consumable items eg Toilet rolls, soap etc",13-Sep-23,5105889785,Wilkinson Bros,960.00
Manchester City Council,Regeneration Finance,Contract Cleaning External,13-Sep-23,5105889909,Westgrove Support Services Ltd,544.49
Manchester City Council,Housing Revenue Account,Council Dwelling Adaptations,13-Sep-23,5105888973,Pollock Lifts Ltd,"12,563.00"
Manchester City Council,Housing Revenue Account,Council Dwelling Adaptations,13-Sep-23,5105888643,Stannah Lift Services Ltd,"4,069.00"
Manchester City Council,Manchester Leisure,Environmental Services,13-Sep-23,5105890029,CPD Property Services,"2,750.00"
Manchester City Council,Manchester Leisure,Environmental Services,13-Sep-23,5105890030,CPD Property Services,800.00
Manchester City Council,Adult Social Care,External repairs and maintenance for buildings,13-Sep-23,5105888545,T F Jones Property Services Ltd,544.46
Manchester City Council,Adult Social Care,External repairs and maintenance for buildings,13-Sep-23,5105888546,T F Jones Property Services Ltd,615.47
Manchester City Council,Adult Social Care,Grant and subscriptions awarded,13-Sep-23,5105889881,Manchester Womens Aid,"16,666.69"
Manchester City Council,Adult Social Care,Grant and subscriptions awarded,13-Sep-23,5105889851,Street Support Network Ltd,"3,000.00"
Manchester City Council,Adult Social Care,Grant and subscriptions awarded,13-Sep-23,5105889903,On The Out CIC,"20,985.58"
Manchester City Council,Adult Social Care,Grant and subscriptions awarded,13-Sep-23,5105889904,On The Out CIC,"3,113.60"
Manchester City Council,Adult Social Care,Grant and subscriptions awarded,13-Sep-23,5105889905,On The Out CIC,"2,147.58"
Manchester City Council,Manchester Leisure,Grant and subscriptions awarded,13-Sep-23,1908216945,Heathfield User Group Committee,500.00
Manchester City Council,Childrens & Education Services,Grant Payments,13-Sep-23,1908217357,Paypoint,"12,899.69"
Manchester City Council,Chief Executives,I T Provision,13-Sep-23,5105888789,Rushton Electronic Solutions Ltd,755.00
Manchester City Council,Childrens & Education Services,Payments for services,13-Sep-23,5105889827,Sense,"2,876.79"
Manchester City Council,Adult Social Care,Payments for services,13-Sep-23,5105890006,Big Life Centres,695.00
Manchester City Council,Childrens & Education Services,Payments for services,13-Sep-23,5105889837,Thompsons Academy Ltd,"111,909.24"
Manchester City Council,Manchester Leisure,Payments to Sub-Contractors,13-Sep-23,5105889873,Rigby Taylor Ltd,"1,950.00"
Manchester City Council,Highways Services,Payments to Sub-Contractors,13-Sep-23,5105888582,Northern Marking Limited,"5,095.14"
Manchester City Council,Highways Services,Payments to Sub-Contractors,13-Sep-23,5105888593,Northern Marking Limited,"4,637.46"
Manchester City Council,Highways Services,Payments to Sub-Contractors,13-Sep-23,5105888596,Northern Marking Limited,"3,600.00"
Manchester City Council,Highways Services,Payments to Sub-Contractors,13-Sep-23,5105888597,Northern Marking Limited,"2,700.00"
Manchester City Council,Highways Services,Payments to Sub-Contractors,13-Sep-23,5105888598,Northern Marking Limited,"4,500.00"
Manchester City Council,Manchester Leisure,Payments to Sub-Contractors,13-Sep-23,5105889501,Greenfingers Landscape Ltd,"11,836.54"
Manchester City Council,Childrens & Education Services,Personal needs of client,13-Sep-23,5105889728,Furniture Resource Centre Ltd,934.69
Manchester City Council,Regeneration Finance,Professional fees,13-Sep-23,5105889819,Savills (UK) Ltd,"5,000.00"
Manchester City Council,Regeneration Finance,Professional fees,13-Sep-23,5105888654,Tep-The Environment Partnership,"7,840.00"
Manchester City Council,Adult Social Care,Professional fees,13-Sep-23,5105889828,Manchester Mind,"15,000.00"
Manchester City Council,Adult Social Care,Professional fees,13-Sep-23,5105889897,ANS Group PLC,"1,400.00"
Manchester City Council,Manchester Leisure,Professional fees,13-Sep-23,5105890001,Redacted Personal Information,500.00
Manchester City Council,Manchester Leisure,Professional fees,13-Sep-23,5105890002,Redacted Personal Information,"1,600.00"
Manchester City Council,Manchester Leisure,Professional fees,13-Sep-23,5105890005,Redacted Personal Information,600.00
Manchester City Council,Chief Executives,Professional fees,13-Sep-23,1908216946,Target Psychology Ltd,599.75
Manchester City Council,Housing Revenue Account,Professional fees,13-Sep-23,1908217116,Morgan Sindall Property,"10,299.63"
Manchester City Council,Manchester Leisure,Professional fees,13-Sep-23,5105890025,Redacted Personal Information,800.10
Manchester City Council,Childrens & Education Services,Professional fees,13-Sep-23,5105889876,MIC Media Ltd,"5,900.00"
Manchester City Council,Manchester Leisure,Professional fees,13-Sep-23,5105889842,Go Bounce Play,657.50
Manchester City Council,Manchester Leisure,Professional fees,13-Sep-23,5105890004,Redacted Personal Information,"1,500.00"
Manchester City Council,Chief Executives,Professional fees,13-Sep-23,1908216949,Hart Psychological Consulting,796.33
Manchester City Council,Manchester Leisure,Refuse Collection,13-Sep-23,5105890023,4Imprint,"1,648.98"
Manchester City Council,Manchester Leisure,Security,13-Sep-23,5105889866,Showsec International Ltd,"49,247.30"
Manchester City Council,Manchester Leisure,Security,13-Sep-23,5105889868,Showsec International Ltd,"4,270.99"
Manchester City Council,Adult Social Care,Subsistence and Conference Expenses,13-Sep-23,5105889830,Parkside Medical Centre,600.00
Manchester City Council,Housing General Fund,Surplus property Fees,13-Sep-23,1908215895,HMD SOLICITORS,545.00
Manchester City Council,Childrens & Education Services,Third party payments relating to Voluntary Organisations,13-Sep-23,5105889863,Healthy Body Healthy Mind CIC,"1,428.00"
Manchester City Council,Childrens & Education Services,Third party payments relating to Voluntary Organisations,13-Sep-23,5105889864,Healthy Body Healthy Mind CIC,"1,428.00"
Manchester City Council,Adult Social Care,Third party payments to Health Authority,13-Sep-23,5105889861,Central Mcr Uni Hospital t/a,"3,040.58"
Manchester City Council,Regeneration Finance,Training and Development,13-Sep-23,5105889884,Pearson Education Ltd,871.20
Manchester City Council,Corporate Services,Works and associated costs for Land and Buildings,13-Sep-23,5105889072,EQUANS Regeneration Limited,"72,366.16"
Manchester City Council,Corporate Services,Works and associated costs for Land and Buildings,13-Sep-23,5105889984,Warden Construction Ltd,"43,966.12"
Manchester City Council,Corporate Services,Works and associated costs for Land and Buildings,13-Sep-23,1908216220,Real Control Solutions Limited,960.00
Manchester City Council,Chief Executives,Counsel Costs,13-Sep-23,1908216954,Redacted Personal Information,716.67
Manchester City Council,Regeneration Finance,Taxi Vehicle Materia,13-Sep-23,5105889973,VIP-System Ltd,"1,750.48"
Manchester City Council,Regeneration Finance,Taxi Vehicle Materia,13-Sep-23,5105889974,VIP-System Ltd,"2,194.78"
Manchester City Council,Regeneration Finance,Taxi Vehicle Materia,13-Sep-23,5105889975,VIP-System Ltd,"-3,076.05"
Manchester City Council,Regeneration Finance,Taxi Vehicle Materia,13-Sep-23,5105889976,VIP-System Ltd,"-4,844.51"
Manchester City Council,Adult Social Care,Rents,13-Sep-23,5105889990,B & A Properties,625.00
Manchester City Council,Manchester Leisure,Electricity,13-Sep-23,5105889816,Switch2 Energey Limited,571.17
Manchester City Council,Hospitality + Trading Services,Hire of Machinery,13-Sep-23,5105889977,R & M Developments Ltd,"1,073.50"
Manchester City Council,Hospitality + Trading Services,Hire of Machinery,13-Sep-23,5105889978,R & M Developments Ltd,"1,073.50"
Manchester City Council,Manchester Leisure,Equipment,13-Sep-23,5105889878,Eagle Containers Ltd,795.00
Manchester City Council,Chief Executives,Legal Fees,13-Sep-23,5105889867,No 5 Chambers Ltd,"1,500.00"
Manchester City Council,Manchester Leisure,Hire of Machinery,13-Sep-23,5105889869,Bradshaw Lawnmover Engineers,"1,452.00"
Manchester City Council,Manchester Leisure,Counsel Costs,13-Sep-23,5105889948,Redacted Personal Information,"1,750.00"
Manchester City Council,Chief Executives,Legal Fees,13-Sep-23,5105889972,Warwickshire County Council,700.95
Manchester City Council,Chief Executives,Legal Fees,13-Sep-23,5105889979,Warwickshire County Council,"1,324.98"
Manchester City Council,Corporate Services,Travel Season TLS,13-Sep-23,5105889833,Stagecoach Manchester,670.00
Manchester City Council,Adult Social Care,Equipment,13-Sep-23,5105890007,Drive Devilbiss Healthcare Ltd,"1,188.47"
Manchester City Council,Regeneration Finance,Rents,13-Sep-23,1908209708,Savills Commercial Ltd,"113,023.25"
Manchester City Council,Chief Executives,Legal Fees,13-Sep-23,5105889854,Weightmans LLP Solicitors,"2,981.00"
Manchester City Council,Chief Executives,Legal Fees,13-Sep-23,5105889871,Weightmans LLP Solicitors,"2,921.52"
Manchester City Council,Chief Executives,Legal Fees,13-Sep-23,5105889910,Weightmans LLP Solicitors,"8,484.75"
Manchester City Council,Chief Executives,Legal Fees,13-Sep-23,5105889921,Weightmans LLP Solicitors,638.50
Manchester City Council,Chief Executives,Legal Fees,13-Sep-23,5105889932,Weightmans LLP Solicitors,"3,061.00"
Manchester City Council,Chief Executives,Legal Fees,13-Sep-23,5105889954,Weightmans LLP Solicitors,"2,293.77"
Manchester City Council,Chief Executives,Legal Fees,13-Sep-23,5105889980,Weightmans LLP Solicitors,"1,847.00"
Manchester City Council,Chief Executives,Legal Fees,13-Sep-23,5105889991,Weightmans LLP Solicitors,"2,212.00"
Manchester City Council,Chief Executives,Legal Fees,13-Sep-23,5105889992,Weightmans LLP Solicitors,"2,925.00"
Manchester City Council,Chief Executives,Legal Fees,13-Sep-23,5105889993,Weightmans LLP Solicitors,"11,659.80"
Manchester City Council,Chief Executives,Legal Fees,13-Sep-23,5105889995,Weightmans LLP Solicitors,"3,750.75"
Manchester City Council,Chief Executives,Legal Fees,13-Sep-23,5105889996,Weightmans LLP Solicitors,939.50
Manchester City Council,Chief Executives,Legal Fees,13-Sep-23,5105889998,Weightmans LLP Solicitors,"4,254.05"
Manchester City Council,Chief Executives,Legal Fees,13-Sep-23,5105889999,Weightmans LLP Solicitors,"4,341.25"
Manchester City Council,Chief Executives,Legal Fees,13-Sep-23,5105890027,Weightmans LLP Solicitors,"2,390.00"
Manchester City Council,Adult Social Care,Equipment,13-Sep-23,5105889826,Osprey Healthcare Ltd,"1,180.00"
Manchester City Council,Manchester Leisure,Special Event,13-Sep-23,5105889856,SilverbackUk,"1,212.00"
Manchester City Council,Chief Executives,Counsel Costs,13-Sep-23,1908216970,Kenworthy's Chambers,600.00
Manchester City Council,Corporate Services,Gym Membership,13-Sep-23,1908217360,Greenwich Leisure Limited,"2,400.00"
Manchester City Council,Chief Executives,Hire of Equipment,13-Sep-23,5105888808,Universal Live,575.00
Manchester City Council,Childrens & Education Services,Foster Payments,13-Sep-23,5105889852,Foster Talk,"3,397.68"
Manchester City Council,Adult Social Care,Rents,13-Sep-23,5105889853,District Homes Cic,"6,836.29"
Manchester City Council,Chief Executives,Counsel Costs,13-Sep-23,1908216951,Central Chambers,800.00
Manchester City Council,Hospitality + Trading Services,Vehicle Fuel Costs,13-Sep-23,5105890010,Standard Fuels Oils,"20,983.38"
Manchester City Council,Hospitality + Trading Services,Vehicle Fuel Costs,13-Sep-23,5105890021,Standard Fuels Oils,"18,461.81"
Manchester City Council,Corporate Services,Bank Charges,13-Sep-23,1908217367,Pay360 Ltd,"9,983.68"
Manchester City Council,Chief Executives,Legal Fees,13-Sep-23,5105889875,Isherwood Legal Limited,"1,248.00"
Manchester City Council,Adult Social Care,Bed & Breakfast Acc,13-Sep-23,5105889831,Manchester Stay Hotel,"20,570.00"
Manchester City Council,Adult Social Care,Furniture,13-Sep-23,5105889832,Rtech Group Limited,"16,566.67"
Manchester City Council,Adult Social Care,Furniture,13-Sep-23,5105889859,Rtech Group Limited,"4,341.68"
Manchester City Council,Adult Social Care,Rents,13-Sep-23,5105889916,The Whiteluck Group,"17,850.00"
Manchester City Council,Adult Social Care,Rents,13-Sep-23,5105889917,The Whiteluck Group,"17,850.00"
Manchester City Council,Adult Social Care,Rents,13-Sep-23,5105889981,The Whiteluck Group,"1,680.00"
Manchester City Council,Manchester Leisure,Water - Metered,13-Sep-23,1700157940,UNITED UTILITIES WATER,-838.11
Manchester City Council,Manchester Leisure,Water - Metered,13-Sep-23,1908210010,UNITED UTILITIES WATER,838.11
Manchester City Council,Highways Services,Legal Fees,13-Sep-23,1908217358,JPH Medicolegal Ltd,500.00
Manchester City Council,Chief Executives,Agency staff provision,14-Sep-23,5105890034,Gatenby Sanderson,"7,035.00"
Manchester City Council,Corporate Services,Agency staff provision,14-Sep-23,5105890195,Michael Page International,672.00
Manchester City Council,Chief Executives,Agency staff provision,14-Sep-23,5105890318,Buckingham Futures Limited,"2,397.60"
Manchester City Council,Corporate Services,Agency staff provision,14-Sep-23,5105890206,Osbourne Thomas Ltd,"5,666.67"
Manchester City Council,Highways Services,Building Materials for direct delivery,14-Sep-23,5105890260,TARMAC,741.03
Manchester City Council,Highways Services,Building Materials for direct delivery,14-Sep-23,5105890271,TARMAC,979.92
Manchester City Council,Highways Services,Building Materials for direct delivery,14-Sep-23,5105890280,TARMAC,994.54
Manchester City Council,Highways Services,Building Materials for direct delivery,14-Sep-23,5105890284,TARMAC,"1,569.81"
Manchester City Council,Highways Services,Building Materials for direct delivery,14-Sep-23,5105890288,TARMAC,"1,211.49"
Manchester City Council,Highways Services,Building Materials for direct delivery,14-Sep-23,5105890293,TARMAC,"2,715.48"
Manchester City Council,Highways Services,Building Materials for direct delivery,14-Sep-23,5105890294,TARMAC,977.48
Manchester City Council,Highways Services,Building Materials for direct delivery,14-Sep-23,5105890300,TARMAC,"1,262.68"
Manchester City Council,Chief Executives,Child Care Vouchers,14-Sep-23,1908219262,HM Revenue & Customs,565.67
Manchester City Council,Adult Social Care,Cleaning Equipment and Materials,14-Sep-23,5105888625,Arrow County Supplies,666.64
Manchester City Council,Manchester Leisure,Compensation Payments,14-Sep-23,1908219280,Peasegoods,"10,000.00"
Manchester City Council,Manchester Leisure,Compensation Payments,14-Sep-23,1908219296,Antony Hodari Holding Ltd,"6,750.00"
Manchester City Council,Manchester Leisure,Compensation Payments,14-Sep-23,1908219295,McDermott Smith Law,"2,500.00"
Manchester City Council,Environment and Operations,Construction Works,14-Sep-23,5105889987,Dowhigh Ltd,"50,100.00"
Manchester City Council,Environment and Operations,Construction Works,14-Sep-23,5105889989,Dowhigh Ltd,767.55
Manchester City Council,Environment and Operations,Construction Works,14-Sep-23,5105890248,J.Hopkins (Contractors) Ltd.,"12,166.94"
Manchester City Council,Environment and Operations,Construction Works,14-Sep-23,5105890250,J.Hopkins (Contractors) Ltd.,"5,650.00"
Manchester City Council,Environment and Operations,Construction Works,14-Sep-23,5105890252,J.Hopkins (Contractors) Ltd.,"30,087.64"
Manchester City Council,Environment and Operations,Construction Works,14-Sep-23,5105890254,J.Hopkins (Contractors) Ltd.,"35,100.00"
Manchester City Council,Environment and Operations,Construction Works,14-Sep-23,5105890255,J.Hopkins (Contractors) Ltd.,"16,873.78"
Manchester City Council,Environment and Operations,Construction Works,14-Sep-23,5105890256,J.Hopkins (Contractors) Ltd.,"23,950.00"
Manchester City Council,Environment and Operations,Construction Works,14-Sep-23,5105890263,J.Hopkins (Contractors) Ltd.,"28,877.06"
Manchester City Council,Environment and Operations,Construction Works,14-Sep-23,5105890264,J.Hopkins (Contractors) Ltd.,"29,750.00"
Manchester City Council,Environment and Operations,Construction Works,14-Sep-23,5105890266,J.Hopkins (Contractors) Ltd.,"6,761.35"
Manchester City Council,Environment and Operations,Construction Works,14-Sep-23,5105890269,J.Hopkins (Contractors) Ltd.,"78,000.00"
Manchester City Council,Environment and Operations,Construction Works,14-Sep-23,5105890274,J.Hopkins (Contractors) Ltd.,"1,605.29"
Manchester City Council,Environment and Operations,Construction Works,14-Sep-23,5105890279,J.Hopkins (Contractors) Ltd.,"14,800.00"
Manchester City Council,Environment and Operations,Construction Works,14-Sep-23,5105890283,J.Hopkins (Contractors) Ltd.,"2,351.29"
Manchester City Council,Environment and Operations,Construction Works,14-Sep-23,5105890285,J.Hopkins (Contractors) Ltd.,"15,750.00"
Manchester City Council,Environment and Operations,Construction Works,14-Sep-23,5105890286,J.Hopkins (Contractors) Ltd.,"13,769.96"
Manchester City Council,Environment and Operations,Construction Works,14-Sep-23,5105890290,J.Hopkins (Contractors) Ltd.,"45,400.00"
Manchester City Council,Environment and Operations,Construction Works,14-Sep-23,5105890295,J.Hopkins (Contractors) Ltd.,"7,797.72"
Manchester City Council,Housing Revenue Account,Council Dwelling Adaptations,14-Sep-23,5105890115,Pts Plumbing Trade Supplies,"1,397.68"
Manchester City Council,Housing Revenue Account,Council Dwelling Adaptations,14-Sep-23,5105890117,Pts Plumbing Trade Supplies,"2,795.36"
Manchester City Council,Housing Revenue Account,Council Dwelling Adaptations,14-Sep-23,5105890192,Life Environmental Services,"-1,500.00"
Manchester City Council,Chief Executives,Funeral and coroner related services,14-Sep-23,5105890059,Northern Care Alliance NHS FT,"1,233.00"
Manchester City Council,Adult Social Care,Grant and subscriptions awarded,14-Sep-23,5105890134,The Booth Centre,"10,121.08"
Manchester City Council,Manchester Leisure,Grant and subscriptions awarded,14-Sep-23,5105890191,Chorlton Central Church,500.00
Manchester City Council,Adult Social Care,Grant and subscriptions awarded,14-Sep-23,5105890307,Supporting People In Need,"5,500.00"
Manchester City Council,Manchester Leisure,Grant and subscriptions awarded,14-Sep-23,5105890321,Lightime CIC,"1,159.56"
Manchester City Council,Manchester Leisure,Grant and subscriptions awarded,14-Sep-23,5105890104,He-Art,500.00
Manchester City Council,Manchester Leisure,Grant and subscriptions awarded,14-Sep-23,5105890320,St Marks United Reformed Church,"4,250.00"
Manchester City Council,Adult Social Care,I T Provision,14-Sep-23,5105890062,Insight Direct (Uk) Ltd,773.40
Manchester City Council,Adult Social Care,Payments for services,14-Sep-23,5105890205,Holgate House,"1,645.74"
Manchester City Council,Childrens & Education Services,Payments for services,14-Sep-23,5105890188,Beechkeys Limited,"19,209.60"
Manchester City Council,Manchester Leisure,Payments to Sub-Contractors,14-Sep-23,5105890069,The Arboricultural Association,-990.00
Manchester City Council,Manchester Leisure,Payments to Sub-Contractors,14-Sep-23,5105890071,The Arboricultural Association,990.00
Manchester City Council,Manchester Leisure,Payments to Sub-Contractors,14-Sep-23,5105890072,The Arboricultural Association,-990.00
Manchester City Council,Manchester Leisure,Payments to Sub-Contractors,14-Sep-23,5105890073,The Arboricultural Association,990.00
Manchester City Council,Highways Services,Payments to Sub-Contractors,14-Sep-23,5105890131,Utilities Design & Planning Ltd,"2,100.00"
Manchester City Council,Highways Services,Payments to Sub-Contractors,14-Sep-23,5105890219,Utilities Design & Planning Ltd,"2,000.00"
Manchester City Council,Manchester Leisure,Payments to Sub-Contractors,14-Sep-23,5105890299,Arboricultural Services Treework,500.00
Manchester City Council,Chief Executives,Payments to Sub-Contractors,14-Sep-23,5105890111,Redacted Personal Information,"1,482.65"
Manchester City Council,Chief Executives,Payments to Sub-Contractors,14-Sep-23,5105890176,Yousef Safari,654.50
Manchester City Council,Chief Executives,Payments to Sub-Contractors,14-Sep-23,5105890181,Redacted Personal Information,"3,673.13"
Manchester City Council,Adult Social Care,Personal needs of client,14-Sep-23,5105890200,Mangar International Ltd/Winncare,"5,250.00"
Manchester City Council,Adult Social Care,Personal needs of client,14-Sep-23,5105890105,Etac Ltd,"3,472.00"
Manchester City Council,Adult Social Care,Personal needs of client,14-Sep-23,5105889899,Illingworth Ingham (M/cR),"1,923.26"
Manchester City Council,Adult Social Care,Personal needs of client,14-Sep-23,5105890097,Illingworth Ingham (M/cR),"-1,923.26"
Manchester City Council,Adult Social Care,Personal needs of client,14-Sep-23,5105890114,Illingworth Ingham (M/cR),"1,923.26"
Manchester City Council,Adult Social Care,Personal needs of client,14-Sep-23,5105889923,Care & Independence Ltd,"1,968.00"
Manchester City Council,Adult Social Care,Personal needs of client,14-Sep-23,5105889924,Care & Independence Ltd,"1,560.00"
Manchester City Council,Childrens & Education Services,Personal needs of client,14-Sep-23,5105890066,Furniture Resource Centre Ltd,632.99
Manchester City Council,Childrens & Education Services,Personal needs of client,14-Sep-23,1908219982,MC Managerial Services Ltd,"1,176.00"
Manchester City Council,Manchester Leisure,Professional fees,14-Sep-23,5105890065,Experian Limited,"1,137.20"
Manchester City Council,Regeneration Finance,Professional fees,14-Sep-23,5105890297,H.M. Land Registry,"1,721.00"
Manchester City Council,Corporate Services,Professional fees,14-Sep-23,5105890009,Price Waterhouse Coopers LLP,"5,000.00"
Manchester City Council,Chief Executives,Professional fees,14-Sep-23,1908216221,Applied Psychology Services,785.55
Manchester City Council,Corporate Services,Professional fees,14-Sep-23,5105889994,WSP UK Limited,"3,024.75"
Manchester City Council,Manchester Leisure,Professional fees,14-Sep-23,5105890253,Response Team 247 Ltd,"-3,760.90"
Manchester City Council,Manchester Leisure,Professional fees,14-Sep-23,5105890159,Go Bounce Play,657.50
Manchester City Council,Childrens & Education Services,Professional fees,14-Sep-23,1908214862,Jack In The Box Nursery,648.00
Manchester City Council,Manchester Leisure,Refuse Collection,14-Sep-23,5105890302,GTS Steam Cleaners,603.72
Manchester City Council,Manchester Leisure,Refuse Collection,14-Sep-23,5105890107,Biffa Waste Services Ltd,818.84
Manchester City Council,Hospitality + Trading Services,Refuse Collection,14-Sep-23,5105890204,Siemens Financial Services Ltd,"2,550.00"
Manchester City Council,Manchester Leisure,Refuse Collection,14-Sep-23,5105888701,Biffa Municipal Limited,"25,402.85"
Manchester City Council,Manchester Leisure,Removal and Storage of Furniture,14-Sep-23,5105889646,BCL,"1,071.20"
Manchester City Council,Regeneration Finance,Security,14-Sep-23,5105889927,MITIE SECURITY LIMITED,"129,268.81"
Manchester City Council,Regeneration Finance,Security,14-Sep-23,5105890163,MITIE SECURITY LIMITED,"127,793.58"
Manchester City Council,Regeneration Finance,Security,14-Sep-23,5105890164,MITIE SECURITY LIMITED,"127,299.42"
Manchester City Council,Regeneration Finance,Security,14-Sep-23,5105890166,MITIE SECURITY LIMITED,"1,221.46"
Manchester City Council,Regeneration Finance,Security,14-Sep-23,5105890167,MITIE SECURITY LIMITED,"4,293.92"
Manchester City Council,Childrens & Education Services,Third party payments relating to Voluntary Organisations,14-Sep-23,5105890109,Central Mcr Uni Hospital t/a,"5,000.00"
Manchester City Council,Childrens & Education Services,Third party payments relating to Voluntary Organisations,14-Sep-23,5105890246,TiPP Centre,"20,000.00"
Manchester City Council,Childrens & Education Services,Third party payments relating to Voluntary Organisations,14-Sep-23,5105890082,The Big Life Company,"34,000.00"
Manchester City Council,Adult Social Care,Third party payments to Health Authority,14-Sep-23,5105889966,Central Mcr Uni Hospital t/a,"345,383.50"
Manchester City Council,Adult Social Care,Third party payments to Health Authority,14-Sep-23,5105889968,Central Mcr Uni Hospital t/a,"63,985.75"
Manchester City Council,Adult Social Care,Third party payments to Health Authority,14-Sep-23,5105890124,Central Mcr Uni Hospital t/a,"40,833.33"
Manchester City Council,Adult Social Care,Third party payments to Health Authority,14-Sep-23,5105890125,Central Mcr Uni Hospital t/a,"570,528.67"
Manchester City Council,Adult Social Care,Third party payments to Health Authority,14-Sep-23,5105890126,Central Mcr Uni Hospital t/a,"2,500.00"
Manchester City Council,Adult Social Care,Third party payments to Health Authority,14-Sep-23,5105890129,Central Mcr Uni Hospital t/a,"974,080.75"
Manchester City Council,Adult Social Care,Third party payments to Health Authority,14-Sep-23,5105890130,NHS GREATER MANCHESTER ICB,"66,244.00"
Manchester City Council,Regeneration Finance,Training and Development,14-Sep-23,5105890249,ILM,"1,320.00"
Manchester City Council,Childrens & Education Services,Transport Coach Hire,14-Sep-23,5105890258,Redacted Personal Information,"1,410.00"
Manchester City Council,Childrens & Education Services,Transport Coach Hire,14-Sep-23,5105890231,East Sussex County Council,"3,086.06"
Manchester City Council,Housing Revenue Account,Vehicle Plant Furniture and Equipment,14-Sep-23,5105890039,Insight Direct (Uk) Ltd,"74,127.00"
Manchester City Council,Manchester Leisure,Works and associated costs for Land and Buildings,14-Sep-23,5105890080,Kompan Ltd,"21,332.90"
Manchester City Council,Manchester Leisure,Works and associated costs for Land and Buildings,14-Sep-23,5105890081,Kompan Ltd,"3,566.00"
Manchester City Council,Manchester Leisure,Works and associated costs for Land and Buildings,14-Sep-23,5105890083,Kompan Ltd,"3,566.00"
Manchester City Council,Manchester Leisure,Works and associated costs for Land and Buildings,14-Sep-23,5105890319,Massey & Harris (Engrg) Ltd,"-74,995.00"
Manchester City Council,Chief Executives,Works and associated costs for Land and Buildings,14-Sep-23,5105890116,Turner & Townsend Project,"10,607.81"
Manchester City Council,Corporate Services,Works and associated costs for Land and Buildings,14-Sep-23,5105890310,Strata Consulting Ltd,"1,375.00"
Manchester City Council,Chief Executives,Works and associated costs for Land and Buildings,14-Sep-23,5105890147,Buro Happold Limited,"1,040.00"
Manchester City Council,Chief Executives,Works and associated costs for Land and Buildings,14-Sep-23,5105890172,Buro Happold Limited,740.00
Manchester City Council,Chief Executives,Works and associated costs for Land and Buildings,14-Sep-23,5105890173,Buro Happold Limited,"4,897.00"
Manchester City Council,Chief Executives,Works and associated costs for Land and Buildings,14-Sep-23,1908219977,United Utilities Water Operational,650.00
Manchester City Council,Corporate Services,Works and associated costs for Land and Buildings,14-Sep-23,1908219975,Knights Professional Services Ltd,"917,534.25"
Manchester City Council,Manchester Leisure,Hire of Equipment,14-Sep-23,5105890194,Tube UK Ltd,"3,395.90"
Manchester City Council,Regeneration Finance,Gas,14-Sep-23,5105890101,Calor Gas Ltd,"1,667.25"
Manchester City Council,Highways Services,Grounds Maintenance,14-Sep-23,5105889872,Rigby Taylor Ltd,"3,225.00"
Manchester City Council,Regeneration Finance,Hire of Premises,14-Sep-23,5105890123,Bolton Mbc,883.00
Manchester City Council,Chief Executives,Printing,14-Sep-23,5105889778,Browns CTP Ltd,560.00
Manchester City Council,Regeneration Finance,Grounds Maintenance,14-Sep-23,5105889645,Countrywide Grounds Maintenance Ltd,"2,510.00"
Manchester City Council,Chief Executives,Counsel Costs,14-Sep-23,1908219278,18 St John Street Chambers,930.00
Manchester City Council,Adult Social Care,Rents,14-Sep-23,5105890127,Accommodation Links Ltd,"90,307.43"
Manchester City Council,Chief Executives,Legal Fees,14-Sep-23,5105890158,Weightmans LLP Solicitors,"3,215.75"
Manchester City Council,Chief Executives,Legal Fees,14-Sep-23,5105890160,Weightmans LLP Solicitors,"1,604.25"
Manchester City Council,Chief Executives,Legal Fees,14-Sep-23,5105890183,Weightmans LLP Solicitors,"1,443.50"
Manchester City Council,Chief Executives,Legal Fees,14-Sep-23,5105890184,Weightmans LLP Solicitors,"3,631.50"
Manchester City Council,Chief Executives,Legal Fees,14-Sep-23,5105890185,Weightmans LLP Solicitors,753.75
Manchester City Council,Chief Executives,Legal Fees,14-Sep-23,5105890186,Weightmans LLP Solicitors,"3,328.00"
Manchester City Council,Chief Executives,Legal Fees,14-Sep-23,5105890187,Weightmans LLP Solicitors,611.00
Manchester City Council,Chief Executives,Legal Fees,14-Sep-23,5105890212,Weightmans LLP Solicitors,918.50
Manchester City Council,Chief Executives,Legal Fees,14-Sep-23,5105890213,Weightmans LLP Solicitors,826.50
Manchester City Council,Chief Executives,Legal Fees,14-Sep-23,5105890214,Weightmans LLP Solicitors,"3,139.00"
Manchester City Council,Chief Executives,Legal Fees,14-Sep-23,5105890215,Weightmans LLP Solicitors,"1,925.98"
Manchester City Council,Chief Executives,Legal Fees,14-Sep-23,5105890216,Weightmans LLP Solicitors,"2,838.00"
Manchester City Council,Chief Executives,Legal Fees,14-Sep-23,5105890217,Weightmans LLP Solicitors,"8,485.25"
Manchester City Council,Adult Social Care,Rents,14-Sep-23,5105890178,United Property Management Ltd,"26,402.93"
Manchester City Council,Adult Social Care,Rents,14-Sep-23,5105890128,Cromwood Ltd,"153,898.33"
Manchester City Council,Adult Social Care,Rents,14-Sep-23,5105890245,Mack Residential Letting Ltd,"198,334.56"
Manchester City Council,Adult Social Care,Bed & Breakfast Acc,14-Sep-23,5105890306,Redacted Personal Information,"6,310.00"
Manchester City Council,Manchester Leisure,Catering,14-Sep-23,5105890118,Manchester Art Gallery,"2,757.00"
Manchester City Council,Adult Social Care,Rents,14-Sep-23,5105890199,Manchester Housing Group Ltd,850.00
Manchester City Council,Regeneration Finance,Car Parking Expenses,14-Sep-23,5105890267,NCP Members Parking,591.66
Manchester City Council,Chief Executives,Counsel Costs,14-Sep-23,1908217053,Central Chambers,"1,500.00"
Manchester City Council,Chief Executives,Counsel Costs,14-Sep-23,1908219274,Central Chambers,850.00
Manchester City Council,Corporate Services,WPS Awards,14-Sep-23,5105889419,Furniture Resource Centre Ltd,556.24
Manchester City Council,Corporate Services,WPS Awards,14-Sep-23,5105889427,Furniture Resource Centre Ltd,"1,131.59"
Manchester City Council,Corporate Services,WPS Awards,14-Sep-23,5105889806,Furniture Resource Centre Ltd,807.82
Manchester City Council,Corporate Services,WPS Awards,14-Sep-23,5105890067,Furniture Resource Centre Ltd,"1,346.63"
Manchester City Council,Manchester Leisure,Other Allowances,14-Sep-23,1908217371,Tusker Direct,"5,291.43"
Manchester City Council,Adult Social Care,Rents,14-Sep-23,5105890304,Manchester Bumblebee Ltd,"158,708.00"
Manchester City Council,Adult Social Care,Bed & Breakfast Acc,14-Sep-23,5105890179,247Hotel.Com,942.50
Manchester City Council,Chief Executives,Printing,14-Sep-23,5105890156,The Purple Company (UK) Ltd,960.00
Manchester City Council,Chief Executives,Printing,14-Sep-23,5105890157,The Purple Company (UK) Ltd,995.00
Manchester City Council,Adult Social Care,Rents,14-Sep-23,5105890122,The Whiteluck Group,"1,680.00"
Manchester City Council,Adult Social Care,Rents,14-Sep-23,1908219297,Atlas Accommodation Ltd,"11,700.00"
Manchester City Council,Adult Social Care,Rents,14-Sep-23,1908219303,Woodberry Group,"2,894.66"
Manchester City Council,Adult Social Care,Rents,14-Sep-23,1908219303,Woodberry Group,"3,319.58"
Manchester City Council,Adult Social Care,Rents,14-Sep-23,1908219980,The property People MCR Ltd,"7,700.00"
Manchester City Council,Adult Social Care,Rents,14-Sep-23,1908219981,Bushton Estates,"3,500.00"
Manchester City Council,Adult Social Care,Rents,14-Sep-23,1908219981,Bushton Estates,"4,150.96"
Manchester City Council,Manchester Leisure,Agency staff provision,15-Sep-23,5105890240,Michael Page International,"11,475.00"
Manchester City Council,Corporate Services,Agency staff provision,15-Sep-23,5105890393,Michael Page International,672.00
Manchester City Council,Childrens & Education Services,Agency staff provision,15-Sep-23,5105890247,Coram Voice,"34,832.35"
Manchester City Council,Highways Services,Building Materials for direct delivery,15-Sep-23,5105890346,TARMAC,784.91
Manchester City Council,Highways Services,Building Materials for direct delivery,15-Sep-23,5105890813,Benchmark Building Supplies Ltd,"1,327.67"
Manchester City Council,Highways Services,Building Materials for direct delivery,15-Sep-23,5105890817,Benchmark Building Supplies Ltd,"1,720.18"
Manchester City Council,Housing General Fund,Building Works,15-Sep-23,5105890232,Southway Housing Trust,"23,874.44"
Manchester City Council,Housing General Fund,Building Works,15-Sep-23,5105890233,Southway Housing Trust,"38,006.28"
Manchester City Council,Housing General Fund,Building Works,15-Sep-23,5105890234,Southway Housing Trust,"37,196.51"
Manchester City Council,Housing General Fund,Building Works,15-Sep-23,5105890235,Southway Housing Trust,"63,079.51"
Manchester City Council,Housing General Fund,Building Works,15-Sep-23,5105890236,Southway Housing Trust,"84,577.03"
Manchester City Council,Housing General Fund,Building Works,15-Sep-23,5105890237,Southway Housing Trust,"49,356.69"
Manchester City Council,Housing General Fund,Building Works,15-Sep-23,5105890238,Southway Housing Trust,"44,071.95"
Manchester City Council,Adult Social Care,Carer Support Payments ,15-Sep-23,5105890209,Staff Resources Ltd,"12,532.50"
Manchester City Council,Manchester Leisure,Cleaning Equipment and Materials,15-Sep-23,5105890335,Redgate Holdings Ltd,"14,210.24"
Manchester City Council,Adult Social Care,Cleaning Equipment and Materials,15-Sep-23,5105890379,Concept Care,"1,146.00"
Manchester City Council,Manchester Leisure,Compensation Payments,15-Sep-23,1908219302,Weightmans LLP,"1,800.00"
Manchester City Council,Environment and Operations,Construction Works,15-Sep-23,5105890421,J.Hopkins (Contractors) Ltd.,"66,727.80"
Manchester City Council,Environment and Operations,Construction Works,15-Sep-23,5105890422,J.Hopkins (Contractors) Ltd.,"11,303.72"
Manchester City Council,Childrens & Education Services,"Consumable items eg Toilet rolls, soap etc",15-Sep-23,1700157964,APPNTECH OUTLET,-743.88
Manchester City Council,Childrens & Education Services,"Consumable items eg Toilet rolls, soap etc",15-Sep-23,1700157976,APPNTECH OUTLET,-629.00
Manchester City Council,Childrens & Education Services,"Consumable items eg Toilet rolls, soap etc",15-Sep-23,1700157978,TOUGH FURNITURE,"-1,692.00"
Manchester City Council,Childrens & Education Services,"Consumable items eg Toilet rolls, soap etc",15-Sep-23,1700157993,NFEE2213134M UKVI,"1,025.40"
Manchester City Council,Regeneration Finance,External repairs and maintenance for buildings,15-Sep-23,5105890792,Community Security (North West),700.00
Manchester City Council,Manchester Leisure,External repairs and maintenance for buildings,15-Sep-23,5105889759,Willfab Ltd,"1,950.00"
Manchester City Council,Regeneration Finance,External repairs and maintenance for buildings,15-Sep-23,5105890412,Cesar Santos Cerejo,"1,083.95"
Manchester City Council,Regeneration Finance,External repairs and maintenance for buildings,15-Sep-23,5105890412,Cesar Santos Cerejo,504.16
Manchester City Council,Corporate Services,Fees,15-Sep-23,1908219569,Bristow & Sutor,"5,178.00"
Manchester City Council,Corporate Services,Fees,15-Sep-23,1908219569,Bristow & Sutor,"-5,178.00"
Manchester City Council,Corporate Services,Fees,15-Sep-23,1908219567,CDER GROUP LIMITED,852.00
Manchester City Council,Corporate Services,Fees,15-Sep-23,1908219567,CDER GROUP LIMITED,-852.00
Manchester City Council,Chief Executives,Funeral and coroner related services,15-Sep-23,5105890435,Uni Hospital of South Mcr,"1,816.00"
Manchester City Council,Adult Social Care,Grant and subscriptions awarded,15-Sep-23,5105890381,Manchester People First,"40,079.83"
Manchester City Council,Manchester Leisure,Grant and subscriptions awarded,15-Sep-23,5105890207,Greater Manchester Police,"-5,500.00"
Manchester City Council,Manchester Leisure,Grant and subscriptions awarded,15-Sep-23,5105890208,Greater Manchester Police,"5,500.00"
Manchester City Council,Childrens & Education Services,Grant and subscriptions awarded,15-Sep-23,5105889761,The Movez Movement,"2,697.50"
Manchester City Council,Manchester Leisure,Internal Repairs and Maintenance for buildings,15-Sep-23,5105890389,Amey LG Ltd,"1,285.20"
Manchester City Council,Childrens & Education Services,Internal Repairs and Maintenance for buildings,15-Sep-23,5105890443,NU3PS,"1,172.60"
Manchester City Council,Childrens & Education Services,Internal Repairs and Maintenance for buildings,15-Sep-23,5105890445,Manchester School Services Limited,996.68
Manchester City Council,Childrens & Education Services,Payments for services,15-Sep-23,5105890374,Reed Employment Plc,"4,639.36"
Manchester City Council,Childrens & Education Services,Payments for services,15-Sep-23,5105890376,Reed Employment Plc,"4,798.08"
Manchester City Council,Manchester Leisure,Payments for services,15-Sep-23,5105890339,Redacted Personal Information,"3,000.00"
Manchester City Council,Highways Services,Payments to Sub-Contractors,15-Sep-23,5105890714,Clearway Drainage Systems Ltd,"2,800.00"
Manchester City Council,Highways Services,Payments to Sub-Contractors,15-Sep-23,5105890715,Clearway Drainage Systems Ltd,"1,300.00"
Manchester City Council,Highways Services,Payments to Sub-Contractors,15-Sep-23,5105890716,Clearway Drainage Systems Ltd,"1,200.00"
Manchester City Council,Highways Services,Payments to Sub-Contractors,15-Sep-23,5105890717,Clearway Drainage Systems Ltd,"4,250.00"
Manchester City Council,Highways Services,Payments to Sub-Contractors,15-Sep-23,5105890718,Clearway Drainage Systems Ltd,"4,250.00"
Manchester City Council,Highways Services,Payments to Sub-Contractors,15-Sep-23,5105890719,Clearway Drainage Systems Ltd,"1,700.00"
Manchester City Council,Highways Services,Payments to Sub-Contractors,15-Sep-23,5105890720,Clearway Drainage Systems Ltd,"3,750.00"
Manchester City Council,Highways Services,Payments to Sub-Contractors,15-Sep-23,5105890721,Clearway Drainage Systems Ltd,"10,740.00"
Manchester City Council,Highways Services,Payments to Sub-Contractors,15-Sep-23,5105890722,Clearway Drainage Systems Ltd,"10,740.00"
Manchester City Council,Highways Services,Payments to Sub-Contractors,15-Sep-23,5105890723,Clearway Drainage Systems Ltd,"3,140.00"
Manchester City Council,Highways Services,Payments to Sub-Contractors,15-Sep-23,5105890724,Clearway Drainage Systems Ltd,"3,140.00"
Manchester City Council,Highways Services,Payments to Sub-Contractors,15-Sep-23,5105890725,Clearway Drainage Systems Ltd,"6,280.00"
Manchester City Council,Highways Services,Payments to Sub-Contractors,15-Sep-23,5105890726,Clearway Drainage Systems Ltd,"3,925.00"
Manchester City Council,Highways Services,Payments to Sub-Contractors,15-Sep-23,5105890727,Clearway Drainage Systems Ltd,"22,860.00"
Manchester City Council,Highways Services,Payments to Sub-Contractors,15-Sep-23,5105890728,Clearway Drainage Systems Ltd,"30,000.00"
Manchester City Council,Highways Services,Payments to Sub-Contractors,15-Sep-23,5105890729,Clearway Drainage Systems Ltd,850.00
Manchester City Council,Highways Services,Payments to Sub-Contractors,15-Sep-23,5105890730,Clearway Drainage Systems Ltd,"10,230.00"
Manchester City Council,Manchester Leisure,Payments to Sub-Contractors,15-Sep-23,5105890441,Rigby Taylor Ltd,"1,488.00"
Manchester City Council,Manchester Leisure,Payments to Sub-Contractors,15-Sep-23,5105890436,Plantscape,"1,430.00"
Manchester City Council,Manchester Leisure,Payments to Sub-Contractors,15-Sep-23,5105890437,Plantscape,560.00
Manchester City Council,Manchester Leisure,Payments to Sub-Contractors,15-Sep-23,5105890438,Plantscape,560.00
Manchester City Council,Manchester Leisure,Payments to Sub-Contractors,15-Sep-23,5105890779,Community Security (North West),"3,529.22"
Manchester City Council,Manchester Leisure,Payments to Sub-Contractors,15-Sep-23,5105890782,Community Security (North West),"6,168.86"
Manchester City Council,Manchester Leisure,Payments to Sub-Contractors,15-Sep-23,5105890793,Community Security (North West),"7,499.30"
Manchester City Council,Chief Executives,Payments to Sub-Contractors,15-Sep-23,5105890439,SocialSignin Ltd,"20,154.00"
Manchester City Council,Chief Executives,Payments to Sub-Contractors,15-Sep-23,5105890451,Redacted Personal Information,741.30
Manchester City Council,Adult Social Care,Personal needs of client,15-Sep-23,5105889930,Chiltern Invadex Ltd,"1,928.00"
Manchester City Council,Adult Social Care,Personal needs of client,15-Sep-23,5105890221,Chiltern Invadex Ltd,"1,771.00"
Manchester City Council,Adult Social Care,Personal needs of client,15-Sep-23,5105889055,Briggs Equipment UK Limited,629.53
Manchester City Council,Adult Social Care,Personal needs of client,15-Sep-23,5105889056,Briggs Equipment UK Limited,629.53
Manchester City Council,Adult Social Care,Personal needs of client,15-Sep-23,5105889058,Briggs Equipment UK Limited,629.53
Manchester City Council,Adult Social Care,Personal needs of client,15-Sep-23,5105889059,Briggs Equipment UK Limited,629.53
Manchester City Council,Highways Services,Private Finance and Public Private partnership initiatives,15-Sep-23,5105888900,Amey Highways Lighting (Manchester),"775,827.47"
Manchester City Council,Childrens & Education Services,Private Finance and Public Private partnership initiatives,15-Sep-23,5105888740,NU3PS,"91,494.92"
Manchester City Council,Regeneration Finance,Professional fees,15-Sep-23,1908214921,Redacted Personal Information,"5,000.00"
Manchester City Council,Adult Social Care,Professional fees,15-Sep-23,5105889161,Action First iPeople Ltd,500.00
Manchester City Council,Adult Social Care,Professional fees,15-Sep-23,5105889169,Action First iPeople Ltd,"1,250.00"
Manchester City Council,Highways Services,Professional fees,15-Sep-23,5105889105,Mace Ltd,"6,717.60"
Manchester City Council,Adult Social Care,Professional fees,15-Sep-23,5105890352,Riverside ECHG,"5,616.10"
Manchester City Council,Adult Social Care,Professional fees,15-Sep-23,5105890353,Riverside ECHG,"3,045.00"
Manchester City Council,Regeneration Finance,Professional fees,15-Sep-23,5105890777,Community Security (North West),"1,200.00"
Manchester City Council,Manchester Leisure,Professional fees,15-Sep-23,5105890798,Manchester Central,"1,250.00"
Manchester City Council,Manchester Leisure,Professional fees,15-Sep-23,5105890368,Rackline Limited,623.00
Manchester City Council,Manchester Leisure,Professional fees,15-Sep-23,5105890369,Rackline Limited,623.00
Manchester City Council,Childrens & Education Services,Professional fees,15-Sep-23,5105890289,One Education Ltd,"123,000.00"
Manchester City Council,Highways Services,Professional fees,15-Sep-23,5105889065,Pell Frischmann Consultants Ltd,"4,950.00"
Manchester City Council,Highways Services,Professional fees,15-Sep-23,5105889066,Pell Frischmann Consultants Ltd,"3,252.44"
Manchester City Council,Adult Social Care,Professional fees,15-Sep-23,5105890414,IMPOWER Consulting Limited,"87,253.61"
Manchester City Council,Manchester Leisure,Professional fees,15-Sep-23,5105890410,Topscan (UK) Limited,"4,824.00"
Manchester City Council,Manchester Leisure,Professional fees,15-Sep-23,5105890431,Topscan (UK) Limited,"4,488.00"
Manchester City Council,Manchester Leisure,Professional fees,15-Sep-23,5105890432,Topscan (UK) Limited,"4,034.00"
Manchester City Council,Chief Executives,Professional fees,15-Sep-23,1908219987,Downtown in Business Ltd,"6,500.00"
Manchester City Council,Highways Services,Purchase of stores for re-distribution,15-Sep-23,5105890814,Benchmark Building Supplies Ltd,"5,392.00"
Manchester City Council,Highways Services,Purchase of stores for re-distribution,15-Sep-23,5105890815,Benchmark Building Supplies Ltd,"1,586.43"
Manchester City Council,Highways Services,Purchase of stores for re-distribution,15-Sep-23,5105890816,Benchmark Building Supplies Ltd,"1,884.96"
Manchester City Council,Highways Services,Purchase of stores for re-distribution,15-Sep-23,5105890818,Benchmark Building Supplies Ltd,"5,392.00"
Manchester City Council,Highways Services,Purchase of stores for re-distribution,15-Sep-23,5105890819,Benchmark Building Supplies Ltd,"1,884.96"
Manchester City Council,Highways Services,Purchase of stores for re-distribution,15-Sep-23,1908220699,MARSHALLS GROUP LIMITED,"5,253.68"
Manchester City Council,Highways Services,Purchase of stores for re-distribution,15-Sep-23,1908220701,MARSHALLS GROUP LIMITED,"2,337.60"
Manchester City Council,Highways Services,Purchase of stores for re-distribution,15-Sep-23,1908220702,MARSHALLS GROUP LIMITED,"3,160.00"
Manchester City Council,Manchester Leisure,Recycling Facilities,15-Sep-23,5105890327,Redgate Holdings Ltd,"18,813.08"
Manchester City Council,Manchester Leisure,Refuse Collection,15-Sep-23,5105890326,Redgate Holdings Ltd,"65,200.84"
Manchester City Council,Manchester Leisure,Refuse Collection,15-Sep-23,5105888584,Biffa Municipal Limited,"2,890.61"
Manchester City Council,Manchester Leisure,Refuse Collection,15-Sep-23,5105888588,Biffa Municipal Limited,"15,439.47"
Manchester City Council,Manchester Leisure,Refuse Collection,15-Sep-23,5105888589,Biffa Municipal Limited,"3,780.00"
Manchester City Council,Manchester Leisure,Refuse Collection,15-Sep-23,5105888592,Biffa Municipal Limited,"75,272.98"
Manchester City Council,Manchester Leisure,Refuse Collection,15-Sep-23,5105889590,Biffa Municipal Limited,"73,046.45"
Manchester City Council,Manchester Leisure,Security,15-Sep-23,5105890760,Arc Locksmiths,625.00
Manchester City Council,Manchester Leisure,Security,15-Sep-23,5105890794,Community Security (North West),"4,287.79"
Manchester City Council,Adult Social Care,Subsistence and Conference Expenses,15-Sep-23,5105890408,Thrive Manachester,"6,250.00"
Manchester City Council,Adult Social Care,Third party payments to Health Authority,15-Sep-23,1908219037,Liverpool University Hospitals,507.00
Manchester City Council,Adult Social Care,Third party payments to Health Authority,15-Sep-23,1908219038,Liverpool University Hospitals,517.00
Manchester City Council,Childrens & Education Services,Training and Development,15-Sep-23,5105890016,One Education Ltd,"113,320.00"
Manchester City Council,Libraries and Theatres,Vehicle Plant Furniture and Equipment,15-Sep-23,5105890801,H Jenkinson & Co Ltd.,"19,673.71"
Manchester City Council,Libraries and Theatres,Vehicle Plant Furniture and Equipment,15-Sep-23,5105890552,Arco Group Ltd,"1,413.82"
Manchester City Council,Chief Executives,Works and associated costs for Land and Buildings,15-Sep-23,5105890800,H Jenkinson & Co Ltd.,"3,600.00"
Manchester City Council,Corporate Services,Works and associated costs for Land and Buildings,15-Sep-23,5105890772,Clean-Up UK Limited,"1,840.00"
Manchester City Council,Corporate Services,Works and associated costs for Land and Buildings,15-Sep-23,5105890773,Clean-Up UK Limited,"1,895.40"
Manchester City Council,Corporate Services,Works and associated costs for Land and Buildings,15-Sep-23,5105890774,Clean-Up UK Limited,"1,840.00"
Manchester City Council,Corporate Services,Works and associated costs for Land and Buildings,15-Sep-23,5105889083,F Parkinson Limited,"83,313.58"
Manchester City Council,Chief Executives,Works and associated costs for Land and Buildings,15-Sep-23,5105889207,Turner & Townsend Cost,"60,151.79"
Manchester City Council,Chief Executives,Works and associated costs for Land and Buildings,15-Sep-23,5105889064,Turner & Townsend Cost,"-9,127.09"
Manchester City Council,Chief Executives,Works and associated costs for Land and Buildings,15-Sep-23,5105889495,Turner & Townsend Cost,"8,082.09"
Manchester City Council,Chief Executives,Works and associated costs for Land and Buildings,15-Sep-23,5105890239,Eric Wright Civil Engineering Limit,"253,677.61"
Manchester City Council,Childrens Services,Works and associated costs for Land and Buildings,15-Sep-23,5105889153,Warden Construction Ltd,"69,500.00"
Manchester City Council,Childrens Services,Works and associated costs for Land and Buildings,15-Sep-23,5105889153,Warden Construction Ltd,"79,897.24"
Manchester City Council,Corporate Services,Works and associated costs for Land and Buildings,15-Sep-23,5105890407,FEC Northern Gateway Development Lt,"1,666.67"
Manchester City Council,Adult Social Care,Housing Rents Debit,15-Sep-23,1908214849,Redacted Personal Information,"2,126.26"
Manchester City Council,Adult Social Care,Housing Rents Debit,15-Sep-23,1908191626,Redacted Personal Information,"1,224.90"
Manchester City Council,Adult Social Care,Equipment,15-Sep-23,5105890367,Prism Medical UK Carefree Division,"5,990.00"
Manchester City Council,Childrens & Education Services,Furniture,15-Sep-23,5105890731,Eps Supplies Ltd,"1,154.36"
Manchester City Council,Childrens & Education Services,Furniture,15-Sep-23,5105890733,Eps Supplies Ltd,656.25
Manchester City Council,Childrens & Education Services,Furniture,15-Sep-23,5105890741,Eps Supplies Ltd,520.14
Manchester City Council,Adult Social Care,Furniture,15-Sep-23,5105890587,H Jenkinson & Co Ltd.,575.90
Manchester City Council,Regeneration Finance,Furniture,15-Sep-23,5105890534,H Jenkinson & Co Ltd.,"2,870.00"
Manchester City Council,Regeneration Finance,Furniture,15-Sep-23,5105890578,H Jenkinson & Co Ltd.,"4,781.95"
Manchester City Council,Regeneration Finance,Furniture,15-Sep-23,5105890580,H Jenkinson & Co Ltd.,869.42
Manchester City Council,Regeneration Finance,Furniture,15-Sep-23,5105890581,H Jenkinson & Co Ltd.,"1,670.00"
Manchester City Council,Regeneration Finance,Furniture,15-Sep-23,5105890803,H Jenkinson & Co Ltd.,"5,490.57"
Manchester City Council,Regeneration Finance,Furniture,15-Sep-23,5105890805,H Jenkinson & Co Ltd.,"1,650.00"
Manchester City Council,Regeneration Finance,Furniture,15-Sep-23,5105890806,H Jenkinson & Co Ltd.,600.00
Manchester City Council,Regeneration Finance,Furniture,15-Sep-23,5105890808,H Jenkinson & Co Ltd.,"1,425.00"
Manchester City Council,Manchester Leisure,Hire of Equipment,15-Sep-23,5105890351,William G.Search Ltd,"2,570.00"
Manchester City Council,Adult Social Care,Furniture,15-Sep-23,5105890358,Riverside ECHG,"2,902.02"
Manchester City Council,Corporate Services,Tracing fees,15-Sep-23,5105890440,Experian Limited,"2,122.61"
Manchester City Council,Manchester Leisure,Equipment,15-Sep-23,5105890344,Groundwork Landscapes Ltd,"1,800.00"
Manchester City Council,Adult Social Care,Catering Provisions,15-Sep-23,1908220914,Brake Bros Foodservice Ltd,651.77
Manchester City Council,Adult Social Care,Catering Provisions,15-Sep-23,1908220915,Brake Bros Foodservice Ltd,966.19
Manchester City Council,Highways Services,Grounds Maintenance,15-Sep-23,5105890767,Central Locksmiths,737.50
Manchester City Council,Highways Services,Grounds Maintenance,15-Sep-23,5105890770,Central Locksmiths,737.50
Manchester City Council,Manchester Leisure,Equipment,15-Sep-23,5105890775,Glasdon U.K. Limited,"2,587.82"
Manchester City Council,Chief Executives,Printing,15-Sep-23,5105890593,Astra Signs,695.00
Manchester City Council,Chief Executives,Printing,15-Sep-23,5105890594,Astra Signs,980.00
Manchester City Council,Chief Executives,Printing,15-Sep-23,5105890605,Astra Signs,"1,240.00"
Manchester City Council,Chief Executives,Printing,15-Sep-23,5105890612,Astra Signs,974.70
Manchester City Council,Chief Executives,Examination Fees,15-Sep-23,5105890434,Uni Hospital of South Mcr,"1,400.00"
Manchester City Council,Manchester Leisure,Grounds Maintenance,15-Sep-23,5105890330,Redgate Holdings Ltd,"12,552.25"
Manchester City Council,Manchester Leisure,Disposables,15-Sep-23,5105890325,Redgate Holdings Ltd,"109,650.20"
Manchester City Council,Manchester Leisure,Liquid Contnr Recycl,15-Sep-23,5105890331,Redgate Holdings Ltd,"6,940.84"
Manchester City Council,Manchester Leisure,Tipping - Tonnage,15-Sep-23,5105890334,Redgate Holdings Ltd,"86,584.64"
Manchester City Council,Manchester Leisure,Tipping - Skips,15-Sep-23,5105890328,Redgate Holdings Ltd,"46,040.96"
Manchester City Council,Chief Executives,Printing,15-Sep-23,5105890349,Chapel Press Ltd,932.00
Manchester City Council,Manchester Leisure,Grounds Maintenance,15-Sep-23,5105890589,Community Security (North West),"3,900.00"
Manchester City Council,Manchester Leisure,Cleaning Equipment,15-Sep-23,5105890750,Alliance Disposables Ltd,630.76
Manchester City Council,Regeneration Finance,Cleaning Equipment,15-Sep-23,5105890744,Alliance Disposables Ltd,953.99
Manchester City Council,Adult Social Care,ClothsUniformLaundry,15-Sep-23,5105890660,Alliance Disposables Ltd,880.00
Manchester City Council,Adult Social Care,ClothsUniformLaundry,15-Sep-23,5105890664,Alliance Disposables Ltd,550.00
Manchester City Council,Regeneration Finance,Rents,15-Sep-23,1908219983,Savills Commercial Ltd,"1,315.03"
Manchester City Council,Chief Executives,Catering,15-Sep-23,5105890575,Manchester Central,971.54
Manchester City Council,Regeneration Finance,Legal Fees,15-Sep-23,5105890577,Manchester Central,"7,726.16"
Manchester City Council,Chief Executives,Legal Fees,15-Sep-23,5105890225,Weightmans LLP Solicitors,"2,032.25"
Manchester City Council,Adult Social Care,Equipment,15-Sep-23,5105890394,Aidapt Bathrooms Ltd,"2,375.00"
Manchester City Council,Adult Social Care,Equipment,15-Sep-23,5105890395,Aidapt Bathrooms Ltd,"3,285.00"
Manchester City Council,Regeneration Finance,Equipment,15-Sep-23,1908220899,Cooleraid Ltd,950.00
Manchester City Council,Chief Executives,Rents,15-Sep-23,5105888739,ANS Group PLC,"50,020.00"
Manchester City Council,Corporate Services,Elec Car L-VAT contr,15-Sep-23,1908220008,Northumbria Healthcare NHS FT,"3,572.29"
Manchester City Council,Corporate Services,Elec Car Lease,15-Sep-23,1908220008,Northumbria Healthcare NHS FT,"40,737.66"
Manchester City Council,Corporate Services,Elec Car Lease,15-Sep-23,1908220013,Northumbria Healthcare NHS FT,"5,782.86"
Manchester City Council,Childrens & Education Services,Furniture,15-Sep-23,5105889660,Redacted Personal Information,"1,666.70"
Manchester City Council,Hospitality + Trading Services,Stationery,15-Sep-23,5105890626,Banner Group Limited,"1,232.83"
Manchester City Council,Childrens & Education Services,Stationery,15-Sep-23,5105890656,Banner Group Limited,808.72
Manchester City Council,Adult Social Care,Equipment,15-Sep-23,5105890383,Herida Healthcare Plc,"2,100.40"
Manchester City Council,Manchester Leisure,ICT Sup & Maintnance,15-Sep-23,5105890074,TELEF�NICA TECH NI LTD,"49,712.50"
Manchester City Council,General Fund,Levies - Cash Limit,15-Sep-23,#,GMCA,"3,905,500.00"
Manchester City Council,Manchester Leisure,Equipment,15-Sep-23,1908219989,Inkerman Ltd,"4,245.75"
Manchester City Council,Manchester Leisure,Special Event,15-Sep-23,1908219988,Great Big Events International Ltd,"65,707.92"
Manchester City Council,Corporate Services,MABID,15-Sep-23,1908216944,Manchester Accommodation Business I,"149,416.60"
Manchester City Council,Childrens & Education Services,PNOR-Clothing,15-Sep-23,1908220592,APPNTECH OUTLET,743.88
Manchester City Council,Childrens & Education Services,First Home Grant,15-Sep-23,1908220597,APPNTECH OUTLET,629.00
Manchester City Council,Childrens & Education Services,First Home Grant,15-Sep-23,1908220598,TOUGH FURNITURE,"1,692.00"
Manchester City Council,Childrens & Education Services,First Home Grant,15-Sep-23,1908220614,NFEE2213134M UKVI,"-1,025.40"
Manchester City Council,Chief Executives,Agency staff provision,18-Sep-23,5105889289,Liquid Personnel Ltd,"29,512.35"
Manchester City Council,Chief Executives,Agency staff provision,18-Sep-23,5105890865,Buckingham Futures Limited,"10,878.00"
Manchester City Council,Highways Services,Building Materials for direct delivery,18-Sep-23,5105890851,William Smith Sons (Barnard Castle),"3,447.52"
Manchester City Council,Highways Services,Building Materials for direct delivery,18-Sep-23,5105890265,TARMAC,728.84
Manchester City Council,Highways Services,Building Materials for direct delivery,18-Sep-23,5105890273,TARMAC,726.40
Manchester City Council,Highways Services,Building Materials for direct delivery,18-Sep-23,5105890278,TARMAC,984.79
Manchester City Council,Manchester Leisure,Building Materials for direct delivery,18-Sep-23,5105890881,Tudor Environmental,578.71
Manchester City Council,Manchester Leisure,Compensation Payments,18-Sep-23,1908216222,eCapital Commercial Finance (North),700.00
Manchester City Council,Environment and Operations,Construction Works,18-Sep-23,5105889235,Rosgal Ltd,"21,952.96"
Manchester City Council,Environment and Operations,Construction Works,18-Sep-23,5105889235,Rosgal Ltd,"32,269.33"
Manchester City Council,Environment and Operations,Construction Works,18-Sep-23,5105890424,Kiely Bros Ltd,"184,300.00"
Manchester City Council,Environment and Operations,Construction Works,18-Sep-23,5105890425,Kiely Bros Ltd,"237,550.00"
Manchester City Council,Environment and Operations,Construction Works,18-Sep-23,5105890426,Kiely Bros Ltd,"126,652.30"
Manchester City Council,Manchester Leisure,External repairs and maintenance for buildings,18-Sep-23,5105890382,Groundwork Landscapes Ltd,"2,422.50"
Manchester City Council,Housing Revenue Account,External repairs and maintenance for buildings,18-Sep-23,5105890491,Avro Hallows TMO Ltd,"81,175.00"
Manchester City Council,Regeneration Finance,External repairs and maintenance for buildings,18-Sep-23,5105890494,Redacted Personal Information,"2,954.14"
Manchester City Council,Regeneration Finance,External repairs and maintenance for buildings,18-Sep-23,5105890820,Temple Studios,"3,600.00"
Manchester City Council,Chief Executives,General Office expenses,18-Sep-23,1908220678,Millennium Translations Ltd,"4,203.36"
Manchester City Council,Manchester Leisure,Goods purchased for resale in Council outlets,18-Sep-23,1908221734,MACON & LESQUOY,730.10
Manchester City Council,Chief Executives,Grant and subscriptions awarded,18-Sep-23,5105890152,Brighter Sound Ltd,"89,613.00"
Manchester City Council,Adult Social Care,Grant and subscriptions awarded,18-Sep-23,5105890867,Stepping Stone Projects,"4,400.00"
Manchester City Council,Manchester Leisure,Grant and subscriptions awarded,18-Sep-23,5105890155,WPHI CIC,"1,455.00"
Manchester City Council,Regeneration Finance,I T Provision,18-Sep-23,5105890528,Blue Soft Limited,877.00
Manchester City Council,Manchester Leisure,I T Provision,18-Sep-23,5105890485,Cleardata,844.16
Manchester City Council,Manchester Leisure,I T Provision,18-Sep-23,5105890900,Upland Software UK Ltd,"4,800.00"
Manchester City Council,Childrens & Education Services,Payments for services,18-Sep-23,5105890870,Time Specialist Support Ltd,"14,808.00"
Manchester City Council,Childrens & Education Services,Payments for services,18-Sep-23,5105889760,One Education Ltd,600.00
Manchester City Council,Chief Executives,Payments to Sub-Contractors,18-Sep-23,5105890448,Redacted Personal Information,586.65
Manchester City Council,Chief Executives,Payments to Sub-Contractors,18-Sep-23,5105890454,Redacted Personal Information,507.85
Manchester City Council,Chief Executives,Payments to Sub-Contractors,18-Sep-23,5105890459,Redacted Personal Information,639.00
Manchester City Council,Chief Executives,Payments to Sub-Contractors,18-Sep-23,5105890821,Redacted Personal Information,"1,654.55"
Manchester City Council,Chief Executives,Payments to Sub-Contractors,18-Sep-23,5105890453,Redacted Personal Information,"1,141.07"
Manchester City Council,Adult Social Care,Personal needs of client,18-Sep-23,5105890525,Hoist & Shower Chair Company,"2,226.25"
Manchester City Council,Manchester Leisure,Professional fees,18-Sep-23,1908202528,Redacted Personal Information,"1,400.00"
Manchester City Council,Chief Executives,Professional fees,18-Sep-23,1908220196,Redacted Personal Information,702.00
Manchester City Council,Corporate Services,Professional fees,18-Sep-23,5105889205,Price Waterhouse Coopers LLP,"1,900.00"
Manchester City Council,Manchester Leisure,Professional fees,18-Sep-23,5105890880,BDO LLP,"3,570.00"
Manchester City Council,Corporate Services,Professional fees,18-Sep-23,5105890911,Ground Heat Ltd,601.00
Manchester City Council,Childrens & Education Services,Professional fees,18-Sep-23,5105890487,Alpha Biolaboratories Limited,765.00
Manchester City Council,Corporate Services,Professional fees,18-Sep-23,1908208773,Redacted Personal Information,650.00
Manchester City Council,Childrens & Education Services,Professional fees,18-Sep-23,5105890488,Forensic Testing Service Ltd,"2,007.20"
Manchester City Council,Chief Executives,Professional fees,18-Sep-23,1908220578,Forensic Testing Service Ltd,530.93
Manchester City Council,Chief Executives,Professional fees,18-Sep-23,1908220553,Pickering Psychology Services Ltd,734.08
Manchester City Council,Chief Executives,Professional fees,18-Sep-23,1908220682,Pickering Psychology Services Ltd,"1,440.05"
Manchester City Council,Highways Services,Professional fees,18-Sep-23,5105889290,Pell Frischmann Consultants Ltd,"3,357.50"
Manchester City Council,Adult Social Care,Professional fees,18-Sep-23,5105890413,Redacted Personal Information,"39,617.36"
Manchester City Council,Manchester Leisure,Professional fees,18-Sep-23,5105890850,Redacted Personal Information,722.50
Manchester City Council,Manchester Leisure,Professional fees,18-Sep-23,5105890859,Xtreme,515.00
Manchester City Council,Manchester Leisure,Professional fees,18-Sep-23,5105890860,Xtreme,515.00
Manchester City Council,Manchester Leisure,Professional fees,18-Sep-23,1908185913,Pinnacle Building and Surveying,550.00
Manchester City Council,Highways Services,Purchase of stores for re-distribution,18-Sep-23,5105890518,Instarmac Group Ltd,"1,320.48"
Manchester City Council,Hospitality + Trading Services,Refuse Collection,18-Sep-23,5105890230,Biffa Municipal Limited,"16,296.80"
Manchester City Council,Manchester Leisure,Responsive Repairs Work,18-Sep-23,1908219973,Redacted Personal Information,"1,932.00"
Manchester City Council,Manchester Leisure,Responsive Repairs Work,18-Sep-23,1908217188,Redacted Personal Information,"1,500.00"
Manchester City Council,Regeneration Finance,Security,18-Sep-23,5105889928,MITIE SECURITY LIMITED,"129,268.61"
Manchester City Council,Adult Social Care,Third party payments relating to Voluntary Organisations,18-Sep-23,5105890423,Sanctuary Housing Association,"25,881.24"
Manchester City Council,Childrens & Education Services,Transport Coach Hire,18-Sep-23,1908221716,Redacted Personal Information,875.00
Manchester City Council,Childrens & Education Services,Transport Coach Hire,18-Sep-23,5105890484,Parkway Cabs & Cars,"12,406.50"
Manchester City Council,Hospitality + Trading Services,Vehicle Repairs,18-Sep-23,5105890941,LDS Motor Bodies Ltd,"1,101.44"
Manchester City Council,Hospitality + Trading Services,Vehicle Repairs,18-Sep-23,5105890838,Advanced Vehicle Technicians Ltd,880.25
